Transaction Number,Transaction date,Invoice Date,Beneficiary ID,Beneficiary Name,Purpose of Expenditure,Local Authority Department that incurred Expenditure,Amount
12072636,08/03/2018,06/03/2018,3000000,Sage Care Ltd,Adults Home Care,Adult Social Care Integrated Care,534.78 
12043452,07/02/2018,06/02/2018,3000000,Sage Care Ltd,Adults Home Care,Adult Social Care Integrated Care,534.66 
12072637,08/03/2018,06/03/2018,3000000,Sage Care Ltd,Adults Home Care,Adult Social Care Integrated Care,542.80 
12017865,17/01/2018,16/01/2018,3000000,Sage Care Ltd,Adults Home Care,Adult Social Care Integrated Care,"3,742.33 "
12043453,07/02/2018,06/02/2018,3000000,Sage Care Ltd,Adults Home Care,Adult Social Care Integrated Care,"3,789.94 "
12072638,08/03/2018,06/03/2018,3000000,Sage Care Ltd,Adults Home Care,Adult Social Care Integrated Care,"3,829.76 "
12017867,17/01/2018,16/01/2018,3000000,Sage Care Ltd,Adults Home Care,Adult Social Care Integrated Care,"1,417.29 "
12043455,07/02/2018,06/02/2018,3000000,Sage Care Ltd,Adults Home Care,Adult Social Care Integrated Care,"1,414.39 "
12072640,08/03/2018,06/03/2018,3000000,Sage Care Ltd,Adults Home Care,Adult Social Care Integrated Care,"1,416.84 "
12072641,08/03/2018,06/03/2018,3000000,Sage Care Ltd,Adults Home Care,Adult Social Care Integrated Care,"1,186.41 "
12017870,17/01/2018,16/01/2018,3000000,Sage Care Ltd,Adults Home Care,Adult Social Care Integrated Care,694.17 
12043459,07/02/2018,06/02/2018,3000000,Sage Care Ltd,Adults Home Care,Adult Social Care Integrated Care,685.22 
12017871,17/01/2018,16/01/2018,3000000,Sage Care Ltd,Adults Home Care,Adult Social Care Integrated Care,504.67 
12043460,07/02/2018,06/02/2018,3000000,Sage Care Ltd,Adults Home Care,Adult Social Care Integrated Care,621.00 
12072645,08/03/2018,06/03/2018,3000000,Sage Care Ltd,Adults Home Care,Adult Social Care Integrated Care,677.00 
12017872,17/01/2018,16/01/2018,3000000,Sage Care Ltd,Adults Home Care,Adult Social Care Integrated Care,"1,286.28 "
12043461,07/02/2018,06/02/2018,3000000,Sage Care Ltd,Adults Home Care,Adult Social Care Integrated Care,"1,418.93 "
12072646,08/03/2018,06/03/2018,3000000,Sage Care Ltd,Adults Home Care,Adult Social Care Integrated Care,"1,451.80 "
12017876,17/01/2018,16/01/2018,3000000,Sage Care Ltd,Adults Home Care,Adult Social Care Integrated Care,"1,461.89 "
12043464,07/02/2018,06/02/2018,3000000,Sage Care Ltd,Adults Home Care,Adult Social Care Integrated Care,"1,430.26 "
12072648,08/03/2018,06/03/2018,3000000,Sage Care Ltd,Adults Home Care,Adult Social Care Integrated Care,"1,443.42 "
12017878,17/01/2018,16/01/2018,3000000,Sage Care Ltd,Adults Home Care,Adult Social Care Integrated Care,539.93 
12043466,07/02/2018,06/02/2018,3000000,Sage Care Ltd,Adults Home Care,Adult Social Care Integrated Care,526.36 
12072650,08/03/2018,06/03/2018,3000000,Sage Care Ltd,Adults Home Care,Adult Social Care Integrated Care,531.56 
12043467,07/02/2018,06/02/2018,3000000,Sage Care Ltd,Adults Home Care,Adult Social Care Integrated Care,608.15 
12017881,17/01/2018,16/01/2018,3000000,Sage Care Ltd,Adults Home Care,Adult Social Care Integrated Care,"1,019.32 "
12017883,17/01/2018,16/01/2018,3000000,Sage Care Ltd,Adults Home Care,Adult Social Care Integrated Care,563.78 
12043472,07/02/2018,06/02/2018,3000000,Sage Care Ltd,Adults Home Care,Adult Social Care Integrated Care,647.80 
12072653,08/03/2018,06/03/2018,3000000,Sage Care Ltd,Adults Home Care,Adult Social Care Integrated Care,857.11 
12043474,07/02/2018,06/02/2018,3000000,Sage Care Ltd,Adults Home Care,Adult Social Care Integrated Care,574.95 
12072655,08/03/2018,06/03/2018,3000000,Sage Care Ltd,Adults Home Care,Adult Social Care Integrated Care,577.99 
12017886,17/01/2018,16/01/2018,3000000,Sage Care Ltd,Adults Home Care,Adult Social Care Integrated Care,"1,494.31 "
12043475,07/02/2018,06/02/2018,3000000,Sage Care Ltd,Adults Home Care,Adult Social Care Integrated Care,"1,748.81 "
12072656,08/03/2018,06/03/2018,3000000,Sage Care Ltd,Adults Home Care,Adult Social Care Integrated Care,"1,762.46 "
12017888,17/01/2018,16/01/2018,3000000,Sage Care Ltd,Adults Home Care,Adult Social Care Integrated Care,"1,767.34 "
12043477,07/02/2018,06/02/2018,3000000,Sage Care Ltd,Adults Home Care,Adult Social Care Integrated Care,"1,764.09 "
12072658,08/03/2018,06/03/2018,3000000,Sage Care Ltd,Adults Home Care,Adult Social Care Integrated Care,"1,767.86 "
12017889,17/01/2018,16/01/2018,3000000,Sage Care Ltd,Adults Home Care,Adult Social Care Integrated Care,583.12 
12043478,07/02/2018,06/02/2018,3000000,Sage Care Ltd,Adults Home Care,Adult Social Care Integrated Care,781.79 
12072659,08/03/2018,06/03/2018,3000000,Sage Care Ltd,Adults Home Care,Adult Social Care Integrated Care,781.83 
12072661,08/03/2018,06/03/2018,3000000,Sage Care Ltd,Adults Home Care,Adult Social Care Integrated Care,939.56 
12017895,17/01/2018,16/01/2018,3000000,Sage Care Ltd,Adults Home Care,Adult Social Care Integrated Care,857.57 
12017896,17/01/2018,16/01/2018,3000000,Sage Care Ltd,Adults Home Care,Adult Social Care Integrated Care,"1,692.57 "
12043484,07/02/2018,06/02/2018,3000000,Sage Care Ltd,Adults Home Care,Adult Social Care Integrated Care,"1,671.49 "
12072665,08/03/2018,06/03/2018,3000000,Sage Care Ltd,Adults Home Care,Adult Social Care Integrated Care,"1,695.80 "
12017899,17/01/2018,16/01/2018,3000000,Sage Care Ltd,Adults Home Care,Adult Social Care Integrated Care,818.84 
12043487,07/02/2018,06/02/2018,3000000,Sage Care Ltd,Adults Home Care,Adult Social Care Integrated Care,639.69 
12043488,07/02/2018,06/02/2018,3000000,Sage Care Ltd,Adults Home Care,Adult Social Care Integrated Care,973.28 
12072667,08/03/2018,06/03/2018,3000000,Sage Care Ltd,Adults Home Care,Adult Social Care Integrated Care,978.28 
12017902,17/01/2018,16/01/2018,3000000,Sage Care Ltd,Adults Home Care,Adult Social Care Integrated Care,"2,259.97 "
12043490,07/02/2018,06/02/2018,3000000,Sage Care Ltd,Adults Home Care,Adult Social Care Integrated Care,"2,264.01 "
12072669,08/03/2018,06/03/2018,3000000,Sage Care Ltd,Adults Home Care,Adult Social Care Integrated Care,"2,281.57 "
12017905,17/01/2018,16/01/2018,3000000,Sage Care Ltd,Adults Home Care,Adult Social Care Integrated Care,"1,736.63 "
12043493,07/02/2018,06/02/2018,3000000,Sage Care Ltd,Adults Home Care,Adult Social Care Integrated Care,"1,751.35 "
12072672,08/03/2018,06/03/2018,3000000,Sage Care Ltd,Adults Home Care,Adult Social Care Integrated Care,"1,763.73 "
12017906,17/01/2018,16/01/2018,3000000,Sage Care Ltd,Adults Home Care,Adult Social Care Integrated Care,589.63 
12043494,07/02/2018,06/02/2018,3000000,Sage Care Ltd,Adults Home Care,Adult Social Care Integrated Care,932.45 
12072673,08/03/2018,06/03/2018,3000000,Sage Care Ltd,Adults Home Care,Adult Social Care Integrated Care,965.97 
12017908,17/01/2018,16/01/2018,3000000,Sage Care Ltd,Adults Home Care,Adult Social Care Integrated Care,"3,881.15 "
12043496,07/02/2018,06/02/2018,3000000,Sage Care Ltd,Adults Home Care,Adult Social Care Integrated Care,"3,901.97 "
12072675,08/03/2018,06/03/2018,3000000,Sage Care Ltd,Adults Home Care,Adult Social Care Integrated Care,"3,901.36 "
12017909,17/01/2018,16/01/2018,3000000,Sage Care Ltd,Adults Home Care,Adult Social Care Integrated Care,"1,461.49 "
12043497,07/02/2018,06/02/2018,3000000,Sage Care Ltd,Adults Home Care,Adult Social Care Integrated Care,"1,482.93 "
12072676,08/03/2018,06/03/2018,3000000,Sage Care Ltd,Adults Home Care,Adult Social Care Integrated Care,"1,512.08 "
12017911,17/01/2018,16/01/2018,3000000,Sage Care Ltd,Adults Home Care,Adult Social Care Integrated Care,762.93 
12043499,07/02/2018,06/02/2018,3000000,Sage Care Ltd,Adults Home Care,Adult Social Care Integrated Care,738.82 
12072677,08/03/2018,06/03/2018,3000000,Sage Care Ltd,Adults Home Care,Adult Social Care Integrated Care,"1,159.18 "
12017912,17/01/2018,16/01/2018,3000000,Sage Care Ltd,Adults Home Care,Adult Social Care Integrated Care,505.25 
12043500,07/02/2018,06/02/2018,3000000,Sage Care Ltd,Adults Home Care,Adult Social Care Integrated Care,"1,013.88 "
12072678,08/03/2018,06/03/2018,3000000,Sage Care Ltd,Adults Home Care,Adult Social Care Integrated Care,"1,105.37 "
12017913,17/01/2018,16/01/2018,3000000,Sage Care Ltd,Adults Home Care,Adult Social Care Integrated Care,869.08 
12043501,07/02/2018,06/02/2018,3000000,Sage Care Ltd,Adults Home Care,Adult Social Care Integrated Care,869.08 
12072679,08/03/2018,06/03/2018,3000000,Sage Care Ltd,Adults Home Care,Adult Social Care Integrated Care,869.08 
12017914,17/01/2018,16/01/2018,3000000,Sage Care Ltd,Adults Home Care,Adult Social Care Integrated Care,"1,136.36 "
12072680,08/03/2018,06/03/2018,3000000,Sage Care Ltd,Adults Home Care,Adult Social Care Integrated Care,"1,648.06 "
12017917,17/01/2018,16/01/2018,3000000,Sage Care Ltd,Adults Home Care,Adult Social Care Integrated Care,"1,043.73 "
12043506,07/02/2018,06/02/2018,3000000,Sage Care Ltd,Adults Home Care,Adult Social Care Integrated Care,"1,008.30 "
12072684,08/03/2018,06/03/2018,3000000,Sage Care Ltd,Adults Home Care,Adult Social Care Integrated Care,"1,031.40 "
12043507,07/02/2018,06/02/2018,3000000,Sage Care Ltd,Adults Home Care,Adult Social Care Integrated Care,557.61 
12017919,17/01/2018,16/01/2018,3000000,Sage Care Ltd,Adults Home Care,Adult Social Care Integrated Care,993.82 
12043508,07/02/2018,06/02/2018,3000000,Sage Care Ltd,Adults Home Care,Adult Social Care Integrated Care,993.77 
12072685,08/03/2018,06/03/2018,3000000,Sage Care Ltd,Adults Home Care,Adult Social Care Integrated Care,"1,004.08 "
12017920,17/01/2018,16/01/2018,3000000,Sage Care Ltd,Adults Home Care,Adult Social Care Integrated Care,"1,034.30 "
12043509,07/02/2018,06/02/2018,3000000,Sage Care Ltd,Adults Home Care,Adult Social Care Integrated Care,"1,037.55 "
12072686,08/03/2018,06/03/2018,3000000,Sage Care Ltd,Adults Home Care,Adult Social Care Integrated Care,"1,031.81 "
12017921,17/01/2018,16/01/2018,3000000,Sage Care Ltd,Adults Home Care,Adult Social Care Integrated Care,957.58 
12043510,07/02/2018,06/02/2018,3000000,Sage Care Ltd,Adults Home Care,Adult Social Care Integrated Care,953.51 
12072687,08/03/2018,06/03/2018,3000000,Sage Care Ltd,Adults Home Care,Adult Social Care Integrated Care,971.21 
12043511,07/02/2018,06/02/2018,3000000,Sage Care Ltd,Adults Home Care,Adult Social Care Integrated Care,"1,844.25 "
12072688,08/03/2018,06/03/2018,3000000,Sage Care Ltd,Adults Home Care,Adult Social Care Integrated Care,"2,440.69 "
12043512,07/02/2018,06/02/2018,3000000,Sage Care Ltd,Adults Home Care,Adult Social Care Integrated Care,693.77 
12072689,08/03/2018,06/03/2018,3000000,Sage Care Ltd,Adults Home Care,Adult Social Care Integrated Care,982.72 
12017922,17/01/2018,16/01/2018,3000000,Sage Care Ltd,Adults Home Care,Adult Social Care Integrated Care,"2,007.72 "
12043513,07/02/2018,06/02/2018,3000000,Sage Care Ltd,Adults Home Care,Adult Social Care Integrated Care,"2,119.45 "
12072690,08/03/2018,06/03/2018,3000000,Sage Care Ltd,Adults Home Care,Adult Social Care Integrated Care,"2,137.00 "
12043514,07/02/2018,06/02/2018,3000000,Sage Care Ltd,Adults Home Care,Adult Social Care Integrated Care,"1,420.99 "
12072691,08/03/2018,06/03/2018,3000000,Sage Care Ltd,Adults Home Care,Adult Social Care Integrated Care,"1,874.51 "
12017924,17/01/2018,16/01/2018,3000000,Sage Care Ltd,Adults Home Care,Adult Social Care Integrated Care,"2,017.10 "
12043515,07/02/2018,06/02/2018,3000000,Sage Care Ltd,Adults Home Care,Adult Social Care Integrated Care,935.50 
12072692,08/03/2018,06/03/2018,3000000,Sage Care Ltd,Adults Home Care,Adult Social Care Integrated Care,"1,979.41 "
12017925,17/01/2018,16/01/2018,3000000,Sage Care Ltd,Adults Home Care,Adult Social Care Integrated Care,"2,967.67 "
12043516,07/02/2018,06/02/2018,3000000,Sage Care Ltd,Adults Home Care,Adult Social Care Integrated Care,"2,996.51 "
12072693,08/03/2018,06/03/2018,3000000,Sage Care Ltd,Adults Home Care,Adult Social Care Integrated Care,"3,014.81 "
12017926,17/01/2018,16/01/2018,3000000,Sage Care Ltd,Adults Home Care,Adult Social Care Integrated Care,"2,008.58 "
12043517,07/02/2018,06/02/2018,3000000,Sage Care Ltd,Adults Home Care,Adult Social Care Integrated Care,"2,064.71 "
12072694,08/03/2018,06/03/2018,3000000,Sage Care Ltd,Adults Home Care,Adult Social Care Integrated Care,"2,078.64 "
12017927,17/01/2018,16/01/2018,3000000,Sage Care Ltd,Adults Home Care,Adult Social Care Integrated Care,"1,572.96 "
12043518,07/02/2018,06/02/2018,3000000,Sage Care Ltd,Adults Home Care,Adult Social Care Integrated Care,"1,561.20 "
12072695,08/03/2018,06/03/2018,3000000,Sage Care Ltd,Adults Home Care,Adult Social Care Integrated Care,"1,542.52 "
12017928,17/01/2018,16/01/2018,3000000,Sage Care Ltd,Adults Home Care,Adult Social Care Integrated Care,777.09 
12043519,07/02/2018,06/02/2018,3000000,Sage Care Ltd,Adults Home Care,Adult Social Care Integrated Care,978.92 
12072696,08/03/2018,06/03/2018,3000000,Sage Care Ltd,Adults Home Care,Adult Social Care Integrated Care,"1,008.78 "
12017930,17/01/2018,16/01/2018,3000000,Sage Care Ltd,Adults Home Care,Adult Social Care Integrated Care,"3,443.44 "
12043520,07/02/2018,06/02/2018,3000000,Sage Care Ltd,Adults Home Care,Adult Social Care Integrated Care,"3,293.08 "
12072698,08/03/2018,06/03/2018,3000000,Sage Care Ltd,Adults Home Care,Adult Social Care Integrated Care,"3,118.70 "
12043521,07/02/2018,06/02/2018,3000000,Sage Care Ltd,Adults Home Care,Adult Social Care Integrated Care,812.36 
12072699,08/03/2018,06/03/2018,3000000,Sage Care Ltd,Adults Home Care,Adult Social Care Integrated Care,716.36 
12017933,17/01/2018,16/01/2018,3000000,Sage Care Ltd,Adults Home Care,Adult Social Care Integrated Care,"1,012.41 "
12043523,07/02/2018,06/02/2018,3000000,Sage Care Ltd,Adults Home Care,Adult Social Care Integrated Care,949.97 
12072701,08/03/2018,06/03/2018,3000000,Sage Care Ltd,Adults Home Care,Adult Social Care Integrated Care,814.62 
12017934,17/01/2018,16/01/2018,3000000,Sage Care Ltd,Adults Home Care,Adult Social Care Integrated Care,"1,078.77 "
12043524,07/02/2018,06/02/2018,3000000,Sage Care Ltd,Adults Home Care,Adult Social Care Integrated Care,"1,088.90 "
12072702,08/03/2018,06/03/2018,3000000,Sage Care Ltd,Adults Home Care,Adult Social Care Integrated Care,"1,095.27 "
12017936,17/01/2018,16/01/2018,3000000,Sage Care Ltd,Adults Home Care,Adult Social Care Integrated Care,"1,893.41 "
12043526,07/02/2018,06/02/2018,3000000,Sage Care Ltd,Adults Home Care,Adult Social Care Integrated Care,"1,918.11 "
12072706,08/03/2018,06/03/2018,3000000,Sage Care Ltd,Adults Home Care,Adult Social Care Integrated Care,"1,934.14 "
12017938,17/01/2018,16/01/2018,3000000,Sage Care Ltd,Adults Home Care,Adult Social Care Integrated Care,"1,973.69 "
12043528,07/02/2018,06/02/2018,3000000,Sage Care Ltd,Adults Home Care,Adult Social Care Integrated Care,"2,011.77 "
12072708,08/03/2018,06/03/2018,3000000,Sage Care Ltd,Adults Home Care,Adult Social Care Integrated Care,"1,990.22 "
12017939,17/01/2018,16/01/2018,3000000,Sage Care Ltd,Adults Home Care,Adult Social Care Integrated Care,917.72 
12043529,07/02/2018,06/02/2018,3000000,Sage Care Ltd,Adults Home Care,Adult Social Care Integrated Care,"1,491.30 "
12017941,17/01/2018,16/01/2018,3000000,Sage Care Ltd,Adults Home Care,Adult Social Care Integrated Care,644.09 
12043530,07/02/2018,06/02/2018,3000000,Sage Care Ltd,Adults Home Care,Adult Social Care Integrated Care,785.70 
12072710,08/03/2018,06/03/2018,3000000,Sage Care Ltd,Adults Home Care,Adult Social Care Integrated Care,"1,003.60 "
12043531,07/02/2018,06/02/2018,3000000,Sage Care Ltd,Adults Home Care,Adult Social Care Integrated Care,"2,808.71 "
12072711,08/03/2018,06/03/2018,3000000,Sage Care Ltd,Adults Home Care,Adult Social Care Integrated Care,"3,038.32 "
12072713,08/03/2018,06/03/2018,3000000,Sage Care Ltd,Adults Home Care,Adult Social Care Integrated Care,953.86 
12017943,17/01/2018,16/01/2018,3000000,Sage Care Ltd,Adults Home Care,Adult Social Care Integrated Care,678.69 
12043533,07/02/2018,06/02/2018,3000000,Sage Care Ltd,Adults Home Care,Adult Social Care Integrated Care,851.28 
12072714,08/03/2018,06/03/2018,3000000,Sage Care Ltd,Adults Home Care,Adult Social Care Integrated Care,"1,045.39 "
12017944,17/01/2018,16/01/2018,3000000,Sage Care Ltd,Adults Home Care,Adult Social Care Integrated Care,"1,389.49 "
12043534,07/02/2018,06/02/2018,3000000,Sage Care Ltd,Adults Home Care,Adult Social Care Integrated Care,"1,416.81 "
12072715,08/03/2018,06/03/2018,3000000,Sage Care Ltd,Adults Home Care,Adult Social Care Integrated Care,658.38 
12017946,17/01/2018,16/01/2018,3000000,Sage Care Ltd,Adults Home Care,Adult Social Care Integrated Care,"1,010.27 "
12043535,07/02/2018,06/02/2018,3000000,Sage Care Ltd,Adults Home Care,Adult Social Care Integrated Care,"1,001.48 "
12072716,08/03/2018,06/03/2018,3000000,Sage Care Ltd,Adults Home Care,Adult Social Care Integrated Care,"1,005.11 "
12017949,17/01/2018,16/01/2018,3000000,Sage Care Ltd,Adults Home Care,Adult Social Care Integrated Care,"1,913.37 "
12043538,07/02/2018,06/02/2018,3000000,Sage Care Ltd,Adults Home Care,Adult Social Care Integrated Care,"1,935.41 "
12072719,08/03/2018,06/03/2018,3000000,Sage Care Ltd,Adults Home Care,Adult Social Care Integrated Care,"1,944.22 "
12017950,17/01/2018,16/01/2018,3000000,Sage Care Ltd,Adults Home Care,Adult Social Care Integrated Care,"1,057.44 "
12043539,07/02/2018,06/02/2018,3000000,Sage Care Ltd,Adults Home Care,Adult Social Care Integrated Care,"1,050.45 "
12072720,08/03/2018,06/03/2018,3000000,Sage Care Ltd,Adults Home Care,Adult Social Care Integrated Care,"1,032.04 "
12017952,17/01/2018,16/01/2018,3000000,Sage Care Ltd,Adults Home Care,Adult Social Care Integrated Care,"1,924.53 "
12043540,07/02/2018,06/02/2018,3000000,Sage Care Ltd,Adults Home Care,Adult Social Care Integrated Care,"1,108.77 "
12017953,17/01/2018,16/01/2018,3000000,Sage Care Ltd,Adults Home Care,Adult Social Care Integrated Care,"1,095.74 "
12043541,07/02/2018,06/02/2018,3000000,Sage Care Ltd,Adults Home Care,Adult Social Care Integrated Care,"1,087.78 "
12072721,08/03/2018,06/03/2018,3000000,Sage Care Ltd,Adults Home Care,Adult Social Care Integrated Care,"1,090.70 "
12017954,17/01/2018,16/01/2018,3000000,Sage Care Ltd,Adults Home Care,Adult Social Care Integrated Care,"3,459.57 "
12043542,07/02/2018,06/02/2018,3000000,Sage Care Ltd,Adults Home Care,Adult Social Care Integrated Care,"3,529.32 "
12072722,08/03/2018,06/03/2018,3000000,Sage Care Ltd,Adults Home Care,Adult Social Care Integrated Care,"2,808.32 "
12017957,17/01/2018,16/01/2018,3000000,Sage Care Ltd,Adults Home Care,Adult Social Care Integrated Care,"1,156.92 "
12043544,07/02/2018,06/02/2018,3000000,Sage Care Ltd,Adults Home Care,Adult Social Care Integrated Care,"1,173.04 "
12072724,08/03/2018,06/03/2018,3000000,Sage Care Ltd,Adults Home Care,Adult Social Care Integrated Care,"1,178.34 "
12017959,17/01/2018,16/01/2018,3000000,Sage Care Ltd,Adults Home Care,Adult Social Care Integrated Care,"4,318.31 "
12043546,07/02/2018,06/02/2018,3000000,Sage Care Ltd,Adults Home Care,Adult Social Care Integrated Care,"4,317.89 "
12072726,08/03/2018,06/03/2018,3000000,Sage Care Ltd,Adults Home Care,Adult Social Care Integrated Care,"4,312.43 "
12017960,17/01/2018,16/01/2018,3000000,Sage Care Ltd,Adults Home Care,Adult Social Care Integrated Care,534.88 
12043547,07/02/2018,06/02/2018,3000000,Sage Care Ltd,Adults Home Care,Adult Social Care Integrated Care,952.64 
12072727,08/03/2018,06/03/2018,3000000,Sage Care Ltd,Adults Home Care,Adult Social Care Integrated Care,970.14 
12017961,17/01/2018,16/01/2018,3000000,Sage Care Ltd,Adults Home Care,Adult Social Care Integrated Care,"3,300.92 "
12043548,07/02/2018,06/02/2018,3000000,Sage Care Ltd,Adults Home Care,Adult Social Care Integrated Care,"4,842.45 "
12072728,08/03/2018,06/03/2018,3000000,Sage Care Ltd,Adults Home Care,Adult Social Care Integrated Care,"2,190.72 "
12017962,17/01/2018,16/01/2018,3000000,Sage Care Ltd,Adults Home Care,Adult Social Care Integrated Care,747.80 
12043549,07/02/2018,06/02/2018,3000000,Sage Care Ltd,Adults Home Care,Adult Social Care Integrated Care,"1,040.93 "
12072729,08/03/2018,06/03/2018,3000000,Sage Care Ltd,Adults Home Care,Adult Social Care Integrated Care,"1,054.64 "
12017963,17/01/2018,16/01/2018,3000000,Sage Care Ltd,Adults Home Care,Adult Social Care Integrated Care,615.63 
12043550,07/02/2018,06/02/2018,3000000,Sage Care Ltd,Adults Home Care,Adult Social Care Integrated Care,681.54 
12072730,08/03/2018,06/03/2018,3000000,Sage Care Ltd,Adults Home Care,Adult Social Care Integrated Care,692.99 
12017964,17/01/2018,16/01/2018,3000000,Sage Care Ltd,Adults Home Care,Adult Social Care Integrated Care,832.04 
12043551,07/02/2018,06/02/2018,3000000,Sage Care Ltd,Adults Home Care,Adult Social Care Integrated Care,"1,358.92 "
12072731,08/03/2018,06/03/2018,3000000,Sage Care Ltd,Adults Home Care,Adult Social Care Integrated Care,"1,374.15 "
12017965,17/01/2018,16/01/2018,3000000,Sage Care Ltd,Adults Home Care,Adult Social Care Integrated Care,"1,212.50 "
12043552,07/02/2018,06/02/2018,3000000,Sage Care Ltd,Adults Home Care,Adult Social Care Integrated Care,"2,332.91 "
12017967,17/01/2018,16/01/2018,3000000,Sage Care Ltd,Adults Home Care,Adult Social Care Integrated Care,505.33 
12043553,07/02/2018,06/02/2018,3000000,Sage Care Ltd,Adults Home Care,Adult Social Care Integrated Care,507.35 
12017968,17/01/2018,16/01/2018,3000000,Sage Care Ltd,Adults Home Care,Adult Social Care Integrated Care,"1,347.75 "
12043554,07/02/2018,06/02/2018,3000000,Sage Care Ltd,Adults Home Care,Adult Social Care Integrated Care,"1,056.94 "
12072733,08/03/2018,06/03/2018,3000000,Sage Care Ltd,Adults Home Care,Adult Social Care Integrated Care,"2,076.36 "
12017969,17/01/2018,16/01/2018,3000000,Sage Care Ltd,Adults Home Care,Adult Social Care Integrated Care,"1,196.02 "
12043555,07/02/2018,06/02/2018,3000000,Sage Care Ltd,Adults Home Care,Adult Social Care Integrated Care,"1,206.26 "
12072734,08/03/2018,06/03/2018,3000000,Sage Care Ltd,Adults Home Care,Adult Social Care Integrated Care,"1,225.32 "
12043558,07/02/2018,06/02/2018,3000000,Sage Care Ltd,Adults Home Care,Adult Social Care Integrated Care,713.71 
12072738,08/03/2018,06/03/2018,3000000,Sage Care Ltd,Adults Home Care,Adult Social Care Integrated Care,535.81 
12017974,17/01/2018,16/01/2018,3000000,Sage Care Ltd,Adults Home Care,Adult Social Care Integrated Care,"1,299.21 "
12043560,07/02/2018,06/02/2018,3000000,Sage Care Ltd,Adults Home Care,Adult Social Care Integrated Care,"1,899.26 "
12072740,08/03/2018,06/03/2018,3000000,Sage Care Ltd,Adults Home Care,Adult Social Care Integrated Care,735.84 
12017976,17/01/2018,16/01/2018,3000000,Sage Care Ltd,Adults Home Care,Adult Social Care Integrated Care,"1,003.05 "
12043562,07/02/2018,06/02/2018,3000000,Sage Care Ltd,Adults Home Care,Adult Social Care Integrated Care,"1,141.09 "
12072742,08/03/2018,06/03/2018,3000000,Sage Care Ltd,Adults Home Care,Adult Social Care Integrated Care,"1,150.37 "
12017977,17/01/2018,16/01/2018,3000000,Sage Care Ltd,Adults Home Care,Adult Social Care Integrated Care,"1,206.52 "
12043563,07/02/2018,06/02/2018,3000000,Sage Care Ltd,Adults Home Care,Adult Social Care Integrated Care,"1,194.11 "
12072743,08/03/2018,06/03/2018,3000000,Sage Care Ltd,Adults Home Care,Adult Social Care Integrated Care,"1,194.18 "
12017978,17/01/2018,16/01/2018,3000000,Sage Care Ltd,Adults Home Care,Adult Social Care Integrated Care,689.95 
12043564,07/02/2018,06/02/2018,3000000,Sage Care Ltd,Adults Home Care,Adult Social Care Integrated Care,790.21 
12072744,08/03/2018,06/03/2018,3000000,Sage Care Ltd,Adults Home Care,Adult Social Care Integrated Care,833.78 
12072745,08/03/2018,06/03/2018,3000000,Sage Care Ltd,Adults Home Care,Adult Social Care Integrated Care,755.22 
12072748,08/03/2018,06/03/2018,3000000,Sage Care Ltd,Adults Home Care,Adult Social Care Integrated Care,508.13 
3376666,05/03/2018,15/12/2016,3000002,Gva Grimley Ltd,Valuation Fees,Property Investments and Estates,"4,000.00 "
3388724,24/01/2018,25/08/2017,3000002,Gva Grimley Ltd,Valuation Fees,Property Investments and Estates,"4,400.00 "
3374493,25/01/2018,29/09/2017,3000002,Gva Grimley Ltd,Valuation Fees,Property Investments and Estates,"8,500.00 "
3389857,29/01/2018,07/11/2017,3000002,Gva Grimley Ltd,Consultancy: Not Elsewhere Classified (Hired & Contr - Consultancy),Property Investments and Estates,"12,610.00 "
3381372,18/01/2018,30/11/2017,3000002,Gva Grimley Ltd,Consultancy: Not Elsewhere Classified (Hired & Contr - Consultancy),Property Investments and Estates,"4,504.00 "
3380635,25/01/2018,30/11/2017,3000002,Gva Grimley Ltd,Valuation Fees,Property Investments and Estates,"2,550.00 "
3380636,04/01/2018,30/11/2017,3000002,Gva Grimley Ltd,Valuation Fees,Property Investments and Estates,680.00 
3378264,09/01/2018,21/12/2017,3000002,Gva Grimley Ltd,Professional Fees (non-Legal),Property Investments and Estates,"3,000.00 "
3383091,29/01/2018,31/12/2017,3000002,Gva Grimley Ltd,Consultancy: Not Elsewhere Classified (Hired & Contr - Consultancy),Property Investments and Estates,"4,734.36 "
3381369,23/01/2018,31/12/2017,3000002,Gva Grimley Ltd,Valuation Fees,Property Investments and Estates,"40,162.50 "
3381370,24/01/2018,31/12/2017,3000002,Gva Grimley Ltd,Valuation Fees,Property Investments and Estates,"1,875.00 "
3383092,24/01/2018,31/12/2017,3000002,Gva Grimley Ltd,Consultancy: Not Elsewhere Classified (Hired & Contr - Consultancy),Property Investments and Estates,"40,000.00 "
3374706,03/01/2018,11/12/2017,3000002,Gva Grimley Ltd,Consultancy: Not Elsewhere Classified (Hired & Contr - Consultancy),Property Investments and Estates,"3,830.00 "
3378273,02/02/2018,20/12/2017,3000002,Gva Grimley Ltd,Valuation Fees,Property Investments and Estates,"2,099.96 "
3378271,10/01/2018,20/12/2017,3000002,Gva Grimley Ltd,Valuation Fees,Property Investments and Estates,"1,825.00 "
3378274,13/02/2018,20/12/2017,3000002,Gva Grimley Ltd,Valuation Fees,Property Investments and Estates,825.00 
3378272,10/01/2018,20/12/2017,3000002,Gva Grimley Ltd,Valuation Fees,Property Investments and Estates,540.00 
3378263,03/01/2018,20/12/2017,3000002,Gva Grimley Ltd,Valuation Fees,Property Investments and Estates,"2,550.00 "
3381371,02/02/2018,28/12/2017,3000002,Gva Grimley Ltd,Valuation Fees,Property Investments and Estates,"1,800.00 "
3380865,02/02/2018,28/12/2017,3000002,Gva Grimley Ltd,Valuation Fees,Property Investments and Estates,"1,700.00 "
3383093,24/01/2018,29/12/2017,3000002,Gva Grimley Ltd,Consultancy: Not Elsewhere Classified (Hired & Contr - Consultancy),Property Investments and Estates,"10,000.00 "
3404512,07/03/2018,31/01/2018,3000002,Gva Grimley Ltd,Valuation Fees,Property Investments and Estates,"40,162.50 "
3389699,20/02/2018,24/01/2018,3000002,Gva Grimley Ltd,Professional Fees (non-Legal),Property Investments and Estates,"3,000.00 "
3396106,12/02/2018,30/01/2018,3000002,Gva Grimley Ltd,Valuation Fees,Property Investments and Estates,"4,540.00 "
3406535,13/03/2018,28/02/2018,3000002,Gva Grimley Ltd,Consultancy (Hired & Contr - Consultancy),Property Investments and Estates,"40,162.50 "
3403612,13/03/2018,28/02/2018,3000002,Gva Grimley Ltd,Professional Fees (non-Legal),Property Investments and Estates,"3,000.00 "
3403614,07/03/2018,28/02/2018,3000002,Gva Grimley Ltd,Valuation Fees,Property Investments and Estates,770.00 
3403371,07/03/2018,28/02/2018,3000002,Gva Grimley Ltd,Management (Hired & Contr - Consultancy),Property Investments and Estates,"3,879.74 "
3398258,05/03/2018,04/05/2017,3000004,First In Service Ltd,Repairs (Equip Catering),Children's Services Commissioning,513.08 
3375789,05/01/2018,08/12/2017,3000004,First In Service Ltd,Repairs (Equip Catering),Children's Services Commissioning,"4,060.19 "
3375790,05/01/2018,08/12/2017,3000004,First In Service Ltd,Repairs (Equip Catering),Children's Services Commissioning,"1,228.46 "
3375792,05/01/2018,08/12/2017,3000004,First In Service Ltd,Repairs (Equip Catering),Children's Services Commissioning,"1,614.63 "
3394096,23/02/2018,25/01/2018,3000004,First In Service Ltd,Repairs (Equip Catering),Children's Services Commissioning,"7,767.92 "
3394097,23/02/2018,25/01/2018,3000004,First In Service Ltd,Repairs (Equip Catering),Children's Services Commissioning,"6,882.29 "
3375791,05/01/2018,08/12/2017,3000004,First In Service Ltd,Repairs (Equip Catering),Children's Services Commissioning,502.34 
3375800,15/02/2018,13/12/2017,3000005,Wider Plan Ltd,Hired and Contracted Services,WCC People Services,"1,456.27 "
3382247,26/01/2018,04/01/2018,3000005,Wider Plan Ltd,Hired and Contracted Services,WCC People Services,"20,321.88 "
3385325,26/01/2018,10/01/2018,3000005,Wider Plan Ltd,Hired and Contracted Services,WCC People Services,"1,456.27 "
3393399,15/02/2018,04/02/2018,3000005,Wider Plan Ltd,Hired and Contracted Services,WCC People Services,"20,201.86 "
3396741,26/02/2018,11/02/2018,3000005,Wider Plan Ltd,Hired and Contracted Services,WCC People Services,"1,456.27 "
3405268,15/03/2018,05/03/2018,3000005,Wider Plan Ltd,Hired and Contracted Services,WCC People Services,"20,571.98 "
3382248,01/02/2018,04/01/2018,3000008,Pellings LLP,Professional Fees (non-Legal),HRA City West Homes,570.00 
3385955,15/01/2018,31/10/2017,3000012,Marston Group Ltd,Transport Operator Payments-Unspecified,Parking,"1,194.20 "
3385606,07/02/2018,10/01/2018,3000012,Marston Group Ltd,Transport Operator Payments-Unspecified,Parking,"10,336.99 "
3369114,19/01/2018,30/11/2017,3000014,Frankham Consultancy Group Ltd,Professional Fees (non-Legal),HRA City West Homes,"1,620.30 "
3379235,18/01/2018,21/12/2017,3000014,Frankham Consultancy Group Ltd,Consultants/Consultation,HRA City West Homes,"2,800.00 "
3384015,18/01/2018,28/12/2017,3000015,Capita Business Services Ltd,Council Tax & Business Rates (Hired & Contr - Fin'l Services),Revenues and Benefits,"2,000.00 "
3383095,23/01/2018,02/01/2018,3000015,Capita Business Services Ltd,Financial Servs: Not Elsewhere Classified (Hired & Contr - Fin'l Services),Revenues and Benefits,"568,908.00 "
3383097,23/01/2018,02/01/2018,3000015,Capita Business Services Ltd,Council Tax & Business Rates (Hired & Contr - Fin'l Services),Revenues and Benefits,"256,701.93 "
3383098,23/01/2018,02/01/2018,3000015,Capita Business Services Ltd,Legal Services (Legal Fees),Revenues and Benefits,"6,345.00 "
3383096,24/01/2018,03/01/2018,3000015,Capita Business Services Ltd,Council Tax & Business Rates (Hired & Contr - Fin'l Services),Revenues and Benefits,"2,074.63 "
3396108,12/02/2018,03/01/2018,3000015,Capita Business Services Ltd,Financial Servs: Not Elsewhere Classified (Hired & Contr - Fin'l Services),Revenues and Benefits,"25,732.00 "
3383099,24/01/2018,03/01/2018,3000015,Capita Business Services Ltd,Council Tax & Business Rates (Hired & Contr - Fin'l Services),Revenues and Benefits,"1,168.00 "
3392203,02/02/2018,09/01/2018,3000015,Capita Business Services Ltd,Council Tax & Business Rates (Hired & Contr - Fin'l Services),Revenues and Benefits,"2,298.02 "
3392926,09/02/2018,19/01/2018,3000015,Capita Business Services Ltd,Financial Servs: Not Elsewhere Classified (Hired & Contr - Fin'l Services),Revenues and Benefits,"342,099.00 "
3396742,19/02/2018,29/01/2018,3000015,Capita Business Services Ltd,Council Tax & Business Rates (Hired & Contr - Fin'l Services),Revenues and Benefits,"2,000.00 "
3394452,19/02/2018,29/01/2018,3000015,Capita Business Services Ltd,Financial Servs: Not Elsewhere Classified (Hired & Contr - Fin'l Services),Revenues and Benefits,"2,600.64 "
3395401,21/02/2018,31/01/2018,3000015,Capita Business Services Ltd,Financial Servs: Not Elsewhere Classified (Hired & Contr - Fin'l Services),Revenues and Benefits,"521,388.00 "
3393401,22/02/2018,01/02/2018,3000015,Capita Business Services Ltd,Council Tax & Business Rates (Hired & Contr - Fin'l Services),Revenues and Benefits,"256,701.93 "
3398582,22/02/2018,01/02/2018,3000015,Capita Business Services Ltd,Legal Services (Legal Fees),Revenues and Benefits,"7,180.00 "
3401713,09/03/2018,16/02/2018,3000015,Capita Business Services Ltd,Council Tax & Business Rates (Hired & Contr - Fin'l Services),Revenues and Benefits,"1,168.00 "
3402768,14/03/2018,21/02/2018,3000015,Capita Business Services Ltd,Council Tax & Business Rates (Hired & Contr - Fin'l Services),Revenues and Benefits,978.02 
3402454,14/03/2018,21/02/2018,3000015,Capita Business Services Ltd,Financial Servs: Not Elsewhere Classified (Hired & Contr - Fin'l Services),Revenues and Benefits,"2,616.12 "
3408584,15/03/2018,01/03/2018,3000015,Capita Business Services Ltd,ICT Sims License - E20,Schools,"1,970.00 "
3403616,15/03/2018,27/02/2018,3000015,Capita Business Services Ltd,Council Tax & Business Rates (Hired & Contr - Fin'l Services),Revenues and Benefits,"2,000.00 "
3405637,15/03/2018,02/03/2018,3000015,Capita Business Services Ltd,Council Tax & Business Rates (Hired & Contr - Fin'l Services),Revenues and Benefits,"1,168.00 "
3405640,15/03/2018,02/03/2018,3000015,Capita Business Services Ltd,Financial Servs: Not Elsewhere Classified (Hired & Contr - Fin'l Services),Revenues and Benefits,"545,148.00 "
3405642,15/03/2018,02/03/2018,3000015,Capita Business Services Ltd,Council Tax & Business Rates (Hired & Contr - Fin'l Services),Revenues and Benefits,"256,701.93 "
3405638,15/03/2018,02/03/2018,3000015,Capita Business Services Ltd,Legal Services (Legal Fees),Revenues and Benefits,"7,077.00 "
3405641,15/03/2018,02/03/2018,3000015,Capita Business Services Ltd,Council Tax & Business Rates (Hired & Contr - Fin'l Services),Revenues and Benefits,"2,000.00 "
3405639,15/03/2018,05/03/2018,3000015,Capita Business Services Ltd,Financial Servs: Not Elsewhere Classified (Hired & Contr - Fin'l Services),Revenues and Benefits,"1,900.00 "
3371753,26/01/2018,05/12/2017,3000022,Penna Plc,Hired and Contracted Services,Tri-Borough Treasury and Pensions,"2,650.00 "
3373299,05/01/2018,10/12/2017,3000022,Penna Plc,Recruitment & Assessment,WCC People Services,960.00 
3373300,05/01/2018,10/12/2017,3000022,Penna Plc,Recruitment & Promotional,Adult Social Care Integrated Care,"1,011.25 "
3376223,11/01/2018,14/12/2017,3000022,Penna Plc,Recruitment & Promotional,Family Services 2,"2,163.00 "
3376227,12/01/2018,15/12/2017,3000022,Penna Plc,Recruitment & Promotional,Development Planning,"2,503.90 "
3381230,30/01/2018,02/01/2018,3000022,Penna Plc,Recruitment & Assessment,WCC People Services,"2,100.00 "
12015547,17/01/2018,14/12/2017,3000024,Effectable Construction Services Ltd,Building Construction Materials Planned (R&M -Plan),HRA City West Homes,819.82 
12015547,17/01/2018,14/12/2017,3000024,Effectable Construction Services Ltd,Building Construction Materials Planned (R&M -Plan),HRA City West Homes,819.82 
12015547,17/01/2018,14/12/2017,3000024,Effectable Construction Services Ltd,Contractors,HRA City West Homes,"6,152.77 "
12015547,17/01/2018,14/12/2017,3000024,Effectable Construction Services Ltd,Building Construction Materials Reactive (R&M - React),HRA City West Homes,716.94 
12015547,17/01/2018,14/12/2017,3000024,Effectable Construction Services Ltd,Contractors,HRA City West Homes,"15,101.92 "
12015547,17/01/2018,14/12/2017,3000024,Effectable Construction Services Ltd,Building Construction Materials Planned (R&M -Plan),HRA City West Homes,"1,206.79 "
12015547,17/01/2018,14/12/2017,3000024,Effectable Construction Services Ltd,Contractors,HRA City West Homes,"2,423.30 "
12015547,17/01/2018,14/12/2017,3000024,Effectable Construction Services Ltd,Contractors,HRA City West Homes,"6,152.77 "
12015547,17/01/2018,14/12/2017,3000024,Effectable Construction Services Ltd,Building Construction Materials Reactive (R&M - React),HRA City West Homes,578.27 
12015547,17/01/2018,14/12/2017,3000024,Effectable Construction Services Ltd,Contractors,HRA City West Homes,"6,152.77 "
12015547,17/01/2018,14/12/2017,3000024,Effectable Construction Services Ltd,Contractors,HRA City West Homes,"14,645.28 "
12015547,17/01/2018,14/12/2017,3000024,Effectable Construction Services Ltd,Building Construction Materials Planned (R&M -Plan),HRA City West Homes,520.52 
12015547,17/01/2018,14/12/2017,3000024,Effectable Construction Services Ltd,Contractors,HRA City West Homes,"8,364.15 "
12015547,17/01/2018,14/12/2017,3000024,Effectable Construction Services Ltd,Building Construction Materials Planned (R&M -Plan),HRA City West Homes,975.97 
12015547,17/01/2018,14/12/2017,3000024,Effectable Construction Services Ltd,Building Construction Materials Planned (R&M -Plan),HRA City West Homes,866.17 
12015547,17/01/2018,14/12/2017,3000024,Effectable Construction Services Ltd,Building Construction Materials Reactive (R&M - React),HRA City West Homes,505.73 
12015547,17/01/2018,14/12/2017,3000024,Effectable Construction Services Ltd,Contractors,HRA City West Homes,"10,441.38 "
12015547,17/01/2018,14/12/2017,3000024,Effectable Construction Services Ltd,Contractors,HRA City West Homes,"6,152.77 "
12044533,08/02/2018,23/01/2018,3000024,Effectable Construction Services Ltd,Contractors,HRA City West Homes,"6,152.77 "
12044533,08/02/2018,23/01/2018,3000024,Effectable Construction Services Ltd,Building Construction Materials Planned (R&M -Plan),HRA City West Homes,"1,997.49 "
12044533,08/02/2018,23/01/2018,3000024,Effectable Construction Services Ltd,Building Construction Materials Planned (R&M -Plan),HRA City West Homes,825.09 
12044533,08/02/2018,23/01/2018,3000024,Effectable Construction Services Ltd,Building Construction Materials Reactive (R&M - React),HRA City West Homes,819.82 
12044533,08/02/2018,23/01/2018,3000024,Effectable Construction Services Ltd,Building Construction Materials Reactive (R&M - React),HRA City West Homes,603.28 
12044533,08/02/2018,23/01/2018,3000024,Effectable Construction Services Ltd,Building Construction Materials Reactive (R&M - React),HRA City West Homes,819.82 
12044533,08/02/2018,23/01/2018,3000024,Effectable Construction Services Ltd,Contractors,HRA City West Homes,"1,258.85 "
12044533,08/02/2018,23/01/2018,3000024,Effectable Construction Services Ltd,Building Construction Materials Planned (R&M -Plan),HRA City West Homes,"6,152.77 "
12044533,08/02/2018,23/01/2018,3000024,Effectable Construction Services Ltd,Building Construction Materials Planned (R&M -Plan),HRA City West Homes,"6,152.77 "
12044533,08/02/2018,23/01/2018,3000024,Effectable Construction Services Ltd,Building Construction Materials Reactive (R&M - React),HRA City West Homes,658.45 
12044533,08/02/2018,23/01/2018,3000024,Effectable Construction Services Ltd,Building Construction Materials Reactive (R&M - React),HRA City West Homes,520.57 
12044533,08/02/2018,23/01/2018,3000024,Effectable Construction Services Ltd,Building Construction Materials Reactive (R&M - React),HRA City West Homes,912.53 
12044533,08/02/2018,23/01/2018,3000024,Effectable Construction Services Ltd,Building Construction Materials Planned (R&M -Plan),HRA City West Homes,"3,076.38 "
12044533,08/02/2018,23/01/2018,3000024,Effectable Construction Services Ltd,Building Construction Materials Reactive (R&M - React),HRA City West Homes,658.45 
12044533,08/02/2018,23/01/2018,3000024,Effectable Construction Services Ltd,Contractors,HRA City West Homes,"8,610.96 "
12044533,08/02/2018,23/01/2018,3000024,Effectable Construction Services Ltd,Building Construction Materials Planned (R&M -Plan),HRA City West Homes,604.17 
12044533,08/02/2018,23/01/2018,3000024,Effectable Construction Services Ltd,Building Construction Materials Planned (R&M -Plan),HRA City West Homes,"2,416.38 "
12044533,08/02/2018,23/01/2018,3000024,Effectable Construction Services Ltd,Contractors,HRA City West Homes,"1,092.16 "
12044533,08/02/2018,23/01/2018,3000024,Effectable Construction Services Ltd,Contractors,HRA City West Homes,"8,815.62 "
12044533,08/02/2018,23/01/2018,3000024,Effectable Construction Services Ltd,Contractors,HRA City West Homes,"8,817.30 "
12044533,08/02/2018,23/01/2018,3000024,Effectable Construction Services Ltd,Building Construction Materials Planned (R&M -Plan),HRA City West Homes,594.21 
12044533,08/02/2018,23/01/2018,3000024,Effectable Construction Services Ltd,Building Construction Materials Planned (R&M -Plan),HRA City West Homes,"2,310.40 "
12044533,08/02/2018,23/01/2018,3000024,Effectable Construction Services Ltd,Building Construction Materials Planned (R&M -Plan),HRA City West Homes,"6,312.64 "
12044533,08/02/2018,23/01/2018,3000024,Effectable Construction Services Ltd,Building Construction Materials Reactive (R&M - React),HRA City West Homes,766.85 
12044533,08/02/2018,23/01/2018,3000024,Effectable Construction Services Ltd,Building Construction Materials Planned (R&M -Plan),Housing Operations,"1,048.48 "
12044533,08/02/2018,23/01/2018,3000024,Effectable Construction Services Ltd,Building Construction Materials Planned (R&M -Plan),HRA City West Homes,"1,300.76 "
12044533,08/02/2018,23/01/2018,3000024,Effectable Construction Services Ltd,Building Construction Materials Reactive (R&M - React),HRA City West Homes,534.46 
12044533,08/02/2018,23/01/2018,3000024,Effectable Construction Services Ltd,Building Construction Materials Reactive (R&M - React),HRA City West Homes,534.46 
12044533,08/02/2018,23/01/2018,3000024,Effectable Construction Services Ltd,Building Construction Materials Reactive (R&M - React),HRA City West Homes,819.82 
12057443,23/02/2018,01/02/2018,3000024,Effectable Construction Services Ltd,Contractors,HRA City West Homes,"4,639.13 "
12057443,23/02/2018,01/02/2018,3000024,Effectable Construction Services Ltd,Contractors,HRA City West Homes,"2,682.36 "
12057443,23/02/2018,01/02/2018,3000024,Effectable Construction Services Ltd,Contractors,HRA City West Homes,"6,152.77 "
12057443,23/02/2018,01/02/2018,3000024,Effectable Construction Services Ltd,Contractors,HRA City West Homes,"6,152.77 "
12057443,23/02/2018,01/02/2018,3000024,Effectable Construction Services Ltd,Contractors,HRA City West Homes,"6,859.16 "
12057443,23/02/2018,01/02/2018,3000024,Effectable Construction Services Ltd,Contractors,HRA City West Homes,"6,594.28 "
12057443,23/02/2018,01/02/2018,3000024,Effectable Construction Services Ltd,Contractors,HRA City West Homes,"5,690.72 "
12057443,23/02/2018,01/02/2018,3000024,Effectable Construction Services Ltd,Contractors,HRA City West Homes,"4,123.99 "
12057443,23/02/2018,01/02/2018,3000024,Effectable Construction Services Ltd,Building Construction Materials Planned (R&M -Plan),HRA City West Homes,"2,434.39 "
12057443,23/02/2018,01/02/2018,3000024,Effectable Construction Services Ltd,Building Construction Materials Reactive (R&M - React),HRA City West Homes,853.28 
12057443,23/02/2018,01/02/2018,3000024,Effectable Construction Services Ltd,Building Construction Materials Planned (R&M -Plan),HRA City West Homes,"1,173.02 "
12057443,23/02/2018,01/02/2018,3000024,Effectable Construction Services Ltd,Building Construction Materials Planned (R&M -Plan),HRA City West Homes,"13,088.15 "
12057443,23/02/2018,01/02/2018,3000024,Effectable Construction Services Ltd,Building Construction Materials Reactive (R&M - React),HRA City West Homes,609.82 
12057443,23/02/2018,01/02/2018,3000024,Effectable Construction Services Ltd,Contractors,HRA City West Homes,"6,594.28 "
12057443,23/02/2018,01/02/2018,3000024,Effectable Construction Services Ltd,Contractors,HRA City West Homes,"6,152.77 "
12057443,23/02/2018,01/02/2018,3000024,Effectable Construction Services Ltd,Contractors,HRA City West Homes,"6,152.77 "
12057443,23/02/2018,01/02/2018,3000024,Effectable Construction Services Ltd,Building Construction Materials Reactive (R&M - React),HRA City West Homes,657.69 
12057443,23/02/2018,01/02/2018,3000024,Effectable Construction Services Ltd,Contractors,HRA City West Homes,"22,978.90 "
12057443,23/02/2018,01/02/2018,3000024,Effectable Construction Services Ltd,Building Construction Materials Reactive (R&M - React),HRA City West Homes,708.28 
12057443,23/02/2018,01/02/2018,3000024,Effectable Construction Services Ltd,Contractors,HRA City West Homes,"6,881.01 "
12057443,23/02/2018,01/02/2018,3000024,Effectable Construction Services Ltd,Building Construction Materials Planned (R&M -Plan),HRA City West Homes,"3,853.15 "
12057443,23/02/2018,01/02/2018,3000024,Effectable Construction Services Ltd,Building Construction Materials Reactive (R&M - React),HRA City West Homes,677.91 
12057443,23/02/2018,01/02/2018,3000024,Effectable Construction Services Ltd,Building Construction Materials Reactive (R&M - React),HRA City West Homes,819.82 
12057443,23/02/2018,01/02/2018,3000024,Effectable Construction Services Ltd,Building Construction Materials Reactive (R&M - React),HRA City West Homes,819.82 
12057443,23/02/2018,01/02/2018,3000024,Effectable Construction Services Ltd,Contractors,HRA City West Homes,"6,152.77 "
12057443,23/02/2018,01/02/2018,3000024,Effectable Construction Services Ltd,Contractors,HRA City West Homes,"8,577.34 "
12057443,23/02/2018,01/02/2018,3000024,Effectable Construction Services Ltd,Contractors,HRA City West Homes,"6,234.64 "
12057443,23/02/2018,01/02/2018,3000024,Effectable Construction Services Ltd,Building Construction Materials Reactive (R&M - React),HRA City West Homes,669.49 
12057443,23/02/2018,01/02/2018,3000024,Effectable Construction Services Ltd,Building Construction Materials Reactive (R&M - React),HRA City West Homes,819.82 
12057443,23/02/2018,01/02/2018,3000024,Effectable Construction Services Ltd,Building Construction Materials Reactive (R&M - React),HRA City West Homes,530.07 
12075048,12/03/2018,01/03/2018,3000024,Effectable Construction Services Ltd,Building Construction Materials Planned (R&M -Plan),HRA City West Homes,"6,594.28 "
12075048,12/03/2018,01/03/2018,3000024,Effectable Construction Services Ltd,Building Construction Materials Reactive (R&M - React),HRA City West Homes,669.49 
12075048,12/03/2018,01/03/2018,3000024,Effectable Construction Services Ltd,Building Construction Materials Reactive (R&M - React),HRA City West Homes,"6,152.77 "
12075048,12/03/2018,01/03/2018,3000024,Effectable Construction Services Ltd,Building Construction Materials Reactive (R&M - React),HRA City West Homes,726.11 
12075048,12/03/2018,01/03/2018,3000024,Effectable Construction Services Ltd,Building Construction Materials Planned (R&M -Plan),HRA City West Homes,"6,152.77 "
12075048,12/03/2018,01/03/2018,3000024,Effectable Construction Services Ltd,Building Construction Materials Planned (R&M -Plan),HRA City West Homes,"7,108.35 "
12075048,12/03/2018,01/03/2018,3000024,Effectable Construction Services Ltd,Building Construction Materials Planned (R&M -Plan),HRA City West Homes,"3,929.06 "
12075048,12/03/2018,01/03/2018,3000024,Effectable Construction Services Ltd,Building Construction Materials Reactive (R&M - React),HRA City West Homes,"6,380.11 "
12075048,12/03/2018,01/03/2018,3000024,Effectable Construction Services Ltd,Building Construction Materials Reactive (R&M - React),HRA City West Homes,"6,152.77 "
12075048,12/03/2018,01/03/2018,3000024,Effectable Construction Services Ltd,Building Construction Materials Planned (R&M -Plan),HRA City West Homes,"6,152.77 "
12075048,12/03/2018,01/03/2018,3000024,Effectable Construction Services Ltd,Building Construction Materials Reactive (R&M - React),Housing Operations,"6,152.77 "
12075048,12/03/2018,01/03/2018,3000024,Effectable Construction Services Ltd,Building Construction Materials Reactive (R&M - React),HRA City West Homes,"6,152.77 "
12075048,12/03/2018,01/03/2018,3000024,Effectable Construction Services Ltd,Building Construction Materials Reactive (R&M - React),HRA City West Homes,"3,076.38 "
12075048,12/03/2018,01/03/2018,3000024,Effectable Construction Services Ltd,Building Construction Materials Reactive (R&M - React),HRA City West Homes,"7,221.69 "
12075048,12/03/2018,01/03/2018,3000024,Effectable Construction Services Ltd,Building Construction Materials Reactive (R&M - React),HRA City West Homes,846.70 
12075048,12/03/2018,01/03/2018,3000024,Effectable Construction Services Ltd,Building Construction Materials Reactive (R&M - React),HRA City West Homes,500.06 
12075048,12/03/2018,01/03/2018,3000024,Effectable Construction Services Ltd,Building Construction Materials Reactive (R&M - React),HRA City West Homes,609.82 
12075048,12/03/2018,01/03/2018,3000024,Effectable Construction Services Ltd,Building Construction Materials Reactive (R&M - React),HRA City West Homes,"9,399.16 "
12075048,12/03/2018,01/03/2018,3000024,Effectable Construction Services Ltd,Building Construction Materials Reactive (R&M - React),HRA City West Homes,"2,549.09 "
12075048,12/03/2018,01/03/2018,3000024,Effectable Construction Services Ltd,Building Construction Materials Reactive (R&M - React),HRA City West Homes,733.92 
12075048,12/03/2018,01/03/2018,3000024,Effectable Construction Services Ltd,Building Construction Materials Reactive (R&M - React),HRA City West Homes,629.26 
12075048,12/03/2018,01/03/2018,3000024,Effectable Construction Services Ltd,Building Construction Materials Reactive (R&M - React),HRA City West Homes,687.57 
12075048,12/03/2018,01/03/2018,3000024,Effectable Construction Services Ltd,Contractors,HRA City West Homes,"9,301.10 "
12075048,12/03/2018,01/03/2018,3000024,Effectable Construction Services Ltd,Contractors,HRA City West Homes,"1,623.16 "
12075048,12/03/2018,01/03/2018,3000024,Effectable Construction Services Ltd,Building Construction Materials Planned (R&M -Plan),HRA City West Homes,"6,152.77 "
12075048,12/03/2018,01/03/2018,3000024,Effectable Construction Services Ltd,Building Construction Materials Reactive (R&M - React),HRA City West Homes,"1,263.15 "
12075048,12/03/2018,01/03/2018,3000024,Effectable Construction Services Ltd,Building Construction Materials Reactive (R&M - React),HRA City West Homes,611.67 
12075048,12/03/2018,01/03/2018,3000024,Effectable Construction Services Ltd,Contractors,HRA City West Homes,"6,343.63 "
12075048,12/03/2018,01/03/2018,3000024,Effectable Construction Services Ltd,Contractors,HRA City West Homes,"11,663.57 "
12075048,12/03/2018,01/03/2018,3000024,Effectable Construction Services Ltd,Building Construction Materials Planned (R&M -Plan),HRA City West Homes,"6,152.77 "
12075048,12/03/2018,01/03/2018,3000024,Effectable Construction Services Ltd,Building Construction Materials Planned (R&M -Plan),HRA City West Homes,838.35 
12075048,12/03/2018,01/03/2018,3000024,Effectable Construction Services Ltd,Building Construction Materials Planned (R&M -Plan),HRA City West Homes,"6,380.11 "
12075048,12/03/2018,01/03/2018,3000024,Effectable Construction Services Ltd,Building Construction Materials Planned (R&M -Plan),HRA City West Homes,"6,152.77 "
12075048,12/03/2018,01/03/2018,3000024,Effectable Construction Services Ltd,Building Construction Materials Reactive (R&M - React),Housing Operations,"3,076.38 "
12075048,12/03/2018,01/03/2018,3000024,Effectable Construction Services Ltd,Building Construction Materials Reactive (R&M - React),HRA City West Homes,"3,929.06 "
12075048,12/03/2018,01/03/2018,3000024,Effectable Construction Services Ltd,Building Construction Materials Reactive (R&M - React),HRA City West Homes,"2,423.30 "
12075048,12/03/2018,01/03/2018,3000024,Effectable Construction Services Ltd,Building Construction Materials Reactive (R&M - React),HRA City West Homes,715.92 
12075048,12/03/2018,01/03/2018,3000024,Effectable Construction Services Ltd,Building Construction Materials Planned (R&M -Plan),HRA City West Homes,"1,943.59 "
12075048,12/03/2018,01/03/2018,3000024,Effectable Construction Services Ltd,Building Construction Materials Reactive (R&M - React),HRA City West Homes,"17,466.95 "
3397606,15/02/2018,30/11/2017,3000024,Effectable Construction Services Ltd,Refurbishment,Public Protection and Licensing,"6,752.00 "
3398261,19/02/2018,30/11/2017,3000024,Effectable Construction Services Ltd,Refurbishment,Public Protection and Licensing,617.71 
3407663,15/03/2018,15/02/2018,3000024,Effectable Construction Services Ltd,Refurbishment,Public Protection and Licensing,"7,941.00 "
3396319,14/02/2018,05/02/2018,3000027,British Gas,Electricity -E16,Schools,"1,945.97 "
3393285,07/02/2018,29/01/2018,3000027,British Gas,Electricity -E16,Schools,"1,294.27 "
3385957,16/01/2018,20/12/2017,3000027,British Gas,Gas (Energy),Property Investments and Estates,"42,929.20 "
3403619,05/03/2018,30/01/2018,3000027,British Gas,Electricity -E16,Schools,"1,008.27 "
3397337,14/02/2018,30/01/2018,3000027,British Gas,Electricity -E16,Schools,838.17 
3398889,02/03/2018,12/02/2018,3000027,British Gas,Gas (Energy),HRA City West Homes,"118,025.07 "
3407268,12/03/2018,01/03/2018,3000027,British Gas,Electricity -E16,Schools,866.73 
3389954,02/03/2018,10/01/2018,3000027,British Gas,Gas (Energy),HRA City West Homes,"139,912.79 "
3376780,02/01/2018,30/11/2017,3000027,British Gas,Electricity -E16,Schools,"1,020.93 "
3407266,13/03/2018,23/02/2018,3000027,British Gas,Electricity -E16,Schools,937.54 
3393286,06/02/2018,26/01/2018,3000027,British Gas,Electricity -E16,Schools,856.18 
3391731,01/02/2018,29/12/2017,3000027,British Gas,Electricity -E16,Schools,925.04 
3384016,10/01/2018,29/12/2017,3000027,British Gas,Electricity -E16,Schools,845.58 
3409103,15/03/2018,04/01/2018,3000027,British Gas,Electricity -E16,Schools,"1,590.90 "
3386358,16/01/2018,05/01/2018,3000027,British Gas,Electricity -E16,Schools,"1,200.12 "
3383979,18/01/2018,19/12/2017,3000027,British Gas,Electricity -E16,Schools,699.73 
3409723,15/03/2018,05/03/2018,3000027,British Gas,Electricity -E16,Schools,"1,669.86 "
3408594,13/03/2018,08/02/2018,3000027,British Gas,Electricity -E16,Schools,"1,376.37 "
3408585,13/03/2018,05/03/2018,3000027,British Gas,Electricity -E16,Schools,"1,206.25 "
3409968,16/03/2018,15/03/2018,3000030,Personal detail - redacted,Building Construction Materials Planned (R&M -Plan),HRA City West Homes,"197,224.28 "
3409968,16/03/2018,15/03/2018,3000030,Personal detail - redacted,Building Construction Materials Planned (R&M -Plan),HRA City West Homes,"986,121.38 "
3377383,12/01/2018,15/12/2017,3000046,Socitm Ltd,Subscriptions,TB Information Services and Strategy,"7,995.00 "
3373978,09/01/2018,10/12/2017,3000049,Health Education Partnership Limited,Public Health (Hired & Contr - Healthcare),Public Health,"6,261.33 "
3381975,02/02/2018,03/01/2018,3000049,Health Education Partnership Limited,Public Health (Hired & Contr - Healthcare),Public Health,"6,261.33 "
3392933,02/03/2018,02/02/2018,3000049,Health Education Partnership Limited,Public Health (Hired & Contr - Healthcare),Public Health,"6,261.33 "
3400106,15/03/2018,20/02/2018,3000049,Health Education Partnership Limited,Public Health (Hired & Contr - Healthcare),Public Health,"12,522.66 "
3060247,14/03/2018,17/08/2015,3000051,BT Global Services,Hired and Contracted Services,Managed Services Framework ICF,"189,127.58 "
3161712,14/03/2018,20/08/2015,3000051,BT Global Services,Hired and Contracted Services,Managed Services Framework ICF,"132,342.37 "
3075134,14/03/2018,21/08/2015,3000051,BT Global Services,Hired and Contracted Services,Managed Services Framework ICF,"-23,657.95 "
3074366,14/03/2018,03/09/2015,3000051,BT Global Services,Hired and Contracted Services,Managed Services Framework ICF,"114,184.60 "
3078414,14/03/2018,11/09/2015,3000051,BT Global Services,Hired and Contracted Services,Managed Services Framework ICF,"104,333.44 "
3090932,14/03/2018,05/11/2015,3000051,BT Global Services,Hired and Contracted Services,Managed Services Framework ICF,"111,976.64 "
3090933,14/03/2018,05/11/2015,3000051,BT Global Services,Hired and Contracted Services,Managed Services Framework ICF,"100,681.24 "
3111077,14/03/2018,16/12/2015,3000051,BT Global Services,Hired and Contracted Services,Managed Services Framework ICF,"115,117.55 "
3114357,14/03/2018,23/12/2015,3000051,BT Global Services,Hired and Contracted Services,Managed Services Framework ICF,"56,716.98 "
3115614,14/03/2018,23/12/2015,3000051,BT Global Services,Hired and Contracted Services,Managed Services Framework ICF,"23,657.95 "
3115615,14/03/2018,23/12/2015,3000051,BT Global Services,Hired and Contracted Services,Managed Services Framework ICF,"346,383.92 "
3334309,14/03/2018,07/01/2016,3000051,BT Global Services,Hired and Contracted Services,Managed Services Framework ICF,"-752,645.87 "
3127092,14/03/2018,22/01/2016,3000051,BT Global Services,Hired and Contracted Services,Managed Services Framework ICF,"55,297.83 "
3127091,14/03/2018,25/01/2016,3000051,BT Global Services,Hired and Contracted Services,Managed Services Framework ICF,"55,711.88 "
3127090,14/03/2018,25/01/2016,3000051,BT Global Services,Hired and Contracted Services,Managed Services Framework ICF,"296,413.54 "
3334310,14/03/2018,03/02/2016,3000051,BT Global Services,Hired and Contracted Services,Managed Services Framework ICF,"-296,431.54 "
3162802,14/03/2018,03/02/2016,3000051,BT Global Services,Hired and Contracted Services,Managed Services Framework ICF,"-296,413.54 "
3127093,14/03/2018,26/01/2016,3000051,BT Global Services,Hired and Contracted Services,Managed Services Framework ICF,"308,466.36 "
3140109,14/03/2018,17/02/2016,3000051,BT Global Services,Hired and Contracted Services,Managed Services Framework ICF,"57,576.08 "
3140108,14/03/2018,17/02/2016,3000051,BT Global Services,Hired and Contracted Services,Managed Services Framework ICF,"34,545.65 "
3334311,14/03/2018,25/02/2016,3000051,BT Global Services,Hired and Contracted Services,Managed Services Framework ICF,"-115,117.55 "
3154839,14/03/2018,18/03/2016,3000051,BT Global Services,Hired and Contracted Services,Managed Services Framework ICF,"33,267.40 "
3154840,14/03/2018,18/03/2016,3000051,BT Global Services,Hired and Contracted Services,Managed Services Framework ICF,"55,445.66 "
3154846,14/03/2018,23/03/2016,3000051,BT Global Services,Hired and Contracted Services,Managed Services Framework ICF,"25,031.16 "
3154845,14/03/2018,24/03/2016,3000051,BT Global Services,Hired and Contracted Services,Managed Services Framework ICF,"89,112.50 "
3165205,14/03/2018,25/04/2016,3000051,BT Global Services,Hired and Contracted Services,Managed Services Framework ICF,"115,060.44 "
3334312,14/03/2018,27/04/2016,3000051,BT Global Services,Hired and Contracted Services,Managed Services Framework ICF,"-115,060.44 "
3163433,14/03/2018,25/04/2016,3000051,BT Global Services,Hired and Contracted Services,Managed Services Framework ICF,"57,530.22 "
3163434,14/03/2018,25/04/2016,3000051,BT Global Services,Hired and Contracted Services,Managed Services Framework ICF,"34,518.14 "
3334305,14/03/2018,10/05/2016,3000051,BT Global Services,Hired and Contracted Services,Managed Services Framework ICF,"109,711.19 "
3179600,14/03/2018,08/06/2016,3000051,BT Global Services,Hired and Contracted Services,Managed Services Framework ICF,"110,144.99 "
3195966,14/03/2018,18/07/2016,3000051,BT Global Services,Hired and Contracted Services,Managed Services Framework ICF,"105,226.69 "
3203984,14/03/2018,05/08/2016,3000051,BT Global Services,Hired and Contracted Services,Managed Services Framework ICF,"120,865.59 "
3218594,14/03/2018,08/09/2016,3000051,BT Global Services,Hired and Contracted Services,Managed Services Framework ICF,"106,173.16 "
3223465,14/03/2018,07/10/2016,3000051,BT Global Services,Hired and Contracted Services,Managed Services Framework ICF,"108,715.88 "
3234668,14/03/2018,08/11/2016,3000051,BT Global Services,Hired and Contracted Services,Managed Services Framework ICF,"104,404.84 "
3245353,14/03/2018,07/12/2016,3000051,BT Global Services,Hired and Contracted Services,Managed Services Framework ICF,"105,289.72 "
3250963,14/03/2018,22/12/2016,3000051,BT Global Services,Hired and Contracted Services,Managed Services Framework ICF,"2,490.00 "
3334306,14/03/2018,07/02/2017,3000051,BT Global Services,Hired and Contracted Services,Managed Services Framework ICF,"104,339.98 "
3334308,14/03/2018,06/03/2017,3000051,BT Global Services,Hired and Contracted Services,Managed Services Framework ICF,"106,659.18 "
3334307,14/03/2018,17/03/2017,3000051,BT Global Services,Hired and Contracted Services,Managed Services Framework ICF,"-1,461.48 "
3279003,14/03/2018,17/03/2017,3000051,BT Global Services,Hired and Contracted Services,Managed Services Framework ICF,"39,873.94 "
3289084,14/03/2018,07/04/2017,3000051,BT Global Services,Hired and Contracted Services,Managed Services Framework ICF,"110,249.09 "
3289083,14/03/2018,07/04/2017,3000051,BT Global Services,Hired and Contracted Services,Managed Services Framework ICF,"1,927.80 "
3297163,14/03/2018,05/05/2017,3000051,BT Global Services,Hired and Contracted Services,Managed Services Framework ICF,"106,875.63 "
3305850,14/03/2018,06/06/2017,3000051,BT Global Services,Hired and Contracted Services,Managed Services Framework ICF,"111,135.18 "
3320746,14/03/2018,06/07/2017,3000051,BT Global Services,Hired and Contracted Services,Managed Services Framework ICF,"116,064.22 "
3328952,14/03/2018,01/08/2017,3000051,BT Global Services,Hired and Contracted Services,Managed Services Framework ICF,"-1,549,660.70 "
3328941,14/03/2018,01/08/2017,3000051,BT Global Services,Hired and Contracted Services,Managed Services Framework ICF,"-449,201.11 "
3328951,14/03/2018,01/08/2017,3000051,BT Global Services,Hired and Contracted Services,Managed Services Framework ICF,"-476,193.05 "
3328950,14/03/2018,01/08/2017,3000051,BT Global Services,Hired and Contracted Services,Managed Services Framework ICF,"-397,130.71 "
3328949,14/03/2018,02/08/2017,3000051,BT Global Services,Hired and Contracted Services,Managed Services Framework ICF,"1,847,973.65 "
3365326,02/01/2018,20/11/2017,3000051,BT Global Services,Contractors,TB Information Services and Strategy,"1,149.60 "
3372124,04/01/2018,07/12/2017,3000051,BT Global Services,Managed service contract (BT),TB Information Services and Strategy,"2,597.08 "
3372628,04/01/2018,07/12/2017,3000051,BT Global Services,Hired and Contracted Services,Parking,"21,599.96 "
3372629,04/01/2018,07/12/2017,3000051,BT Global Services,Consultancy (Hired & Contr - Consultancy),TB Information Services and Strategy,"7,160.00 "
3372630,04/01/2018,07/12/2017,3000051,BT Global Services,Contractors,TB Information Services and Strategy,"6,950.00 "
3372632,04/01/2018,07/12/2017,3000051,BT Global Services,Hired and Contracted Services,Managed Services Framework ICF,"98,795.05 "
3384018,10/01/2018,08/12/2017,3000051,BT Global Services,Hired and Contracted Services,HRA City West Homes,"2,587.50 "
3390477,14/02/2018,15/12/2017,3000051,BT Global Services,Hired and Contracted Services,Managed Services Framework ICF,709.83 
3390478,14/02/2018,18/12/2017,3000051,BT Global Services,Hired and Contracted Services,Managed Services Framework ICF,"2,419.01 "
3392861,05/02/2018,18/12/2017,3000051,BT Global Services,Hired and Contracted Services,Corporate Finance,"4,946.55 "
3379237,19/01/2018,22/12/2017,3000051,BT Global Services,Hired and Contracted Services,TB Information Services and Strategy,"162,718.59 "
3379238,19/01/2018,22/12/2017,3000051,BT Global Services,Hired and Contracted Services,TB Information Services and Strategy,"41,830.48 "
3379772,24/01/2018,27/12/2017,3000051,BT Global Services,Contractors,TB Information Services and Strategy,"75,974.00 "
3379773,24/01/2018,27/12/2017,3000051,BT Global Services,Contractors,TB Information Services and Strategy,"42,435.00 "
3379774,24/01/2018,27/12/2017,3000051,BT Global Services,Contractors,TB Information Services and Strategy,"3,950.00 "
3379775,24/01/2018,27/12/2017,3000051,BT Global Services,Consultancy (Hired & Contr - Consultancy),TB Information Services and Strategy,"13,425.00 "
3380153,24/01/2018,27/12/2017,3000051,BT Global Services,Mobile (Telephony),TB Information Services and Strategy,"35,623.07 "
3390479,14/02/2018,04/01/2018,3000051,BT Global Services,Hired and Contracted Services,Managed Services Framework ICF,"7,106.75 "
3390480,14/02/2018,04/01/2018,3000051,BT Global Services,Hired and Contracted Services,Managed Services Framework ICF,"4,220.76 "
3384019,05/02/2018,08/01/2018,3000051,BT Global Services,Hired and Contracted Services,Managed Services Framework ICF,"98,921.54 "
3390481,21/02/2018,24/01/2018,3000051,BT Global Services,Hired and Contracted Services,TB Information Services and Strategy,"152,733.10 "
3390470,21/02/2018,24/01/2018,3000051,BT Global Services,Hired and Contracted Services,TB Information Services and Strategy,"41,418.51 "
3389331,21/02/2018,24/01/2018,3000051,BT Global Services,Computer Software,Tri-borough Libraries and Archives,"4,880.00 "
3389332,21/02/2018,24/01/2018,3000051,BT Global Services,Consultancy (Hired & Contr - Consultancy),TB Information Services and Strategy,"19,690.00 "
3389860,13/03/2018,25/01/2018,3000051,BT Global Services,Managed service contract (BT),TB Information Services and Strategy,"19,392.64 "
3389861,01/03/2018,25/01/2018,3000051,BT Global Services,Contractors,TB Information Services and Strategy,"20,370.00 "
3389863,13/03/2018,25/01/2018,3000051,BT Global Services,Contractors,TB Information Services and Strategy,"4,680.00 "
3389864,13/03/2018,25/01/2018,3000051,BT Global Services,Contractors,TB Information Services and Strategy,"5,560.00 "
3390471,08/03/2018,25/01/2018,3000051,BT Global Services,Hired and Contracted Services,TB Information Services and Strategy,"7,636.69 "
3395290,07/03/2018,07/02/2018,3000051,BT Global Services,Hired and Contracted Services,Managed Services Framework ICF,"97,455.81 "
3400110,15/03/2018,20/02/2018,3000051,BT Global Services,Application Service Provision (IT Software Maint),Revenues and Benefits,"7,491.86 "
3400111,15/03/2018,20/02/2018,3000051,BT Global Services,Hired and Contracted Services,Managed Services Framework ICF,"3,213.00 "
3402308,15/03/2018,26/02/2018,3000051,BT Global Services,Contractors,TB Information Services and Strategy,"2,780.00 "
3402456,15/03/2018,26/02/2018,3000051,BT Global Services,Managed service contract (BT),"Policy, Performance and Communications","2,630.00 "
3402457,15/03/2018,26/02/2018,3000051,BT Global Services,Mobile (Telephony),TB Information Services and Strategy,"3,832.80 "
3402459,15/03/2018,26/02/2018,3000051,BT Global Services,Education (IT Software Purch),"Policy, Performance and Communications","3,450.00 "
3402647,15/03/2018,26/02/2018,3000051,BT Global Services,Contractors,TB Information Services and Strategy,"6,295.00 "
3402648,15/03/2018,26/02/2018,3000051,BT Global Services,IT Hardware Purchase,Community Services,"10,547.46 "
3402770,15/03/2018,26/02/2018,3000051,BT Global Services,Consultancy (Hired & Contr - Consultancy),TB Information Services and Strategy,"13,425.00 "
3398891,15/03/2018,19/02/2018,3000051,BT Global Services,Design and development,City Management and Communities,"1,940.75 "
3409311,14/03/2018,14/03/2018,3000051,BT Global Services,Hired and Contracted Services,Managed Services Framework ICF,"-269,500.19 "
3409301,14/03/2018,14/03/2018,3000051,BT Global Services,Hired and Contracted Services,Managed Services Framework ICF,"-1,457,645.92 "
3392937,20/02/2018,21/01/2018,3000054,Personal detail - redacted,Traded Services - School Effectiveness -E27,Schools,900.00 
3330662,02/01/2018,11/08/2017,3000055,Thames Water Utilities Ltd (Developer Services & Infrastructure),Professional Fees (non-Legal),HRA City West Homes,"12,189.44 "
3367608,30/01/2018,23/11/2017,3000055,Thames Water Utilities Ltd (Developer Services & Infrastructure),Design and development,City Management and Communities,"24,580.55 "
3385613,08/02/2018,11/01/2018,3000055,Thames Water Utilities Ltd (Developer Services & Infrastructure),Design and development,City Management and Communities,"3,324.00 "
3401704,15/03/2018,20/02/2018,3000055,Thames Water Utilities Ltd (Developer Services & Infrastructure),Design and development,City Management and Communities,554.00 
12035641,01/02/2018,24/01/2018,3000061,Hestia Housing & Support,Adults Residential Placements,Adult Social Care Integrated Care,"1,722.00 "
12035641,01/02/2018,24/01/2018,3000061,Hestia Housing & Support,Adults Continuing Health Care Funded Placement,Adult Social Care Integrated Care,"1,722.00 "
12062795,28/02/2018,19/02/2018,3000061,Hestia Housing & Support,Adults Continuing Health Care Funded Placement,Adult Social Care Integrated Care,"3,444.00 "
12062795,28/02/2018,19/02/2018,3000061,Hestia Housing & Support,Adults Residential Placements,Adult Social Care Integrated Care,"3,444.00 "
3384020,10/01/2018,01/07/2017,3000061,Hestia Housing & Support,Hired and Contracted Services,"Policy, Performance and Communications","39,250.00 "
3384021,10/01/2018,30/09/2017,3000061,Hestia Housing & Support,Hired and Contracted Services,"Policy, Performance and Communications","39,250.00 "
3380637,29/01/2018,01/01/2018,3000061,Hestia Housing & Support,Hired and Contracted Services,"Policy, Performance and Communications","39,250.00 "
3381360,05/01/2018,15/11/2017,3000062,Peabody Trust,Refurbishment,Public Protection and Licensing,"2,500.00 "
3383731,01/02/2018,04/01/2018,3000063,Groundwork London,Professional Fees - Specialist support,HRA City West Homes,"7,643.00 "
3396494,05/03/2018,05/02/2018,3000063,Groundwork London,Training & Conferences,Place Shaping,"3,890.00 "
3397047,12/03/2018,12/02/2018,3000063,Groundwork London,Hired and Contracted Services,"Policy, Performance and Communications","27,487.00 "
3374497,09/01/2018,12/12/2017,3000066,Personal detail - redacted,Consultancy (Hired & Contr - Consultancy),Education,780.00 
3379229,12/01/2018,15/12/2017,3000066,Personal detail - redacted,Consultancy (Hired & Contr - Consultancy),Education,585.00 
3392206,22/02/2018,25/01/2018,3000066,Personal detail - redacted,Education (Hired & Contr - Educ),Education,585.00 
3393402,02/03/2018,02/02/2018,3000066,Personal detail - redacted,Consultancy (Hired & Contr - Consultancy),Education,585.00 
3399240,13/03/2018,13/02/2018,3000066,Personal detail - redacted,Consultancy (Hired & Contr - Consultancy),Education,585.00 
3381986,29/01/2018,01/01/2018,3000067,Blenheim Cdp,Public Health (Hired & Contr - Healthcare),Public Health,"40,909.08 "
3392864,01/03/2018,01/02/2018,3000067,Blenheim Cdp,Public Health (Hired & Contr - Healthcare),Public Health,"13,636.36 "
3407269,15/03/2018,01/03/2018,3000067,Blenheim Cdp,Public Health (Hired & Contr - Healthcare),Public Health,"13,636.36 "
3402650,28/02/2018,19/01/2018,3000069,Airwave Solutions Ltd,Technical Equipment (Equip Env),Public Protection and Licensing,"17,121.60 "
3368831,14/02/2018,01/11/2017,3000070,Windowflowers Ltd,Strategic Planning (Hired & Contr - Consultancy),"Policy, Performance and Communications","1,648.50 "
3368820,14/02/2018,01/11/2017,3000070,Windowflowers Ltd,Strategic Planning (Hired & Contr - Consultancy),"Policy, Performance and Communications","2,802.45 "
3368821,16/01/2018,01/11/2017,3000070,Windowflowers Ltd,Strategic Planning (Hired & Contr - Consultancy),"Policy, Performance and Communications","3,022.25 "
3368822,16/01/2018,01/11/2017,3000070,Windowflowers Ltd,Strategic Planning (Hired & Contr - Consultancy),"Policy, Performance and Communications","5,934.60 "
3368823,26/02/2018,01/11/2017,3000070,Windowflowers Ltd,Strategic Planning (Hired & Contr - Consultancy),"Policy, Performance and Communications","13,023.15 "
3368824,08/03/2018,01/11/2017,3000070,Windowflowers Ltd,Strategic Planning (Hired & Contr - Consultancy),"Policy, Performance and Communications","3,956.40 "
3409718,15/03/2018,28/02/2018,3000070,Windowflowers Ltd,Strategic Planning (Hired & Contr - Consultancy),"Policy, Performance and Communications","10,171.30 "
3406527,09/03/2018,01/02/2018,3000070,Windowflowers Ltd,Strategic Planning (Hired & Contr - Consultancy),"Policy, Performance and Communications","3,023.90 "
12021143,19/01/2018,17/01/2018,3000073,St.Christopher'S Fellowship,Placements,Family Services 1,800.00 
12048844,16/02/2018,13/02/2018,3000073,St.Christopher'S Fellowship,Placements,Family Services 1,600.00 
3381990,02/02/2018,04/01/2018,3000079,Action on Disabilty,Advice & Counselling Services (Hired & Contr - Social CommCare),Director of Integrated Commissioning,"8,000.00 "
3392333,21/02/2018,24/01/2018,3000082,LABC,Training & Conferences,Development Planning,"1,000.00 "
3380605,26/01/2018,31/12/2017,3000083,SDK Environmental Ltd,Maintenance (Ground Mtce),Waste and Parks,"5,470.00 "
3392211,28/02/2018,31/01/2018,3000083,SDK Environmental Ltd,Maintenance (Ground Mtce),Waste and Parks,"6,650.00 "
3396495,09/03/2018,09/02/2018,3000083,SDK Environmental Ltd,Maintenance (Ground Mtce),Waste and Parks,"5,470.00 "
3396496,09/03/2018,09/02/2018,3000083,SDK Environmental Ltd,Maintenance (Ground Mtce),Waste and Parks,"5,470.00 "
3383103,09/01/2018,31/12/2017,3000087,Medequip Assistive Technology Ltd,Assistive equipment and Technology,Director of Integrated Commissioning,"109,699.57 "
3383104,09/01/2018,31/12/2017,3000087,Medequip Assistive Technology Ltd,Assistive equipment and Technology,Director of Integrated Commissioning,"1,908.00 "
3393949,07/02/2018,31/01/2018,3000087,Medequip Assistive Technology Ltd,Assistive equipment and Technology,Director of Integrated Commissioning,"173,565.67 "
3404876,07/03/2018,28/02/2018,3000087,Medequip Assistive Technology Ltd,Assistive equipment and Technology,Director of Integrated Commissioning,"144,501.10 "
12065170,02/03/2018,30/11/2017,3000092,Pepper Pot Day Centre,Day Opportunities,Adult Social Care Integrated Care,810.00 
12065173,02/03/2018,31/12/2017,3000092,Pepper Pot Day Centre,Day Opportunities,Adult Social Care Integrated Care,585.00 
12065176,02/03/2018,31/01/2018,3000092,Pepper Pot Day Centre,Day Opportunities,Adult Social Care Integrated Care,810.00 
12079355,14/03/2018,28/02/2018,3000092,Pepper Pot Day Centre,Day Opportunities,Adult Social Care Integrated Care,520.00 
12076886,12/03/2018,28/02/2018,3000092,Pepper Pot Day Centre,Day Opportunities,Adult Social Care Integrated Care,720.00 
3379231,18/01/2018,21/12/2017,3000095,Kensington And Chelsea Social Council,Public Health (Hired & Contr - Healthcare),Public Health,"1,466.00 "
3397267,02/03/2018,03/02/2018,3000097,Eleanor Martlew Associates,Training & Conferences,Education,600.00 
3393288,28/02/2018,31/01/2018,3000099,London Sports Trust,Activities and Events,Community Services,"1,049.00 "
3393289,28/02/2018,31/01/2018,3000099,London Sports Trust,Activities and Events,Community Services,"2,830.00 "
12022447,23/01/2018,17/01/2018,3000102,Yarrow Housing Ltd,Adults Continuing Health Care Funded Placement,Adult Social Care Integrated Care,"9,421.32 "
12022492,23/01/2018,17/01/2018,3000102,Yarrow Housing Ltd,Adults Residential Placements,Adult Social Care Integrated Care,"9,269.24 "
12022531,23/01/2018,17/01/2018,3000102,Yarrow Housing Ltd,Adults Residential Placements,Adult Social Care Integrated Care,"15,846.40 "
12022541,23/01/2018,17/01/2018,3000102,Yarrow Housing Ltd,Adults Continuing Health Care Funded Placement,Adult Social Care Integrated Care,"9,269.24 "
12035220,01/02/2018,24/01/2018,3000102,Yarrow Housing Ltd,Adults Supported Living,Adult Social Care Integrated Care,"2,985.52 "
12035363,01/02/2018,24/01/2018,3000102,Yarrow Housing Ltd,Adults Home Care,Adult Social Care Integrated Care,843.08 
12035554,01/02/2018,24/01/2018,3000102,Yarrow Housing Ltd,Adults Supported Living,Adult Social Care Integrated Care,744.36 
12035574,01/02/2018,24/01/2018,3000102,Yarrow Housing Ltd,Adults Supported Living,Adult Social Care Integrated Care,"3,480.00 "
12035575,01/02/2018,24/01/2018,3000102,Yarrow Housing Ltd,Adults Supported Living,Adult Social Care Integrated Care,"3,387.52 "
12035576,01/02/2018,24/01/2018,3000102,Yarrow Housing Ltd,Adults Supported Living,Adult Social Care Integrated Care,"4,204.00 "
12035716,01/02/2018,24/01/2018,3000102,Yarrow Housing Ltd,Adults Supported Living,Adult Social Care Integrated Care,"7,297.56 "
12035612,01/02/2018,24/01/2018,3000102,Yarrow Housing Ltd,Adults Residential Placements,Adult Social Care Integrated Care,"8,301.92 "
12035618,01/02/2018,24/01/2018,3000102,Yarrow Housing Ltd,Adults Supported Living,Adult Social Care Integrated Care,"6,646.68 "
12035122,01/02/2018,24/01/2018,3000102,Yarrow Housing Ltd,Adults Supported Living,Adult Social Care Integrated Care,"5,563.00 "
12057011,23/02/2018,15/02/2018,3000102,Yarrow Housing Ltd,Adults Continuing Health Care Funded Placement,Adult Social Care Integrated Care,"9,421.32 "
12057055,23/02/2018,15/02/2018,3000102,Yarrow Housing Ltd,Adults Residential Placements,Adult Social Care Integrated Care,"9,269.24 "
12057093,23/02/2018,15/02/2018,3000102,Yarrow Housing Ltd,Adults Residential Placements,Adult Social Care Integrated Care,"15,846.40 "
12057103,23/02/2018,15/02/2018,3000102,Yarrow Housing Ltd,Adults Continuing Health Care Funded Placement,Adult Social Care Integrated Care,"9,269.24 "
12062437,28/02/2018,19/02/2018,3000102,Yarrow Housing Ltd,Adults Supported Living,Adult Social Care Integrated Care,"5,971.04 "
12062662,28/02/2018,19/02/2018,3000102,Yarrow Housing Ltd,Adults Home Care,Adult Social Care Integrated Care,"1,686.16 "
12062765,28/02/2018,19/02/2018,3000102,Yarrow Housing Ltd,Adults Supported Living,Adult Social Care Integrated Care,"6,960.00 "
12062765,28/02/2018,19/02/2018,3000102,Yarrow Housing Ltd,Adults Extra Care,Adult Social Care Integrated Care,800.00 
12062766,28/02/2018,19/02/2018,3000102,Yarrow Housing Ltd,Adults Supported Living,Adult Social Care Integrated Care,"6,775.04 "
12062767,28/02/2018,19/02/2018,3000102,Yarrow Housing Ltd,Adults Supported Living,Adult Social Care Integrated Care,"8,408.00 "
12062832,28/02/2018,19/02/2018,3000102,Yarrow Housing Ltd,Adults Supported Living,Adult Social Care Integrated Care,"14,595.12 "
12062334,28/02/2018,19/02/2018,3000102,Yarrow Housing Ltd,Adults Residential Placements,Adult Social Care Integrated Care,"16,603.84 "
12062340,28/02/2018,19/02/2018,3000102,Yarrow Housing Ltd,Adults Supported Living,Adult Social Care Integrated Care,"13,293.36 "
12062464,28/02/2018,19/02/2018,3000102,Yarrow Housing Ltd,Adults Supported Living,Adult Social Care Integrated Care,"11,126.00 "
12065800,05/03/2018,01/03/2018,3000102,Yarrow Housing Ltd,Adults Continuing Health Care Funded Placement,Adult Social Care Integrated Care,"9,421.32 "
12065845,05/03/2018,01/03/2018,3000102,Yarrow Housing Ltd,Adults Residential Placements,Adult Social Care Integrated Care,"9,269.24 "
12065887,05/03/2018,01/03/2018,3000102,Yarrow Housing Ltd,Adults Residential Placements,Adult Social Care Integrated Care,"15,846.40 "
12065896,05/03/2018,01/03/2018,3000102,Yarrow Housing Ltd,Adults Continuing Health Care Funded Placement,Adult Social Care Integrated Care,"9,269.24 "
12079256,14/03/2018,09/03/2018,3000102,Yarrow Housing Ltd,Adults Continuing Health Care Funded Placement,Adult Social Care Integrated Care,"9,421.32 "
12079302,14/03/2018,09/03/2018,3000102,Yarrow Housing Ltd,Adults Residential Placements,Adult Social Care Integrated Care,"9,269.24 "
12079343,14/03/2018,09/03/2018,3000102,Yarrow Housing Ltd,Adults Continuing Health Care Funded Placement,Adult Social Care Integrated Care,"9,269.24 "
12079352,14/03/2018,09/03/2018,3000102,Yarrow Housing Ltd,Adults Residential Placements,Adult Social Care Integrated Care,"15,846.40 "
3385617,18/01/2018,30/10/2017,3000104,Carter Jonas Llp,Consultancy (Hired & Contr - Consultancy),Property Investments and Estates,"4,904.50 "
3397340,26/02/2018,30/11/2017,3000104,Carter Jonas Llp,Consultancy (Hired & Contr - Consultancy),Property Investments and Estates,"4,785.50 "
3401916,01/03/2018,20/12/2017,3000104,Carter Jonas Llp,Consultancy (Hired & Contr - Consultancy),Property Investments and Estates,"2,873.00 "
3388905,19/02/2018,22/01/2018,3000104,Carter Jonas Llp,Professional Fees (non-Legal),HRA City West Homes,"8,000.00 "
3395293,28/02/2018,31/01/2018,3000104,Carter Jonas Llp,Specialist Consultants,HRA City West Homes,"4,000.00 "
3393405,28/02/2018,31/01/2018,3000104,Carter Jonas Llp,Consultancy (Hired & Contr - Consultancy),Property Investments and Estates,"4,896.00 "
3410170,16/03/2018,01/03/2018,3000104,Carter Jonas Llp,Professional Fees (non-Legal),"Growth, Planning and Housing","7,500.00 "
3381361,05/01/2018,26/02/2016,3000106,Shepherds Bush Housing Association Ltd,Temporary Accommodation,Housing Operations,"4,903.72 "
3382251,10/01/2018,03/01/2018,3000106,Shepherds Bush Housing Association Ltd,Temporary Accommodation,Housing Operations,"7,911.90 "
3399468,21/02/2018,13/02/2018,3000106,Shepherds Bush Housing Association Ltd,Temporary Accommodation,Housing Operations,"6,988.95 "
3404878,07/03/2018,21/02/2018,3000106,Shepherds Bush Housing Association Ltd,Temporary Accommodation,Housing Operations,"6,312.60 "
3404879,07/03/2018,21/02/2018,3000106,Shepherds Bush Housing Association Ltd,Temporary Accommodation,Housing Operations,"6,988.95 "
3388906,13/02/2018,08/01/2018,3000113,Opportunity For All,Training & Conferences,Public Health,"4,989.50 "
3409713,15/03/2018,03/06/2017,3000115,Westminster Society,Adults Residential Placements,Adult Social Care Integrated Care,"58,086.36 "
12073073,09/03/2018,31/08/2017,3000115,Westminster Society,Placements,Family Services 2,578.00 
12073062,09/03/2018,30/09/2017,3000115,Westminster Society,Placements,Family Services 2,680.00 
12036191,02/02/2018,30/09/2017,3000115,Westminster Society,Placements,Family Services 2,816.00 
12036198,02/02/2018,30/09/2017,3000115,Westminster Society,Placements,Family Services 2,510.00 
12073063,09/03/2018,31/10/2017,3000115,Westminster Society,Placements,Family Services 2,680.00 
12036148,02/02/2018,31/10/2017,3000115,Westminster Society,Placements,Family Services 2,816.00 
3398883,21/02/2018,27/10/2017,3000115,Westminster Society,Equipment Maintenance,Education,"2,788.44 "
12025483,24/01/2018,30/11/2017,3000115,Westminster Society,Placements,Family Services 2,544.00 
12036140,02/02/2018,30/11/2017,3000115,Westminster Society,Placements,Family Services 2,765.00 
3384874,11/01/2018,21/12/2017,3000115,Westminster Society,Training & Conferences,Education,"7,339.50 "
3380260,24/01/2018,01/01/2018,3000115,Westminster Society,Assessment services,Education,"13,333.34 "
3380261,22/01/2018,01/01/2018,3000115,Westminster Society,Assessment services,Education,"44,828.88 "
3380262,22/01/2018,01/01/2018,3000115,Westminster Society,Assessment services,Education,"18,091.13 "
3380263,22/01/2018,01/01/2018,3000115,Westminster Society,Assessment services,Education,"21,709.35 "
3380264,08/01/2018,01/01/2018,3000115,Westminster Society,Assessment services,Education,"5,250.00 "
3380265,08/01/2018,01/01/2018,3000115,Westminster Society,Community Other Short Term Care,Director of Integrated Commissioning,"84,070.12 "
3383105,12/01/2018,05/01/2018,3000115,Westminster Society,Equipment Maintenance,Director of Integrated Commissioning,"2,183.66 "
12060762,27/02/2018,31/12/2017,3000115,Westminster Society,Placements,Family Services 2,544.00 
12050503,19/02/2018,31/12/2017,3000115,Westminster Society,Placements,Family Services 2,816.00 
3391040,08/02/2018,01/02/2018,3000115,Westminster Society,Community Other Short Term Care,Director of Integrated Commissioning,"84,070.12 "
12060775,27/02/2018,14/01/2018,3000115,Westminster Society,Placements,Family Services 2,969.00 
3409709,15/03/2018,31/01/2018,3000115,Westminster Society,Strategic Planning (Hired & Contr - Consultancy),"Policy, Performance and Communications","1,573.85 "
3409709,15/03/2018,31/01/2018,3000115,Westminster Society,Strategic Planning (Hired & Contr - Consultancy),"Policy, Performance and Communications","2,098.49 "
3409709,15/03/2018,31/01/2018,3000115,Westminster Society,Strategic Planning (Hired & Contr - Consultancy),"Policy, Performance and Communications","1,573.85 "
3399243,21/02/2018,31/01/2018,3000115,Westminster Society,Element 3 - Top-up Funding,Education,"2,250.00 "
3404881,08/03/2018,01/03/2018,3000115,Westminster Society,Community Other Short Term Care,Director of Integrated Commissioning,"84,070.12 "
3408939,14/03/2018,28/02/2018,3000115,Westminster Society,Community Other Short Term Care,Director of Integrated Commissioning,"13,202.56 "
3410171,16/03/2018,14/03/2018,3000115,Westminster Society,Adults Supported Living,Adult Social Care Integrated Care,"79,347.47 "
12038418,06/02/2018,30/09/2017,3000115,Westminster Society,Day Opportunities,Adult Social Care Integrated Care,"2,822.00 "
12081173,16/03/2018,31/10/2017,3000115,Westminster Society,Day Opportunities,Adult Social Care Integrated Care,"2,822.00 "
12038419,06/02/2018,30/09/2017,3000115,Westminster Society,Day Opportunities,Adult Social Care Integrated Care,"1,768.00 "
12081179,16/03/2018,31/10/2017,3000115,Westminster Society,Day Opportunities,Adult Social Care Integrated Care,"1,768.00 "
12035152,01/02/2018,24/01/2018,3000115,Westminster Society,Adults Extra Care,Adult Social Care Integrated Care,"1,037.84 "
12035153,01/02/2018,24/01/2018,3000115,Westminster Society,Adults Extra Care,Adult Social Care Integrated Care,"3,570.32 "
12035154,01/02/2018,24/01/2018,3000115,Westminster Society,Adults Extra Care,Adult Social Care Integrated Care,"3,648.40 "
12035156,01/02/2018,24/01/2018,3000115,Westminster Society,Adults Extra Care,Adult Social Care Integrated Care,"1,460.12 "
12035157,01/02/2018,24/01/2018,3000115,Westminster Society,Adults Supported Living,Adult Social Care Integrated Care,"2,282.40 "
12035203,01/02/2018,24/01/2018,3000115,Westminster Society,Adults Supported Living,Adult Social Care Integrated Care,"1,505.72 "
12035217,01/02/2018,24/01/2018,3000115,Westminster Society,Adults Extra Care,Adult Social Care Integrated Care,"5,376.40 "
12035217,01/02/2018,24/01/2018,3000115,Westminster Society,Adults Supported Living,Adult Social Care Integrated Care,800.00 
12035221,01/02/2018,24/01/2018,3000115,Westminster Society,Adults Supported Living,Adult Social Care Integrated Care,800.00 
12035221,01/02/2018,24/01/2018,3000115,Westminster Society,Adults Extra Care,Adult Social Care Integrated Care,"4,833.76 "
12035264,01/02/2018,24/01/2018,3000115,Westminster Society,Adults Extra Care,Adult Social Care Integrated Care,"3,283.24 "
12035266,01/02/2018,24/01/2018,3000115,Westminster Society,Adults Extra Care,Adult Social Care Integrated Care,"3,257.48 "
12035269,01/02/2018,24/01/2018,3000115,Westminster Society,Adults Extra Care,Adult Social Care Integrated Care,"6,512.60 "
12035269,01/02/2018,24/01/2018,3000115,Westminster Society,Adults Residential Placements,Adult Social Care Integrated Care,700.00 
12035269,01/02/2018,24/01/2018,3000115,Westminster Society,Nursing Care Contributions,Adult Social Care Integrated Care,-537.80 
12035270,01/02/2018,24/01/2018,3000115,Westminster Society,Adults Residential Placements,Adult Social Care Integrated Care,"6,119.96 "
12035270,01/02/2018,24/01/2018,3000115,Westminster Society,Nursing Care Contributions,Adult Social Care Integrated Care,-537.76 
12035271,01/02/2018,24/01/2018,3000115,Westminster Society,Adults Supported Living,Adult Social Care Integrated Care,800.00 
12035271,01/02/2018,24/01/2018,3000115,Westminster Society,Adults Extra Care,Adult Social Care Integrated Care,"3,005.20 "
12035272,01/02/2018,24/01/2018,3000115,Westminster Society,Adults Extra Care,Adult Social Care Integrated Care,"3,385.60 "
12035272,01/02/2018,24/01/2018,3000115,Westminster Society,Adults Supported Living,Adult Social Care Integrated Care,800.00 
12035279,01/02/2018,24/01/2018,3000115,Westminster Society,Adults Extra Care,Adult Social Care Integrated Care,"3,130.04 "
12035283,01/02/2018,24/01/2018,3000115,Westminster Society,Adults Extra Care,Adult Social Care Integrated Care,"2,175.24 "
12035287,01/02/2018,24/01/2018,3000115,Westminster Society,Adults Extra Care,Adult Social Care Integrated Care,"2,984.00 "
12035287,01/02/2018,24/01/2018,3000115,Westminster Society,Adults Supported Living,Adult Social Care Integrated Care,800.00 
12035291,01/02/2018,24/01/2018,3000115,Westminster Society,Adults Extra Care,Adult Social Care Integrated Care,"4,153.64 "
12035302,01/02/2018,24/01/2018,3000115,Westminster Society,Adults Extra Care,Adult Social Care Integrated Care,"1,918.36 "
12035303,01/02/2018,24/01/2018,3000115,Westminster Society,Adults Extra Care,Adult Social Care Integrated Care,"1,769.92 "
12035310,01/02/2018,24/01/2018,3000115,Westminster Society,Adults Extra Care,Adult Social Care Integrated Care,"6,270.28 "
12035310,01/02/2018,24/01/2018,3000115,Westminster Society,Adults Residential Placements,Adult Social Care Integrated Care,"1,646.72 "
12035311,01/02/2018,24/01/2018,3000115,Westminster Society,Adults Extra Care,Adult Social Care Integrated Care,"12,562.80 "
12035311,01/02/2018,24/01/2018,3000115,Westminster Society,Adults Residential Placements,Adult Social Care Integrated Care,"1,646.72 "
12035316,01/02/2018,24/01/2018,3000115,Westminster Society,Adults Extra Care,Adult Social Care Integrated Care,"6,736.76 "
12035317,01/02/2018,24/01/2018,3000115,Westminster Society,Adults Extra Care,Adult Social Care Integrated Care,"1,664.76 "
12035343,01/02/2018,24/01/2018,3000115,Westminster Society,Adults Short Term Residential Care,Director of Integrated Commissioning,"3,300.64 "
12035359,01/02/2018,24/01/2018,3000115,Westminster Society,Adults Extra Care,Adult Social Care Integrated Care,"3,600.24 "
12035367,01/02/2018,24/01/2018,3000115,Westminster Society,Adults Extra Care,Adult Social Care Integrated Care,"6,242.00 "
12035367,01/02/2018,24/01/2018,3000115,Westminster Society,Adults Supported Living,Adult Social Care Integrated Care,800.00 
12035373,01/02/2018,24/01/2018,3000115,Westminster Society,Adults Extra Care,Adult Social Care Integrated Care,530.64 
12035374,01/02/2018,24/01/2018,3000115,Westminster Society,Adults Extra Care,Adult Social Care Integrated Care,"1,173.64 "
12035382,01/02/2018,24/01/2018,3000115,Westminster Society,Adults Extra Care,Adult Social Care Integrated Care,"5,090.52 "
12035382,01/02/2018,24/01/2018,3000115,Westminster Society,Adults Supported Living,Adult Social Care Integrated Care,800.00 
12035413,01/02/2018,24/01/2018,3000115,Westminster Society,Adults Supported Living,Adult Social Care Integrated Care,800.00 
12035413,01/02/2018,24/01/2018,3000115,Westminster Society,Adults Extra Care,Adult Social Care Integrated Care,"4,053.92 "
12035416,01/02/2018,24/01/2018,3000115,Westminster Society,Adults Extra Care,Adult Social Care Integrated Care,"4,019.60 "
12035416,01/02/2018,24/01/2018,3000115,Westminster Society,Adults Supported Living,Adult Social Care Integrated Care,800.00 
12035417,01/02/2018,24/01/2018,3000115,Westminster Society,Adults Supported Living,Adult Social Care Integrated Care,800.00 
12035417,01/02/2018,24/01/2018,3000115,Westminster Society,Adults Extra Care,Adult Social Care Integrated Care,"9,531.92 "
12035418,01/02/2018,24/01/2018,3000115,Westminster Society,Adults Extra Care,Adult Social Care Integrated Care,"2,425.56 "
12035419,01/02/2018,24/01/2018,3000115,Westminster Society,Adults Extra Care,Adult Social Care Integrated Care,"2,312.08 "
12035420,01/02/2018,24/01/2018,3000115,Westminster Society,Adults Residential Placements,Adult Social Care Integrated Care,"9,601.20 "
12035432,01/02/2018,24/01/2018,3000115,Westminster Society,Adults Extra Care,Adult Social Care Integrated Care,"2,298.76 "
12035500,01/02/2018,24/01/2018,3000115,Westminster Society,Adults Extra Care,Director of Integrated Commissioning,"11,176.84 "
12035501,01/02/2018,24/01/2018,3000115,Westminster Society,Adults Extra Care,Adult Social Care Integrated Care,"2,382.44 "
12035502,01/02/2018,24/01/2018,3000115,Westminster Society,Adults Supported Living,Adult Social Care Integrated Care,800.28 
12035502,01/02/2018,24/01/2018,3000115,Westminster Society,Adults Extra Care,Adult Social Care Integrated Care,"2,476.80 "
12035553,01/02/2018,24/01/2018,3000115,Westminster Society,Adults Extra Care,Adult Social Care Integrated Care,"2,094.24 "
12035559,01/02/2018,24/01/2018,3000115,Westminster Society,Adults Extra Care,Adult Social Care Integrated Care,"5,076.20 "
12035559,01/02/2018,24/01/2018,3000115,Westminster Society,Adults Supported Living,Adult Social Care Integrated Care,800.00 
12035569,01/02/2018,24/01/2018,3000115,Westminster Society,Adults Supported Living,Adult Social Care Integrated Care,800.00 
12035569,01/02/2018,24/01/2018,3000115,Westminster Society,Adults Extra Care,Adult Social Care Integrated Care,"4,383.52 "
12035578,01/02/2018,24/01/2018,3000115,Westminster Society,Adults Residential Placements,Adult Social Care Integrated Care,"1,646.72 "
12035578,01/02/2018,24/01/2018,3000115,Westminster Society,Adults Extra Care,Adult Social Care Integrated Care,"6,270.28 "
12035579,01/02/2018,24/01/2018,3000115,Westminster Society,Adults Extra Care,Adult Social Care Integrated Care,"3,660.84 "
12035579,01/02/2018,24/01/2018,3000115,Westminster Society,Adults Supported Living,Adult Social Care Integrated Care,800.00 
12035580,01/02/2018,24/01/2018,3000115,Westminster Society,Adults Supported Living,Adult Social Care Integrated Care,800.00 
12035580,01/02/2018,24/01/2018,3000115,Westminster Society,Adults Extra Care,Adult Social Care Integrated Care,"6,390.24 "
12035704,01/02/2018,24/01/2018,3000115,Westminster Society,Adults Extra Care,Adult Social Care Integrated Care,"2,429.12 "
12035710,01/02/2018,24/01/2018,3000115,Westminster Society,Adults Extra Care,Adult Social Care Integrated Care,"2,307.80 "
12035710,01/02/2018,24/01/2018,3000115,Westminster Society,Adults Supported Living,Adult Social Care Integrated Care,800.00 
12035083,01/02/2018,24/01/2018,3000115,Westminster Society,Adults Extra Care,Adult Social Care Integrated Care,"5,787.16 "
12035083,01/02/2018,24/01/2018,3000115,Westminster Society,Adults Residential Placements,Adult Social Care Integrated Care,"1,646.72 "
12035084,01/02/2018,24/01/2018,3000115,Westminster Society,Adults Extra Care,Adult Social Care Integrated Care,"7,388.04 "
12035085,01/02/2018,24/01/2018,3000115,Westminster Society,Adults Extra Care,Adult Social Care Integrated Care,"4,945.20 "
12035392,01/02/2018,24/01/2018,3000115,Westminster Society,Adults Short Term Residential Care,Director of Integrated Commissioning,"6,078.16 "
12035404,01/02/2018,24/01/2018,3000115,Westminster Society,Adults Extra Care,Adult Social Care Integrated Care,"3,663.64 "
12035407,01/02/2018,24/01/2018,3000115,Westminster Society,Adults Extra Care,Adult Social Care Integrated Care,"2,048.72 "
12035408,01/02/2018,24/01/2018,3000115,Westminster Society,Adults Extra Care,Adult Social Care Integrated Care,594.04 
12035409,01/02/2018,24/01/2018,3000115,Westminster Society,Adults Supported Living,Adult Social Care Integrated Care,"1,965.40 "
12035451,01/02/2018,24/01/2018,3000115,Westminster Society,Adults Extra Care,Adult Social Care Integrated Care,"5,867.00 "
12035456,01/02/2018,24/01/2018,3000115,Westminster Society,Adults Extra Care,Adult Social Care Integrated Care,"3,373.40 "
12035457,01/02/2018,24/01/2018,3000115,Westminster Society,Adults Supported Living,Adult Social Care Integrated Care,"3,995.92 "
12035458,01/02/2018,24/01/2018,3000115,Westminster Society,Adults Supported Living,Adult Social Care Integrated Care,"2,739.40 "
12035459,01/02/2018,24/01/2018,3000115,Westminster Society,Adults Extra Care,Adult Social Care Integrated Care,577.04 
12035464,01/02/2018,24/01/2018,3000115,Westminster Society,Adults Extra Care,Adult Social Care Integrated Care,"3,174.20 "
12035464,01/02/2018,24/01/2018,3000115,Westminster Society,Adults Supported Living,Adult Social Care Integrated Care,800.00 
12035474,01/02/2018,24/01/2018,3000115,Westminster Society,Adults Supported Living,Adult Social Care Integrated Care,879.72 
12035474,01/02/2018,24/01/2018,3000115,Westminster Society,Adults Extra Care,Adult Social Care Integrated Care,"7,905.04 "
12035475,01/02/2018,24/01/2018,3000115,Westminster Society,Adults Extra Care,Adult Social Care Integrated Care,747.24 
12035476,01/02/2018,24/01/2018,3000115,Westminster Society,Adults Residential Placements,Adult Social Care Integrated Care,"1,646.72 "
12035476,01/02/2018,24/01/2018,3000115,Westminster Society,Adults Extra Care,Adult Social Care Integrated Care,"4,699.04 "
12035477,01/02/2018,24/01/2018,3000115,Westminster Society,Adults Extra Care,Adult Social Care Integrated Care,"9,035.60 "
12035478,01/02/2018,24/01/2018,3000115,Westminster Society,Adults Residential Placements,Adult Social Care Integrated Care,"1,646.72 "
12035608,01/02/2018,24/01/2018,3000115,Westminster Society,Adults Supported Living,Adult Social Care Integrated Care,"4,274.20 "
12035609,01/02/2018,24/01/2018,3000115,Westminster Society,Adults Extra Care,Adult Social Care Integrated Care,"1,906.20 "
12035609,01/02/2018,24/01/2018,3000115,Westminster Society,Adults Supported Living,Adult Social Care Integrated Care,800.00 
12035610,01/02/2018,24/01/2018,3000115,Westminster Society,Adults Supported Living,Adult Social Care Integrated Care,800.00 
12035610,01/02/2018,24/01/2018,3000115,Westminster Society,Adults Extra Care,Adult Social Care Integrated Care,"2,128.84 "
12035613,01/02/2018,24/01/2018,3000115,Westminster Society,Adults Supported Living,Adult Social Care Integrated Care,800.00 
12035613,01/02/2018,24/01/2018,3000115,Westminster Society,Adults Extra Care,Adult Social Care Integrated Care,"2,751.60 "
12035620,01/02/2018,24/01/2018,3000115,Westminster Society,Adults Extra Care,Adult Social Care Integrated Care,"2,889.64 "
12035621,01/02/2018,24/01/2018,3000115,Westminster Society,Adults Extra Care,Adult Social Care Integrated Care,"2,509.24 "
12035654,01/02/2018,24/01/2018,3000115,Westminster Society,Adults Supported Living,Adult Social Care Integrated Care,"3,468.40 "
12035658,01/02/2018,24/01/2018,3000115,Westminster Society,Adults Extra Care,Adult Social Care Integrated Care,"2,421.40 "
12035658,01/02/2018,24/01/2018,3000115,Westminster Society,Adults Supported Living,Adult Social Care Integrated Care,800.00 
12035668,01/02/2018,24/01/2018,3000115,Westminster Society,Adults Extra Care,Adult Social Care Integrated Care,"4,699.04 "
12035668,01/02/2018,24/01/2018,3000115,Westminster Society,Adults Residential Placements,Adult Social Care Integrated Care,"1,646.72 "
12035669,01/02/2018,24/01/2018,3000115,Westminster Society,Adults Residential Placements,Adult Social Care Integrated Care,"1,646.72 "
12035669,01/02/2018,24/01/2018,3000115,Westminster Society,Adults Extra Care,Adult Social Care Integrated Care,"4,889.24 "
12035675,01/02/2018,24/01/2018,3000115,Westminster Society,Adults Extra Care,Adult Social Care Integrated Care,"8,269.28 "
12035675,01/02/2018,24/01/2018,3000115,Westminster Society,Adults Continuing Health Care Funded Placement,Adult Social Care Integrated Care,"1,646.72 "
12035676,01/02/2018,24/01/2018,3000115,Westminster Society,Adults Extra Care,Adult Social Care Integrated Care,"5,451.16 "
12035676,01/02/2018,24/01/2018,3000115,Westminster Society,Adults Residential Placements,Adult Social Care Integrated Care,"1,836.92 "
12035677,01/02/2018,24/01/2018,3000115,Westminster Society,Adults Continuing Health Care Funded Placement,Adult Social Care Integrated Care,"1,646.72 "
12035678,01/02/2018,24/01/2018,3000115,Westminster Society,Adults Extra Care,Adult Social Care Integrated Care,"3,727.44 "
12035678,01/02/2018,24/01/2018,3000115,Westminster Society,Adults Supported Living,Adult Social Care Integrated Care,800.00 
12035679,01/02/2018,24/01/2018,3000115,Westminster Society,Adults Extra Care,Adult Social Care Integrated Care,"4,260.32 "
12035070,01/02/2018,24/01/2018,3000115,Westminster Society,Adults Extra Care,Adult Social Care Integrated Care,"1,037.84 "
12035109,01/02/2018,24/01/2018,3000115,Westminster Society,Adults Extra Care,Adult Social Care Integrated Care,"2,048.72 "
12035110,01/02/2018,24/01/2018,3000115,Westminster Society,Adults Extra Care,Adult Social Care Integrated Care,"6,200.80 "
12035110,01/02/2018,24/01/2018,3000115,Westminster Society,Adults Supported Living,Adult Social Care Integrated Care,800.00 
12035111,01/02/2018,24/01/2018,3000115,Westminster Society,Adults Supported Living,Adult Social Care Integrated Care,800.00 
12035111,01/02/2018,24/01/2018,3000115,Westminster Society,Adults Extra Care,Adult Social Care Integrated Care,"6,242.00 "
12035112,01/02/2018,24/01/2018,3000115,Westminster Society,Adults Extra Care,Adult Social Care Integrated Care,"6,059.00 "
12035112,01/02/2018,24/01/2018,3000115,Westminster Society,Adults Residential Placements,Adult Social Care Integrated Care,700.00 
12035115,01/02/2018,24/01/2018,3000115,Westminster Society,Adults Supported Living,Adult Social Care Integrated Care,800.00 
12035115,01/02/2018,24/01/2018,3000115,Westminster Society,Adults Extra Care,Adult Social Care Integrated Care,"4,019.60 "
12035119,01/02/2018,24/01/2018,3000115,Westminster Society,Adults Extra Care,Adult Social Care Integrated Care,"1,037.84 "
12035121,01/02/2018,24/01/2018,3000115,Westminster Society,Adults Supported Living,Adult Social Care Integrated Care,"21,546.00 "
12035124,01/02/2018,24/01/2018,3000115,Westminster Society,Adults Extra Care,Adult Social Care Integrated Care,"2,255.64 "
12035125,01/02/2018,24/01/2018,3000115,Westminster Society,Adults Supported Living,Adult Social Care Integrated Care,"10,218.04 "
12035127,01/02/2018,24/01/2018,3000115,Westminster Society,Adults Extra Care,Adult Social Care Integrated Care,657.44 
12035128,01/02/2018,24/01/2018,3000115,Westminster Society,Adults Extra Care,Adult Social Care Integrated Care,"1,197.00 "
12035137,01/02/2018,24/01/2018,3000115,Westminster Society,Adults Supported Living,Adult Social Care Integrated Care,800.00 
12035137,01/02/2018,24/01/2018,3000115,Westminster Society,Adults Extra Care,Adult Social Care Integrated Care,"2,497.48 "
12035138,01/02/2018,24/01/2018,3000115,Westminster Society,Adults Supported Living,Adult Social Care Integrated Care,"3,036.44 "
12035143,01/02/2018,24/01/2018,3000115,Westminster Society,Adults Extra Care,Adult Social Care Integrated Care,"4,209.80 "
12035143,01/02/2018,24/01/2018,3000115,Westminster Society,Adults Supported Living,Adult Social Care Integrated Care,800.00 
12035170,01/02/2018,24/01/2018,3000115,Westminster Society,Adults Residential Placements,Adult Social Care Integrated Care,"1,646.72 "
12035170,01/02/2018,24/01/2018,3000115,Westminster Society,Adults Extra Care,Adult Social Care Integrated Care,"6,270.28 "
12038420,06/02/2018,30/09/2017,3000115,Westminster Society,Day Opportunities,Adult Social Care Integrated Care,"1,360.00 "
12081180,16/03/2018,31/10/2017,3000115,Westminster Society,Day Opportunities,Adult Social Care Integrated Care,"1,360.00 "
12062410,28/02/2018,19/02/2018,3000115,Westminster Society,Adults Extra Care,Adult Social Care Integrated Care,"2,075.68 "
12062410,28/02/2018,19/02/2018,3000115,Westminster Society,Adults Supported Living,Adult Social Care Integrated Care,600.00 
12062411,28/02/2018,19/02/2018,3000115,Westminster Society,Adults Extra Care,Adult Social Care Integrated Care,"7,140.64 "
12062411,28/02/2018,19/02/2018,3000115,Westminster Society,Adults Supported Living,Adult Social Care Integrated Care,600.00 
12062412,28/02/2018,19/02/2018,3000115,Westminster Society,Adults Supported Living,Adult Social Care Integrated Care,600.00 
12062412,28/02/2018,19/02/2018,3000115,Westminster Society,Adults Extra Care,Adult Social Care Integrated Care,"7,296.80 "
12062413,28/02/2018,19/02/2018,3000115,Westminster Society,Adults Supported Living,Adult Social Care Integrated Care,600.00 
12062413,28/02/2018,19/02/2018,3000115,Westminster Society,Adults Extra Care,Adult Social Care Integrated Care,680.88 
12062414,28/02/2018,19/02/2018,3000115,Westminster Society,Adults Supported Living,Adult Social Care Integrated Care,600.00 
12062414,28/02/2018,19/02/2018,3000115,Westminster Society,Adults Extra Care,Adult Social Care Integrated Care,"2,920.24 "
12062415,28/02/2018,19/02/2018,3000115,Westminster Society,Adults Supported Living,Adult Social Care Integrated Care,"4,564.80 "
12062420,28/02/2018,19/02/2018,3000115,Westminster Society,Adults Supported Living,Adult Social Care Integrated Care,"3,011.44 "
12062434,28/02/2018,19/02/2018,3000115,Westminster Society,Adults Supported Living,Adult Social Care Integrated Care,"1,600.00 "
12062434,28/02/2018,19/02/2018,3000115,Westminster Society,Adults Extra Care,Adult Social Care Integrated Care,"10,752.80 "
12062438,28/02/2018,19/02/2018,3000115,Westminster Society,Adults Extra Care,Adult Social Care Integrated Care,"9,667.52 "
12062438,28/02/2018,19/02/2018,3000115,Westminster Society,Adults Supported Living,Adult Social Care Integrated Care,"1,600.00 "
12062556,28/02/2018,19/02/2018,3000115,Westminster Society,Adults Supported Living,Adult Social Care Integrated Care,600.00 
12062556,28/02/2018,19/02/2018,3000115,Westminster Society,Adults Extra Care,Adult Social Care Integrated Care,"6,566.48 "
12062558,28/02/2018,19/02/2018,3000115,Westminster Society,Adults Extra Care,Adult Social Care Integrated Care,"6,514.96 "
12062558,28/02/2018,19/02/2018,3000115,Westminster Society,Adults Supported Living,Adult Social Care Integrated Care,600.00 
12062561,28/02/2018,19/02/2018,3000115,Westminster Society,Adults Residential Placements,Adult Social Care Integrated Care,"1,400.00 "
12062561,28/02/2018,19/02/2018,3000115,Westminster Society,Adults Extra Care,Adult Social Care Integrated Care,"13,025.20 "
12062561,28/02/2018,19/02/2018,3000115,Westminster Society,Nursing Care Contributions,Adult Social Care Integrated Care,"-1,075.60 "
12062562,28/02/2018,19/02/2018,3000115,Westminster Society,Nursing Care Contributions,Adult Social Care Integrated Care,"-1,075.52 "
12062562,28/02/2018,19/02/2018,3000115,Westminster Society,Adults Residential Placements,Adult Social Care Integrated Care,"12,239.92 "
12062563,28/02/2018,19/02/2018,3000115,Westminster Society,Adults Extra Care,Adult Social Care Integrated Care,"6,010.40 "
12062563,28/02/2018,19/02/2018,3000115,Westminster Society,Adults Supported Living,Adult Social Care Integrated Care,"1,600.00 "
12062564,28/02/2018,19/02/2018,3000115,Westminster Society,Adults Extra Care,Adult Social Care Integrated Care,"6,771.20 "
12062564,28/02/2018,19/02/2018,3000115,Westminster Society,Adults Supported Living,Adult Social Care Integrated Care,"1,600.00 "
12062571,28/02/2018,19/02/2018,3000115,Westminster Society,Adults Extra Care,Adult Social Care Integrated Care,"6,260.08 "
12062571,28/02/2018,19/02/2018,3000115,Westminster Society,Adults Supported Living,Adult Social Care Integrated Care,600.00 
12062575,28/02/2018,19/02/2018,3000115,Westminster Society,Adults Extra Care,Adult Social Care Integrated Care,"4,350.48 "
12062579,28/02/2018,19/02/2018,3000115,Westminster Society,Adults Supported Living,Adult Social Care Integrated Care,"1,600.00 "
12062579,28/02/2018,19/02/2018,3000115,Westminster Society,Adults Extra Care,Adult Social Care Integrated Care,"5,968.00 "
12062583,28/02/2018,19/02/2018,3000115,Westminster Society,Adults Extra Care,Adult Social Care Integrated Care,"8,307.28 "
12062603,28/02/2018,19/02/2018,3000115,Westminster Society,Adults Extra Care,Adult Social Care Integrated Care,"3,836.72 "
12062603,28/02/2018,19/02/2018,3000115,Westminster Society,Adults Supported Living,Adult Social Care Integrated Care,600.00 
12062604,28/02/2018,19/02/2018,3000115,Westminster Society,Adults Supported Living,Adult Social Care Integrated Care,600.00 
12062604,28/02/2018,19/02/2018,3000115,Westminster Society,Adults Extra Care,Adult Social Care Integrated Care,"3,539.84 "
12062611,28/02/2018,19/02/2018,3000115,Westminster Society,Nursing Care Contributions,Adult Social Care Integrated Care,-678.00 
12062611,28/02/2018,19/02/2018,3000115,Westminster Society,Adults Residential Placements,Adult Social Care Integrated Care,"3,293.44 "
12062611,28/02/2018,19/02/2018,3000115,Westminster Society,Adults Extra Care,Adult Social Care Integrated Care,"12,540.56 "
12062612,28/02/2018,19/02/2018,3000115,Westminster Society,Adults Residential Placements,Adult Social Care Integrated Care,"3,293.44 "
12062612,28/02/2018,19/02/2018,3000115,Westminster Society,Adults Extra Care,Adult Social Care Integrated Care,"25,125.60 "
12062617,28/02/2018,19/02/2018,3000115,Westminster Society,Adults Extra Care,Adult Social Care Integrated Care,"13,473.52 "
12062617,28/02/2018,19/02/2018,3000115,Westminster Society,Adults Supported Living,Adult Social Care Integrated Care,600.00 
12062618,28/02/2018,19/02/2018,3000115,Westminster Society,Adults Extra Care,Adult Social Care Integrated Care,"3,329.52 "
12062618,28/02/2018,19/02/2018,3000115,Westminster Society,Adults Supported Living,Adult Social Care Integrated Care,600.00 
12062643,28/02/2018,19/02/2018,3000115,Westminster Society,Adults Short Term Residential Care,Director of Integrated Commissioning,"6,601.28 "
12062658,28/02/2018,19/02/2018,3000115,Westminster Society,Adults Extra Care,Adult Social Care Integrated Care,"7,200.48 "
12062658,28/02/2018,19/02/2018,3000115,Westminster Society,Adults Supported Living,Adult Social Care Integrated Care,600.00 
12062665,28/02/2018,19/02/2018,3000115,Westminster Society,Adults Extra Care,Adult Social Care Integrated Care,"12,484.00 "
12062665,28/02/2018,19/02/2018,3000115,Westminster Society,Adults Supported Living,Adult Social Care Integrated Care,"1,600.00 "
12062670,28/02/2018,19/02/2018,3000115,Westminster Society,Adults Supported Living,Adult Social Care Integrated Care,600.00 
12062671,28/02/2018,19/02/2018,3000115,Westminster Society,Adults Supported Living,Adult Social Care Integrated Care,600.00 
12062671,28/02/2018,19/02/2018,3000115,Westminster Society,Adults Extra Care,Adult Social Care Integrated Care,"1,061.28 "
12062672,28/02/2018,19/02/2018,3000115,Westminster Society,Adults Extra Care,Adult Social Care Integrated Care,"2,347.28 "
12062680,28/02/2018,19/02/2018,3000115,Westminster Society,Adults Supported Living,Adult Social Care Integrated Care,"1,600.00 "
12062680,28/02/2018,19/02/2018,3000115,Westminster Society,Adults Extra Care,Adult Social Care Integrated Care,"10,181.04 "
12062681,28/02/2018,19/02/2018,3000115,Westminster Society,Adults Extra Care,Adult Social Care Integrated Care,"8,107.84 "
12062681,28/02/2018,19/02/2018,3000115,Westminster Society,Adults Supported Living,Adult Social Care Integrated Care,"1,600.00 "
12062684,28/02/2018,19/02/2018,3000115,Westminster Society,Adults Supported Living,Adult Social Care Integrated Care,"1,600.00 "
12062684,28/02/2018,19/02/2018,3000115,Westminster Society,Adults Extra Care,Adult Social Care Integrated Care,"8,039.20 "
12062685,28/02/2018,19/02/2018,3000115,Westminster Society,Adults Extra Care,Adult Social Care Integrated Care,"19,063.84 "
12062685,28/02/2018,19/02/2018,3000115,Westminster Society,Adults Supported Living,Adult Social Care Integrated Care,"1,600.00 "
12062686,28/02/2018,19/02/2018,3000115,Westminster Society,Adults Supported Living,Adult Social Care Integrated Care,600.00 
12062686,28/02/2018,19/02/2018,3000115,Westminster Society,Adults Extra Care,Adult Social Care Integrated Care,"4,851.12 "
12062687,28/02/2018,19/02/2018,3000115,Westminster Society,Adults Extra Care,Adult Social Care Integrated Care,"3,296.13 "
12062687,28/02/2018,19/02/2018,3000115,Westminster Society,Adults Supported Living,Adult Social Care Integrated Care,600.00 
12062688,28/02/2018,19/02/2018,3000115,Westminster Society,Adults Residential Placements,Adult Social Care Integrated Care,"19,202.40 "
12062699,28/02/2018,19/02/2018,3000115,Westminster Society,Adults Extra Care,Adult Social Care Integrated Care,"4,597.52 "
12062699,28/02/2018,19/02/2018,3000115,Westminster Society,Adults Supported Living,Adult Social Care Integrated Care,600.00 
12062727,28/02/2018,19/02/2018,3000115,Westminster Society,Adults Extra Care,Director of Integrated Commissioning,"22,353.68 "
12062727,28/02/2018,19/02/2018,3000115,Westminster Society,Adults Supported Living,Adult Social Care Integrated Care,600.00 
12062728,28/02/2018,19/02/2018,3000115,Westminster Society,Adults Supported Living,Adult Social Care Integrated Care,600.00 
12062728,28/02/2018,19/02/2018,3000115,Westminster Society,Adults Extra Care,Adult Social Care Integrated Care,"4,764.88 "
12062729,28/02/2018,19/02/2018,3000115,Westminster Society,Adults Supported Living,Adult Social Care Integrated Care,"1,600.56 "
12062729,28/02/2018,19/02/2018,3000115,Westminster Society,Adults Extra Care,Adult Social Care Integrated Care,"4,953.60 "
12062744,28/02/2018,19/02/2018,3000115,Westminster Society,Adults Supported Living,Adult Social Care Integrated Care,960.00 
12062745,28/02/2018,19/02/2018,3000115,Westminster Society,Adults Extra Care,Adult Social Care Integrated Care,"4,188.48 "
12062750,28/02/2018,19/02/2018,3000115,Westminster Society,Adults Supported Living,Adult Social Care Integrated Care,"1,600.00 "
12062750,28/02/2018,19/02/2018,3000115,Westminster Society,Adults Extra Care,Adult Social Care Integrated Care,"10,152.40 "
12062760,28/02/2018,19/02/2018,3000115,Westminster Society,Adults Extra Care,Adult Social Care Integrated Care,"8,767.04 "
12062760,28/02/2018,19/02/2018,3000115,Westminster Society,Adults Supported Living,Adult Social Care Integrated Care,"1,600.00 "
12062769,28/02/2018,19/02/2018,3000115,Westminster Society,Adults Extra Care,Adult Social Care Integrated Care,"12,540.56 "
12062769,28/02/2018,19/02/2018,3000115,Westminster Society,Adults Residential Placements,Adult Social Care Integrated Care,"3,293.44 "
12062770,28/02/2018,19/02/2018,3000115,Westminster Society,Adults Extra Care,Adult Social Care Integrated Care,"7,321.68 "
12062770,28/02/2018,19/02/2018,3000115,Westminster Society,Adults Supported Living,Adult Social Care Integrated Care,"1,600.00 "
12062771,28/02/2018,19/02/2018,3000115,Westminster Society,Adults Extra Care,Adult Social Care Integrated Care,"12,780.48 "
12062771,28/02/2018,19/02/2018,3000115,Westminster Society,Adults Supported Living,Adult Social Care Integrated Care,"1,600.00 "
12062820,28/02/2018,19/02/2018,3000115,Westminster Society,Adults Extra Care,Adult Social Care Integrated Care,"4,858.24 "
12062820,28/02/2018,19/02/2018,3000115,Westminster Society,Adults Supported Living,Adult Social Care Integrated Care,600.00 
12062826,28/02/2018,19/02/2018,3000115,Westminster Society,Adults Supported Living,Adult Social Care Integrated Care,"1,600.00 "
12062826,28/02/2018,19/02/2018,3000115,Westminster Society,Adults Extra Care,Adult Social Care Integrated Care,"4,615.60 "
12062850,28/02/2018,19/02/2018,3000115,Westminster Society,Adults Residential Placements,Adult Social Care Integrated Care,"3,293.44 "
12062850,28/02/2018,19/02/2018,3000115,Westminster Society,Adults Extra Care,Adult Social Care Integrated Care,"11,574.32 "
12062851,28/02/2018,19/02/2018,3000115,Westminster Society,Adults Extra Care,Adult Social Care Integrated Care,"14,776.08 "
12062852,28/02/2018,19/02/2018,3000115,Westminster Society,Adults Extra Care,Adult Social Care Integrated Care,"19,715.40 "
12062888,28/02/2018,19/02/2018,3000115,Westminster Society,Adults Short Term Residential Care,Director of Integrated Commissioning,"12,156.32 "
12062226,28/02/2018,19/02/2018,3000115,Westminster Society,Adults Supported Living,Adult Social Care Integrated Care,600.00 
12062226,28/02/2018,19/02/2018,3000115,Westminster Society,Adults Extra Care,Adult Social Care Integrated Care,"7,327.28 "
12062229,28/02/2018,19/02/2018,3000115,Westminster Society,Adults Extra Care,Adult Social Care Integrated Care,"4,097.44 "
12062229,28/02/2018,19/02/2018,3000115,Westminster Society,Adults Supported Living,Adult Social Care Integrated Care,600.00 
12062230,28/02/2018,19/02/2018,3000115,Westminster Society,Adults Extra Care,Adult Social Care Integrated Care,"1,188.08 "
12062230,28/02/2018,19/02/2018,3000115,Westminster Society,Adults Supported Living,Adult Social Care Integrated Care,600.00 
12062231,28/02/2018,19/02/2018,3000115,Westminster Society,Adults Supported Living,Adult Social Care Integrated Care,"3,930.80 "
12062240,28/02/2018,19/02/2018,3000115,Westminster Society,Adults Extra Care,Adult Social Care Integrated Care,"11,734.00 "
12062241,28/02/2018,19/02/2018,3000115,Westminster Society,Adults Supported Living,Adult Social Care Integrated Care,600.00 
12062242,28/02/2018,19/02/2018,3000115,Westminster Society,Adults Extra Care,Adult Social Care Integrated Care,680.88 
12062242,28/02/2018,19/02/2018,3000115,Westminster Society,Adults Supported Living,Adult Social Care Integrated Care,600.00 
12062246,28/02/2018,19/02/2018,3000115,Westminster Society,Adults Extra Care,Adult Social Care Integrated Care,"6,746.80 "
12062247,28/02/2018,19/02/2018,3000115,Westminster Society,Adults Supported Living,Adult Social Care Integrated Care,"2,140.67 "
12062247,28/02/2018,19/02/2018,3000115,Westminster Society,Adults Extra Care,Adult Social Care Integrated Care,"19,621.00 "
12062248,28/02/2018,19/02/2018,3000115,Westminster Society,Adults Supported Living,Adult Social Care Integrated Care,"5,478.80 "
12062249,28/02/2018,19/02/2018,3000115,Westminster Society,Adults Extra Care,Adult Social Care Integrated Care,"1,154.08 "
12062254,28/02/2018,19/02/2018,3000115,Westminster Society,Adults Extra Care,Adult Social Care Integrated Care,"6,348.40 "
12062254,28/02/2018,19/02/2018,3000115,Westminster Society,Adults Supported Living,Adult Social Care Integrated Care,"1,600.00 "
12062264,28/02/2018,19/02/2018,3000115,Westminster Society,Adults Supported Living,Adult Social Care Integrated Care,"1,759.44 "
12062264,28/02/2018,19/02/2018,3000115,Westminster Society,Adults Extra Care,Adult Social Care Integrated Care,"15,810.08 "
12062265,28/02/2018,19/02/2018,3000115,Westminster Society,Adults Extra Care,Adult Social Care Integrated Care,"1,494.48 "
12062265,28/02/2018,19/02/2018,3000115,Westminster Society,Adults Supported Living,Adult Social Care Integrated Care,600.00 
12062266,28/02/2018,19/02/2018,3000115,Westminster Society,Adults Extra Care,Adult Social Care Integrated Care,"9,398.08 "
12062266,28/02/2018,19/02/2018,3000115,Westminster Society,Nursing Care Contributions,Adult Social Care Integrated Care,-801.20 
12062266,28/02/2018,19/02/2018,3000115,Westminster Society,Adults Residential Placements,Adult Social Care Integrated Care,"3,293.44 "
12062267,28/02/2018,19/02/2018,3000115,Westminster Society,Adults Extra Care,Adult Social Care Integrated Care,"18,071.20 "
12062268,28/02/2018,19/02/2018,3000115,Westminster Society,Adults Residential Placements,Adult Social Care Integrated Care,"3,293.44 "
12062330,28/02/2018,19/02/2018,3000115,Westminster Society,Adults Supported Living,Adult Social Care Integrated Care,"8,548.40 "
12062331,28/02/2018,19/02/2018,3000115,Westminster Society,Adults Supported Living,Adult Social Care Integrated Care,"1,600.00 "
12062331,28/02/2018,19/02/2018,3000115,Westminster Society,Adults Extra Care,Adult Social Care Integrated Care,"3,812.40 "
12062332,28/02/2018,19/02/2018,3000115,Westminster Society,Adults Supported Living,Adult Social Care Integrated Care,"1,600.00 "
12062332,28/02/2018,19/02/2018,3000115,Westminster Society,Adults Extra Care,Adult Social Care Integrated Care,"4,257.68 "
12062335,28/02/2018,19/02/2018,3000115,Westminster Society,Adults Supported Living,Adult Social Care Integrated Care,"1,600.00 "
12062335,28/02/2018,19/02/2018,3000115,Westminster Society,Adults Extra Care,Adult Social Care Integrated Care,"5,503.20 "
12062342,28/02/2018,19/02/2018,3000115,Westminster Society,Adults Extra Care,Adult Social Care Integrated Care,"5,779.28 "
12062342,28/02/2018,19/02/2018,3000115,Westminster Society,Adults Supported Living,Adult Social Care Integrated Care,600.00 
12062343,28/02/2018,19/02/2018,3000115,Westminster Society,Adults Extra Care,Adult Social Care Integrated Care,"5,018.48 "
12062343,28/02/2018,19/02/2018,3000115,Westminster Society,Adults Supported Living,Adult Social Care Integrated Care,600.00 
12062344,28/02/2018,19/02/2018,3000115,Westminster Society,Adults Supported Living,Adult Social Care Integrated Care,"6,936.80 "
12062349,28/02/2018,19/02/2018,3000115,Westminster Society,Adults Supported Living,Adult Social Care Integrated Care,"1,600.00 "
12062349,28/02/2018,19/02/2018,3000115,Westminster Society,Adults Extra Care,Adult Social Care Integrated Care,"4,842.80 "
12062359,28/02/2018,19/02/2018,3000115,Westminster Society,Adults Extra Care,Adult Social Care Integrated Care,"9,398.08 "
12062359,28/02/2018,19/02/2018,3000115,Westminster Society,Adults Residential Placements,Adult Social Care Integrated Care,"3,293.44 "
12062359,28/02/2018,19/02/2018,3000115,Westminster Society,Nursing Care Contributions,Adult Social Care Integrated Care,-805.20 
12062360,28/02/2018,19/02/2018,3000115,Westminster Society,Adults Residential Placements,Adult Social Care Integrated Care,"3,293.44 "
12062360,28/02/2018,19/02/2018,3000115,Westminster Society,Nursing Care Contributions,Adult Social Care Integrated Care,-805.20 
12062360,28/02/2018,19/02/2018,3000115,Westminster Society,Adults Extra Care,Adult Social Care Integrated Care,"9,778.48 "
12062366,28/02/2018,19/02/2018,3000115,Westminster Society,Adults Continuing Health Care Funded Placement,Adult Social Care Integrated Care,"3,293.44 "
12062366,28/02/2018,19/02/2018,3000115,Westminster Society,Adults Extra Care,Adult Social Care Integrated Care,"16,538.56 "
12062367,28/02/2018,19/02/2018,3000115,Westminster Society,Adults Extra Care,Adult Social Care Integrated Care,"10,902.32 "
12062367,28/02/2018,19/02/2018,3000115,Westminster Society,Adults Residential Placements,Adult Social Care Integrated Care,"3,673.84 "
12062368,28/02/2018,19/02/2018,3000115,Westminster Society,Adults Continuing Health Care Funded Placement,Adult Social Care Integrated Care,"3,293.44 "
12062369,28/02/2018,19/02/2018,3000115,Westminster Society,Adults Supported Living,Adult Social Care Integrated Care,"1,600.00 "
12062369,28/02/2018,19/02/2018,3000115,Westminster Society,Adults Extra Care,Adult Social Care Integrated Care,"7,454.88 "
12062370,28/02/2018,19/02/2018,3000115,Westminster Society,Adults Extra Care,Adult Social Care Integrated Care,"8,520.64 "
12062449,28/02/2018,19/02/2018,3000115,Westminster Society,Adults Extra Care,Adult Social Care Integrated Care,"2,075.68 "
12062449,28/02/2018,19/02/2018,3000115,Westminster Society,Adults Supported Living,Adult Social Care Integrated Care,587.12 
12062450,28/02/2018,19/02/2018,3000115,Westminster Society,Adults Supported Living,Adult Social Care Integrated Care,600.00 
12062450,28/02/2018,19/02/2018,3000115,Westminster Society,Adults Extra Care,Adult Social Care Integrated Care,"4,097.44 "
12062451,28/02/2018,19/02/2018,3000115,Westminster Society,Adults Supported Living,Adult Social Care Integrated Care,"1,600.00 "
12062451,28/02/2018,19/02/2018,3000115,Westminster Society,Adults Extra Care,Adult Social Care Integrated Care,"12,401.60 "
12062452,28/02/2018,19/02/2018,3000115,Westminster Society,Adults Extra Care,Adult Social Care Integrated Care,"12,484.00 "
12062452,28/02/2018,19/02/2018,3000115,Westminster Society,Adults Supported Living,Adult Social Care Integrated Care,"1,600.00 "
12062453,28/02/2018,19/02/2018,3000115,Westminster Society,Nursing Care Contributions,Adult Social Care Integrated Care,-971.60 
12062453,28/02/2018,19/02/2018,3000115,Westminster Society,Adults Residential Placements,Adult Social Care Integrated Care,"1,400.00 "
12062453,28/02/2018,19/02/2018,3000115,Westminster Society,Adults Extra Care,Adult Social Care Integrated Care,"12,118.00 "
12062457,28/02/2018,19/02/2018,3000115,Westminster Society,Adults Extra Care,Adult Social Care Integrated Care,"8,039.20 "
12062457,28/02/2018,19/02/2018,3000115,Westminster Society,Adults Supported Living,Adult Social Care Integrated Care,"1,600.00 "
12062461,28/02/2018,19/02/2018,3000115,Westminster Society,Adults Extra Care,Adult Social Care Integrated Care,"2,075.68 "
12062461,28/02/2018,19/02/2018,3000115,Westminster Society,Adults Supported Living,Adult Social Care Integrated Care,587.12 
12062462,28/02/2018,19/02/2018,3000115,Westminster Society,Adults Supported Living,Adult Social Care Integrated Care,600.00 
12062463,28/02/2018,19/02/2018,3000115,Westminster Society,Adults Supported Living,Adult Social Care Integrated Care,"43,092.00 "
12062466,28/02/2018,19/02/2018,3000115,Westminster Society,Adults Extra Care,Adult Social Care Integrated Care,"4,511.28 "
12062466,28/02/2018,19/02/2018,3000115,Westminster Society,Adults Supported Living,Adult Social Care Integrated Care,600.00 
12062467,28/02/2018,19/02/2018,3000115,Westminster Society,Adults Supported Living,Adult Social Care Integrated Care,"20,436.08 "
12062469,28/02/2018,19/02/2018,3000115,Westminster Society,Adults Extra Care,Adult Social Care Integrated Care,"1,314.88 "
12062469,28/02/2018,19/02/2018,3000115,Westminster Society,Adults Supported Living,Adult Social Care Integrated Care,600.00 
12062470,28/02/2018,19/02/2018,3000115,Westminster Society,Adults Extra Care,Adult Social Care Integrated Care,"2,394.00 "
12062471,28/02/2018,19/02/2018,3000115,Westminster Society,Adults Supported Living,Adult Social Care Integrated Care,600.00 
12062512,28/02/2018,19/02/2018,3000115,Westminster Society,Adults Extra Care,Adult Social Care Integrated Care,"4,994.96 "
12062512,28/02/2018,19/02/2018,3000115,Westminster Society,Adults Supported Living,Adult Social Care Integrated Care,"1,600.00 "
12062513,28/02/2018,19/02/2018,3000115,Westminster Society,Adults Supported Living,Adult Social Care Integrated Care,"6,072.88 "
12062518,28/02/2018,19/02/2018,3000115,Westminster Society,Adults Extra Care,Adult Social Care Integrated Care,"8,419.60 "
12062518,28/02/2018,19/02/2018,3000115,Westminster Society,Adults Supported Living,Adult Social Care Integrated Care,"1,600.00 "
12062530,28/02/2018,19/02/2018,3000115,Westminster Society,Adults Extra Care,Adult Social Care Integrated Care,"12,540.56 "
12062530,28/02/2018,19/02/2018,3000115,Westminster Society,Adults Residential Placements,Adult Social Care Integrated Care,"3,293.44 "
12081290,16/03/2018,05/03/2018,3000115,Westminster Society,Adults Extra Care,Adult Social Care Integrated Care,792.50 
12081296,16/03/2018,05/03/2018,3000115,Westminster Society,Adults Extra Care,Adult Social Care Integrated Care,"1,242.16 "
12081299,16/03/2018,05/03/2018,3000115,Westminster Society,Adults Short Term Residential Care,Director of Integrated Commissioning,"8,366.74 "
12081309,16/03/2018,05/03/2018,3000115,Westminster Society,Adults Short Term Residential Care,Director of Integrated Commissioning,"2,161.72 "
12063422,28/02/2018,31/10/2017,3000115,Westminster Society,Day Opportunities,Adult Social Care Integrated Care,544.00 
12063455,28/02/2018,30/11/2017,3000115,Westminster Society,Day Opportunities,Adult Social Care Integrated Care,544.00 
12063433,28/02/2018,31/12/2017,3000115,Westminster Society,Day Opportunities,Adult Social Care Integrated Care,680.00 
12063444,28/02/2018,31/01/2018,3000115,Westminster Society,Day Opportunities,Adult Social Care Integrated Care,544.00 
12038425,06/02/2018,30/09/2017,3000115,Westminster Society,Day Opportunities,Adult Social Care Integrated Care,"2,040.00 "
12081185,16/03/2018,31/10/2017,3000115,Westminster Society,Day Opportunities,Adult Social Care Integrated Care,"2,040.00 "
12063423,28/02/2018,31/10/2017,3000115,Westminster Society,Day Opportunities,Adult Social Care Integrated Care,680.00 
12063456,28/02/2018,30/11/2017,3000115,Westminster Society,Day Opportunities,Adult Social Care Integrated Care,680.00 
12063434,28/02/2018,31/12/2017,3000115,Westminster Society,Day Opportunities,Adult Social Care Integrated Care,850.00 
12063445,28/02/2018,31/01/2018,3000115,Westminster Society,Day Opportunities,Adult Social Care Integrated Care,680.00 
12081191,16/03/2018,31/10/2017,3000115,Westminster Society,Day Opportunities,Adult Social Care Integrated Care,816.00 
3406812,09/03/2018,08/03/2018,3000115,Westminster Society,2 Year Old's Funding,Children's Services Commissioning,"5,850.00 "
3407014,09/03/2018,08/03/2018,3000115,Westminster Society,Early Years,Children's Services Commissioning,"2,322.00 "
12081192,16/03/2018,31/10/2017,3000115,Westminster Society,Day Opportunities,Adult Social Care Integrated Care,680.00 
12038429,06/02/2018,30/09/2017,3000115,Westminster Society,Day Opportunities,Adult Social Care Integrated Care,"1,224.00 "
12081193,16/03/2018,31/10/2017,3000115,Westminster Society,Day Opportunities,Adult Social Care Integrated Care,"1,224.00 "
12081195,16/03/2018,31/10/2017,3000115,Westminster Society,Day Opportunities,Adult Social Care Integrated Care,"1,700.00 "
12038431,06/02/2018,30/09/2017,3000115,Westminster Society,Day Opportunities,Adult Social Care Integrated Care,680.00 
12081196,16/03/2018,31/10/2017,3000115,Westminster Society,Day Opportunities,Adult Social Care Integrated Care,680.00 
12038434,06/02/2018,30/09/2017,3000115,Westminster Society,Day Opportunities,Adult Social Care Integrated Care,816.00 
12081199,16/03/2018,31/10/2017,3000115,Westminster Society,Day Opportunities,Adult Social Care Integrated Care,816.00 
12063424,28/02/2018,31/10/2017,3000115,Westminster Society,Day Opportunities,Adult Social Care Integrated Care,"1,190.00 "
12063457,28/02/2018,30/11/2017,3000115,Westminster Society,Day Opportunities,Adult Social Care Integrated Care,"1,190.00 "
12063435,28/02/2018,31/12/2017,3000115,Westminster Society,Day Opportunities,Adult Social Care Integrated Care,"1,487.50 "
12063446,28/02/2018,31/01/2018,3000115,Westminster Society,Day Opportunities,Adult Social Care Integrated Care,"1,190.00 "
12038435,06/02/2018,30/09/2017,3000115,Westminster Society,Day Opportunities,Adult Social Care Integrated Care,510.00 
12081207,16/03/2018,31/10/2017,3000115,Westminster Society,Day Opportunities,Adult Social Care Integrated Care,510.00 
12038438,06/02/2018,30/09/2017,3000115,Westminster Society,Day Opportunities,Adult Social Care Integrated Care,"1,700.00 "
12081210,16/03/2018,31/10/2017,3000115,Westminster Society,Day Opportunities,Adult Social Care Integrated Care,"1,700.00 "
12038441,06/02/2018,30/09/2017,3000115,Westminster Society,Day Opportunities,Adult Social Care Integrated Care,"1,836.00 "
12081213,16/03/2018,31/10/2017,3000115,Westminster Society,Day Opportunities,Adult Social Care Integrated Care,"1,836.00 "
12063425,28/02/2018,31/10/2017,3000115,Westminster Society,Day Opportunities,Adult Social Care Integrated Care,952.00 
12063458,28/02/2018,30/11/2017,3000115,Westminster Society,Day Opportunities,Adult Social Care Integrated Care,952.00 
12063436,28/02/2018,31/12/2017,3000115,Westminster Society,Day Opportunities,Adult Social Care Integrated Care,"1,190.00 "
12063447,28/02/2018,31/01/2018,3000115,Westminster Society,Day Opportunities,Adult Social Care Integrated Care,952.00 
12063426,28/02/2018,31/10/2017,3000115,Westminster Society,Day Opportunities,Adult Social Care Integrated Care,824.50 
12063459,28/02/2018,30/11/2017,3000115,Westminster Society,Day Opportunities,Adult Social Care Integrated Care,748.00 
12063437,28/02/2018,31/12/2017,3000115,Westminster Society,Day Opportunities,Adult Social Care Integrated Care,935.00 
12063448,28/02/2018,31/01/2018,3000115,Westminster Society,Day Opportunities,Adult Social Care Integrated Care,748.00 
12063427,28/02/2018,31/10/2017,3000115,Westminster Society,Day Opportunities,Adult Social Care Integrated Care,612.00 
12063460,28/02/2018,30/11/2017,3000115,Westminster Society,Day Opportunities,Adult Social Care Integrated Care,612.00 
12063438,28/02/2018,31/12/2017,3000115,Westminster Society,Day Opportunities,Adult Social Care Integrated Care,765.00 
12063449,28/02/2018,31/01/2018,3000115,Westminster Society,Day Opportunities,Adult Social Care Integrated Care,612.00 
12038443,06/02/2018,30/09/2017,3000115,Westminster Society,Day Opportunities,Adult Social Care Integrated Care,"1,020.00 "
12081216,16/03/2018,31/10/2017,3000115,Westminster Society,Day Opportunities,Adult Social Care Integrated Care,"1,020.00 "
12038444,06/02/2018,30/09/2017,3000115,Westminster Society,Day Opportunities,Adult Social Care Integrated Care,612.00 
12081217,16/03/2018,31/10/2017,3000115,Westminster Society,Day Opportunities,Adult Social Care Integrated Care,612.00 
12038445,06/02/2018,30/09/2017,3000115,Westminster Society,Day Opportunities,Adult Social Care Integrated Care,612.00 
12081218,16/03/2018,31/10/2017,3000115,Westminster Society,Day Opportunities,Adult Social Care Integrated Care,612.00 
3398077,14/03/2018,14/02/2018,3000119,Keep Britain Tidy,Surveys,Waste and Parks,"4,495.00 "
3402779,15/03/2018,27/02/2018,3000119,Keep Britain Tidy,Surveys,Waste and Parks,"4,483.34 "
3402780,15/03/2018,27/02/2018,3000119,Keep Britain Tidy,Surveys,Waste and Parks,"4,483.33 "
3374696,18/01/2018,12/12/2017,3000123,Killgerm Chemicals Ltd,Hired and Contracted Services,Public Protection and Licensing,"2,851.04 "
3376230,12/01/2018,15/12/2017,3000123,Killgerm Chemicals Ltd,Hired and Contracted Services,Public Protection and Licensing,502.50 
3377390,18/01/2018,18/12/2017,3000123,Killgerm Chemicals Ltd,Hired and Contracted Services,Public Protection and Licensing,532.00 
3387098,15/02/2018,16/01/2018,3000123,Killgerm Chemicals Ltd,Hired and Contracted Services,Public Protection and Licensing,749.20 
3387945,16/02/2018,18/01/2018,3000123,Killgerm Chemicals Ltd,Hired and Contracted Services,Public Protection and Licensing,877.06 
3390465,23/02/2018,25/01/2018,3000123,Killgerm Chemicals Ltd,Hired and Contracted Services,Public Protection and Licensing,574.84 
3355275,05/01/2018,23/10/2017,3000127,Bates Office Services Ltd,Stationery: Not Elsewhere Classified (Stationery),Chief of Staff,"1,702.69 "
3387519,19/01/2018,30/11/2017,3000127,Bates Office Services Ltd,Office Furniture (Equip Furn),WAES Director (Principal),720.20 
3371245,04/01/2018,05/12/2017,3000127,Bates Office Services Ltd,Stationery: Not Elsewhere Classified (Stationery),Chief of Staff,637.44 
3374152,10/01/2018,11/12/2017,3000127,Bates Office Services Ltd,Stationery: Not Elsewhere Classified (Stationery),Adult Social Care Integrated Care,685.96 
3375158,12/01/2018,13/12/2017,3000127,Bates Office Services Ltd,Stationery: Not Elsewhere Classified (Stationery),Chief of Staff,635.43 
3376237,12/01/2018,15/12/2017,3000127,Bates Office Services Ltd,Stationery: Not Elsewhere Classified (Stationery),Community Services,835.26 
3379665,08/02/2018,22/12/2017,3000127,Bates Office Services Ltd,Hired and Contracted Services,"Policy, Performance and Communications",903.54 
3382246,09/02/2018,04/01/2018,3000127,Bates Office Services Ltd,Hired and Contracted Services,"Policy, Performance and Communications","1,494.00 "
3385316,01/03/2018,11/01/2018,3000127,Bates Office Services Ltd,Stationery: Not Elsewhere Classified (Stationery),Chief of Staff,730.16 
3387258,15/02/2018,16/01/2018,3000127,Bates Office Services Ltd,Hired and Contracted Services,"Policy, Performance and Communications","1,143.94 "
3389316,22/02/2018,23/01/2018,3000127,Bates Office Services Ltd,Stationery: Not Elsewhere Classified (Stationery),Development Planning,963.03 
3393427,02/03/2018,02/02/2018,3000127,Bates Office Services Ltd,Stationery: Not Elsewhere Classified (Stationery),Community Services,890.36 
3396724,14/03/2018,12/02/2018,3000127,Bates Office Services Ltd,Hired and Contracted Services,"Policy, Performance and Communications",840.26 
3397271,15/03/2018,13/02/2018,3000127,Bates Office Services Ltd,Hired and Contracted Services,"Policy, Performance and Communications","1,286.08 "
3398887,15/03/2018,16/02/2018,3000127,Bates Office Services Ltd,Stationery: Not Elsewhere Classified (Stationery),Chief of Staff,"1,193.61 "
3398873,15/03/2018,19/02/2018,3000127,Bates Office Services Ltd,Hired and Contracted Services,"Policy, Performance and Communications",909.94 
3401701,15/03/2018,23/02/2018,3000127,Bates Office Services Ltd,Stationery: Not Elsewhere Classified (Stationery),Community Services,945.57 
3375881,09/02/2018,12/12/2017,3000127,Bates Office Services Ltd,Hired and Contracted Services,"Policy, Performance and Communications","1,494.00 "
3378221,19/01/2018,20/12/2017,3000130,Mayor's Office for Policing and Crime C/o Met Police,Security (Security),Economy,"21,750.00 "
3378222,19/01/2018,20/12/2017,3000130,Mayor's Office for Policing and Crime C/o Met Police,Security (Security),Economy,"21,750.00 "
3399244,15/03/2018,19/02/2018,3000130,Mayor's Office for Policing and Crime C/o Met Police,Security (Security),Economy,"21,750.00 "
12036165,02/02/2018,27/09/2017,3000142,Bs Project Services Ltd,Placements,Family Services 2,675.90 
12036170,02/02/2018,18/10/2017,3000142,Bs Project Services Ltd,Placements,Family Services 2,506.92 
12035619,01/02/2018,24/01/2018,3000143,Beau Sejour Residential Care Home Ltd,Adults Residential Placements,Adult Social Care Integrated Care,"6,400.36 "
12035619,01/02/2018,24/01/2018,3000143,Beau Sejour Residential Care Home Ltd,Nursing Care Contributions,Adult Social Care Integrated Care,-537.76 
12062341,28/02/2018,19/02/2018,3000143,Beau Sejour Residential Care Home Ltd,Adults Residential Placements,Adult Social Care Integrated Care,"12,800.72 "
12062341,28/02/2018,19/02/2018,3000143,Beau Sejour Residential Care Home Ltd,Nursing Care Contributions,Adult Social Care Integrated Care,"-1,075.52 "
3392951,05/02/2018,15/03/2017,3000145,John Pulseford Associates Ltd,Office Furniture (Equip Furn),Highways Infrastructure & Public Realm,"12,689.60 "
3403254,02/03/2018,03/03/2017,3000145,John Pulseford Associates Ltd,Temporary Accommodation,Highways Infrastructure & Public Realm,"18,905.49 "
12063886,01/03/2018,05/02/2018,3000151,Green Oak Living Solutions Ltd,Adults Home Care,Adult Social Care Integrated Care,"28,410.58 "
3379660,31/01/2018,01/01/2018,3000155,Hertfordshire Partnership Nhs Foundation,Hired and Contracted Services,Director of Integrated Commissioning,"26,789.42 "
3390871,02/03/2018,01/02/2018,3000155,Hertfordshire Partnership Nhs Foundation,Hired and Contracted Services,Director of Integrated Commissioning,"26,789.42 "
3401694,15/03/2018,01/03/2018,3000155,Hertfordshire Partnership Nhs Foundation,Hired and Contracted Services,Director of Integrated Commissioning,"26,789.42 "
12035401,01/02/2018,24/01/2018,3000157,Candour Care Services (Broadview) Ltd,Adults Residential Placements,Adult Social Care Integrated Care,"7,434.92 "
12062224,28/02/2018,19/02/2018,3000157,Candour Care Services (Broadview) Ltd,Adults Residential Placements,Adult Social Care Integrated Care,"14,869.84 "
3408601,13/03/2018,14/12/2017,3000166,Mercury Security Systems Limited,Security alarm maintenance and monitoring - E18,Schools,600.00 
3402301,28/02/2018,17/01/2018,3000173,Queen Alexandra College Enterprises Ltd,Element 3 - Top-up Funding,Education,"19,865.04 "
3388901,05/02/2018,17/01/2018,3000173,Queen Alexandra College Enterprises Ltd,Element 3 - Top-up Funding,Education,"19,865.04 "
3399476,27/02/2018,30/01/2018,3000175,Browne Jacobson Llp,Insurance - Loss Adjustors,Revenues and Benefits,549.50 
12074319,12/03/2018,08/03/2018,3000179,Personal detail - redacted,Fees,Family Services 3,561.00 
12074245,12/03/2018,08/03/2018,3000179,Personal detail - redacted,Fees,Family Services 3,657.00 
3385186,26/01/2018,29/12/2017,3000200,Trojan Consultants Ltd,Document Archiving & Storage (Hired & Contr - Facilities Mgt),Adult Social Care Finance and Resources,"1,948.00 "
12020995,19/01/2018,17/01/2018,3000201,Foster Care Associates Ltd,Fees,Family Services 1,"1,368.00 "
12020996,19/01/2018,17/01/2018,3000201,Foster Care Associates Ltd,Fees,Family Services 1,"3,524.57 "
12021094,19/01/2018,17/01/2018,3000201,Foster Care Associates Ltd,Fees,Family Services 1,"3,392.64 "
12048795,16/02/2018,13/02/2018,3000201,Foster Care Associates Ltd,Fees,Family Services 1,"3,524.57 "
12048896,16/02/2018,13/02/2018,3000201,Foster Care Associates Ltd,Fees,Family Services 1,"15,976.18 "
12048897,16/02/2018,13/02/2018,3000201,Foster Care Associates Ltd,Fees,Family Services 1,"3,392.64 "
12075610,12/03/2018,08/03/2018,3000201,Foster Care Associates Ltd,Fees,Family Services 1,"6,708.04 "
12075723,12/03/2018,08/03/2018,3000201,Foster Care Associates Ltd,Fees,Family Services 1,"6,456.96 "
12075724,12/03/2018,08/03/2018,3000201,Foster Care Associates Ltd,Fees,Family Services 1,"7,105.28 "
12035358,01/02/2018,24/01/2018,3000203,Vision Homes Association,Adults Residential Placements,Adult Social Care Integrated Care,"7,760.00 "
12062657,28/02/2018,19/02/2018,3000203,Vision Homes Association,Nursing Care Contributions,Adult Social Care Integrated Care,-646.00 
12062657,28/02/2018,19/02/2018,3000203,Vision Homes Association,Adults Residential Placements,Adult Social Care Integrated Care,"15,520.00 "
12060747,27/02/2018,30/11/2017,3000206,Kids,Placements,Family Services 2,565.00 
12010860,10/01/2018,30/11/2017,3000206,Kids,Placements,Family Services 2,678.00 
12010825,10/01/2018,30/11/2017,3000206,Kids,Placements,Family Services 2,565.00 
3383112,02/02/2018,05/01/2018,3000206,Kids,Education (Hired & Contr - Educ),Education,"30,920.25 "
12060771,27/02/2018,24/01/2018,3000206,Kids,Placements,Family Services 2,565.00 
12050491,19/02/2018,24/01/2018,3000206,Kids,Placements,Family Services 2,565.00 
12060748,27/02/2018,12/01/2018,3000206,Kids,Placements,Family Services 2,-565.00 
12036196,02/02/2018,07/09/2017,3000206,Kids,Placements,Family Services 2,904.00 
12035114,01/02/2018,24/01/2018,3000207,Blackwells (Hereford) Ltd,Adults Residential Placements,Adult Social Care Integrated Care,"7,178.60 "
12062456,28/02/2018,19/02/2018,3000207,Blackwells (Hereford) Ltd,Adults Residential Placements,Adult Social Care Integrated Care,"14,357.20 "
12062456,28/02/2018,19/02/2018,3000207,Blackwells (Hereford) Ltd,Nursing Care Contributions,Adult Social Care Integrated Care,-652.00 
3384866,08/02/2018,09/01/2018,3000211,Cloudsend Cic,Adults Home Care,Adult Social Care Integrated Care,700.00 
3389691,23/02/2018,24/01/2018,3000211,Cloudsend Cic,Adults Home Care,Adult Social Care Integrated Care,600.00 
3390527,01/03/2018,26/01/2018,3000211,Cloudsend Cic,Adults Home Care,Adult Social Care Integrated Care,600.00 
12035214,01/02/2018,24/01/2018,3000220,Solo Care Group Ltd,Adults Residential Placements,Adult Social Care Integrated Care,"5,701.64 "
12035375,01/02/2018,24/01/2018,3000220,Solo Care Group Ltd,Adults Residential Placements,Adult Social Care Integrated Care,"6,560.00 "
12062431,28/02/2018,19/02/2018,3000220,Solo Care Group Ltd,Adults Residential Placements,Adult Social Care Integrated Care,"11,403.28 "
12062431,28/02/2018,19/02/2018,3000220,Solo Care Group Ltd,Residential Care Contributions by Residents,Adult Social Care Integrated Care,-789.20 
12062673,28/02/2018,19/02/2018,3000220,Solo Care Group Ltd,Adults Residential Placements,Adult Social Care Integrated Care,"13,120.00 "
3387247,07/02/2018,08/01/2018,3000225,The Consortium,Equipment Maintenance,Adult Social Care Integrated Care,"1,007.97 "
3394766,02/03/2018,02/02/2018,3000225,The Consortium,Equipment (Equip Health),WAES Director (Principal),920.33 
3401911,15/03/2018,19/02/2018,3000225,The Consortium,Furniture -Teaching Purposes -E19,Schools,535.47 
12035276,01/02/2018,24/01/2018,3000243,Oak Lodge Residential Home,Adults Continuing Health Care Funded Placement,Adult Social Care Integrated Care,900.00 
12035276,01/02/2018,24/01/2018,3000243,Oak Lodge Residential Home,Adults Residential Placements,Adult Social Care Integrated Care,900.00 
12062568,28/02/2018,19/02/2018,3000243,Oak Lodge Residential Home,Adults Residential Placements,Adult Social Care Integrated Care,"1,800.00 "
12062568,28/02/2018,19/02/2018,3000243,Oak Lodge Residential Home,Adults Continuing Health Care Funded Placement,Adult Social Care Integrated Care,"1,800.00 "
3409687,15/03/2018,13/03/2018,3000278,Bt Business Direct,Mobile (Telephony),Waste and Parks,"2,782.32 "
3379663,05/01/2018,23/12/2017,3000278,Bt Business Direct,Equipment (Equip Health),WAES Director (Principal),525.00 
3383113,19/01/2018,05/01/2018,3000278,Bt Business Direct,Equipment (Equip Health),WAES Director (Principal),"3,225.00 "
3395428,22/02/2018,08/02/2018,3000278,Bt Business Direct,Consumables (IT Hardware Purch),WAES Director (Principal),"3,085.50 "
3398860,02/03/2018,16/02/2018,3000278,Bt Business Direct,Consumables (IT Hardware Purch),WAES Director (Principal),"4,850.00 "
3398861,02/03/2018,16/02/2018,3000278,Bt Business Direct,Consumables (IT Hardware Purch),WAES Director (Principal),"4,850.00 "
3398862,02/03/2018,16/02/2018,3000278,Bt Business Direct,Consultancy (Hired & Contr - Consultancy),WAES Director (Principal),"1,087.50 "
3402652,12/03/2018,26/02/2018,3000278,Bt Business Direct,Consumables (IT Hardware Purch),WAES Director (Principal),"3,810.06 "
3408604,15/03/2018,09/03/2018,3000278,Bt Business Direct,Consumables (IT Hardware Purch),WAES Director (Principal),576.00 
3379226,19/01/2018,21/12/2017,3000280,Change Grow Live,Public Health (Hired & Contr - Healthcare),Public Health,"88,910.58 "
3388363,16/02/2018,19/01/2018,3000280,Change Grow Live,Public Health (Hired & Contr - Healthcare),Public Health,"88,910.58 "
3403559,15/03/2018,27/02/2018,3000280,Change Grow Live,Public Health (Hired & Contr - Healthcare),Public Health,"88,910.58 "
3398864,08/03/2018,16/11/2017,3000298,Virgin Media Business,Design and development,City Management and Communities,600.00 
3392337,02/03/2018,31/01/2018,3000301,Computer Imprintable Label Systems Ltd,Printing (Printing),Parking,"9,419.00 "
3402797,02/03/2018,01/02/2018,3000313,Mplc Ltd,Subscriptions,Adult Social Care Integrated Care,"4,979.47 "
12035162,01/02/2018,24/01/2018,3000317,Disabilities Trust,Adults Residential Placements,Adult Social Care Integrated Care,"3,004.48 "
12062523,28/02/2018,19/02/2018,3000317,Disabilities Trust,Adults Residential Placements,Adult Social Care Integrated Care,"6,008.96 "
12062523,28/02/2018,19/02/2018,3000317,Disabilities Trust,Residential Care Contributions by Residents,Adult Social Care Integrated Care,-652.00 
3377838,02/01/2018,12/10/2017,3000319,Posturite (Uk) Ltd,Training & Conferences,WCC People Services,995.00 
3371257,04/01/2018,05/12/2017,3000319,Posturite (Uk) Ltd,Training & Conferences,WCC People Services,995.00 
3380642,19/01/2018,21/12/2017,3000319,Posturite (Uk) Ltd,Office Furniture (Equip Furn),Public Protection and Licensing,862.70 
3386372,09/02/2018,12/01/2018,3000319,Posturite (Uk) Ltd,Office Furniture (Equip Furn),Family Services 2,575.19 
3401912,15/03/2018,21/02/2018,3000319,Posturite (Uk) Ltd,Training & Conferences,WCC People Services,995.00 
12035444,01/02/2018,24/01/2018,3000327,The Grace Eyre Foundation,Adults Supported Living,Adult Social Care Integrated Care,"3,534.40 "
12035107,01/02/2018,24/01/2018,3000327,The Grace Eyre Foundation,Adults Supported Living,Adult Social Care Integrated Care,600.14 
12062710,28/02/2018,19/02/2018,3000327,The Grace Eyre Foundation,Adults Supported Living,Adult Social Care Integrated Care,"7,068.80 "
12062874,28/02/2018,19/02/2018,3000327,The Grace Eyre Foundation,Adults Supported Living,Adult Social Care Integrated Care,517.04 
3388885,31/01/2018,01/01/2018,3000327,The Grace Eyre Foundation,Hired and Contracted Services,Director of Integrated Commissioning,"6,295.68 "
3397262,02/03/2018,01/02/2018,3000327,The Grace Eyre Foundation,Hired and Contracted Services,Director of Integrated Commissioning,"1,573.92 "
12021053,19/01/2018,17/01/2018,3000331,Foster Care Agency Ltd  ,Fees,Family Services 2,"4,557.00 "
3392215,02/02/2018,30/11/2017,3000336,Judge & Priestley,Advocacy (Legal Fees),Revenues and Benefits,"3,771.00 "
3375165,08/01/2018,11/12/2017,3000336,Judge & Priestley,Legal Services: Not Elsewhere Classified (Legal Fees),HRA City West Homes,760.50 
3377425,15/01/2018,18/12/2017,3000336,Judge & Priestley,Legal Services: Not Elsewhere Classified (Legal Fees),HRA City West Homes,703.50 
3381365,26/01/2018,31/12/2017,3000336,Judge & Priestley,Legal Services: Not Elsewhere Classified (Legal Fees),HRA City West Homes,510.00 
3398080,21/02/2018,31/12/2017,3000336,Judge & Priestley,Legal Services: Not Elsewhere Classified (Legal Fees),HRA City West Homes,900.00 
3390459,31/01/2018,31/12/2017,3000336,Judge & Priestley,Specialist Support (Legal Fees),Revenues and Benefits,659.00 
3387015,12/02/2018,15/01/2018,3000336,Judge & Priestley,Legal Services: Not Elsewhere Classified (Legal Fees),HRA City West Homes,"1,473.50 "
3389210,19/02/2018,22/01/2018,3000336,Judge & Priestley,Legal Services: Not Elsewhere Classified (Legal Fees),HRA City West Homes,"2,234.50 "
3391982,26/02/2018,29/01/2018,3000336,Judge & Priestley,Legal Services: Not Elsewhere Classified (Legal Fees),HRA City West Homes,928.00 
3394667,05/03/2018,05/02/2018,3000336,Judge & Priestley,Legal Services: Not Elsewhere Classified (Legal Fees),HRA City West Homes,"1,009.50 "
3400850,15/03/2018,20/02/2018,3000336,Judge & Priestley,Legal Services: Not Elsewhere Classified (Legal Fees),HRA City West Homes,"8,329.50 "
3385301,22/01/2018,11/12/2017,3000336,Judge & Priestley,Legal Services: Not Elsewhere Classified (Legal Fees),HRA City West Homes,"3,000.00 "
3392846,22/02/2018,25/01/2018,3000336,Judge & Priestley,Legal Services: Not Elsewhere Classified (Legal Fees),HRA City West Homes,"1,050.00 "
3405659,15/03/2018,27/02/2018,3000336,Judge & Priestley,Legal Services: Not Elsewhere Classified (Legal Fees),HRA City West Homes,"1,050.00 "
3405660,15/03/2018,27/02/2018,3000336,Judge & Priestley,Legal Services: Not Elsewhere Classified (Legal Fees),HRA City West Homes,650.00 
3409418,15/03/2018,07/03/2018,3000343,London Borough Of Bromley,LAC Contact,Family Services 2,900.00 
3374154,08/01/2018,11/12/2017,3000344,Mytime Active Ltd,Professional Fees (non-Legal),"Growth, Planning and Housing","4,500.00 "
3396138,27/02/2018,30/01/2018,3000344,Mytime Active Ltd,Public Health (Hired & Contr - Healthcare),Public Health,"49,959.75 "
3396139,27/02/2018,30/01/2018,3000344,Mytime Active Ltd,Public Health (Hired & Contr - Healthcare),Public Health,"50,156.68 "
3396140,27/02/2018,30/01/2018,3000344,Mytime Active Ltd,Public Health (Hired & Contr - Healthcare),Public Health,"94,385.24 "
3391985,27/02/2018,30/01/2018,3000344,Mytime Active Ltd,Public Health (Hired & Contr - Healthcare),Public Health,"23,596.31 "
3395723,08/03/2018,08/02/2018,3000344,Mytime Active Ltd,Public Health (Hired & Contr - Healthcare),Public Health,"12,144.88 "
3379341,19/01/2018,22/12/2017,3000362,Real Asset Managemant Plc,Hired and Contracted Services,Corporate Finance,"1,274.00 "
12021072,19/01/2018,17/01/2018,3000364,Safehouses Ltd,Fees,Family Services 1,"3,802.15 "
12021142,19/01/2018,17/01/2018,3000364,Safehouses Ltd,Fees,Family Services 1,"3,359.51 "
12048871,16/02/2018,13/02/2018,3000364,Safehouses Ltd,Fees,Family Services 1,"3,802.15 "
12048946,16/02/2018,13/02/2018,3000364,Safehouses Ltd,Fees,Family Services 1,"3,359.51 "
12075698,12/03/2018,08/03/2018,3000364,Safehouses Ltd,Fees,Family Services 1,"7,236.35 "
12075791,12/03/2018,08/03/2018,3000364,Safehouses Ltd,Fees,Family Services 1,"6,393.92 "
12021050,19/01/2018,17/01/2018,3000368,Fostering Outcome Ltd,Fees,Family Services 1,"4,760.67 "
12035625,01/02/2018,24/01/2018,3000384,Campania,Adults Residential Placements,Adult Social Care Integrated Care,"2,307.68 "
12035091,01/02/2018,24/01/2018,3000384,Campania,Adults Residential Placements,Adult Social Care Integrated Care,"2,600.00 "
12035683,01/02/2018,24/01/2018,3000384,Campania,Adults Residential Placements,Adult Social Care Integrated Care,"2,741.00 "
12062780,28/02/2018,19/02/2018,3000384,Campania,Adults Residential Placements,Adult Social Care Integrated Care,"4,615.36 "
12062858,28/02/2018,19/02/2018,3000384,Campania,Residential Care Contributions by Residents,Adult Social Care Integrated Care,-646.00 
12062858,28/02/2018,19/02/2018,3000384,Campania,Adults Residential Placements,Adult Social Care Integrated Care,"5,200.00 "
12062374,28/02/2018,19/02/2018,3000384,Campania,Adults Residential Placements,Adult Social Care Integrated Care,"5,482.00 "
3388183,24/01/2018,21/02/2017,3000385,Mercia Care Homes Ltd,Public Health (Hired & Contr - Healthcare),Public Health,"3,097.83 "
3394770,28/02/2018,31/01/2018,3000385,Mercia Care Homes Ltd,Public Health (Hired & Contr - Healthcare),Public Health,"1,456.00 "
3379656,30/01/2018,31/12/2017,3000386,Westcliffe House Ltd,Public Health (Hired & Contr - Healthcare),Public Health,"2,681.41 "
3390532,02/03/2018,31/01/2018,3000386,Westcliffe House Ltd,Public Health (Hired & Contr - Healthcare),Public Health,"2,681.41 "
3405314,15/03/2018,28/02/2018,3000386,Westcliffe House Ltd,Public Health (Hired & Contr - Healthcare),Public Health,"1,906.08 "
3379657,30/01/2018,31/12/2017,3000386,Westcliffe House Ltd,Public Health (Hired & Contr - Healthcare),Public Health,"1,203.60 "
3390533,02/03/2018,31/01/2018,3000386,Westcliffe House Ltd,Public Health (Hired & Contr - Healthcare),Public Health,"2,665.11 "
3403552,15/03/2018,28/02/2018,3000386,Westcliffe House Ltd,Public Health (Hired & Contr - Healthcare),Public Health,"2,407.20 "
3379777,17/01/2018,18/12/2017,3000389,Bristol Oilskin & Overall Co. Ltd,Protective (Clothing),Public Protection and Licensing,663.66 
3386759,19/01/2018,21/12/2017,3000389,Bristol Oilskin & Overall Co. Ltd,Clothing (Clothing),Public Protection and Licensing,792.45 
12076853,12/03/2018,30/11/2017,3000395,Nas Services Limited,Day Opportunities,Adult Social Care Integrated Care,"2,116.60 "
12015485,16/01/2018,13/12/2017,3000395,Nas Services Limited,Day Opportunities,Adult Social Care Integrated Care,888.56 
12006293,05/01/2018,13/12/2017,3000395,Nas Services Limited,Day Opportunities,Adult Social Care Integrated Care,"2,116.60 "
12015483,16/01/2018,13/12/2017,3000395,Nas Services Limited,Day Opportunities,Adult Social Care Integrated Care,"1,772.04 "
12015484,16/01/2018,13/12/2017,3000395,Nas Services Limited,Day Opportunities,Adult Social Care Integrated Care,"5,243.80 "
12015510,16/01/2018,13/12/2017,3000395,Nas Services Limited,Day Opportunities,Adult Social Care Integrated Care,"1,124.96 "
12076860,12/03/2018,31/12/2017,3000395,Nas Services Limited,Day Opportunities,Adult Social Care Integrated Care,"2,116.60 "
12076861,12/03/2018,30/01/2018,3000395,Nas Services Limited,Day Opportunities,Adult Social Care Integrated Care,"2,116.60 "
12035235,01/02/2018,24/01/2018,3000413,Greenfield Residential Home,Adults Residential Placements,Adult Social Care Integrated Care,"2,056.00 "
12062490,28/02/2018,19/02/2018,3000413,Greenfield Residential Home,Adults Residential Placements,Adult Social Care Integrated Care,"4,112.00 "
12074570,12/03/2018,08/03/2018,3000429,Personal detail - redacted,Placements,Family Services 3,522.00 
3401684,28/02/2018,12/11/2017,3000434,Trinity Mirror Southern Ltd,Printing (Printing),Development Planning,673.20 
3375189,09/01/2018,10/12/2017,3000434,Trinity Mirror Southern Ltd,Printing (Printing),Development Planning,673.20 
3378212,16/01/2018,17/12/2017,3000434,Trinity Mirror Southern Ltd,Printing (Printing),Development Planning,673.20 
3380644,23/01/2018,24/12/2017,3000434,Trinity Mirror Southern Ltd,Printing (Printing),Development Planning,673.20 
3385239,06/02/2018,07/01/2018,3000434,Trinity Mirror Southern Ltd,Printing (Printing),Development Planning,673.20 
3387505,13/02/2018,14/01/2018,3000434,Trinity Mirror Southern Ltd,Printing (Printing),Development Planning,673.20 
3401606,28/02/2018,21/01/2018,3000434,Trinity Mirror Southern Ltd,Publications (Expenditure),Development Planning,673.20 
3395317,06/03/2018,04/02/2018,3000434,Trinity Mirror Southern Ltd,Printing (Printing),Development Planning,673.20 
3398070,13/03/2018,11/02/2018,3000434,Trinity Mirror Southern Ltd,Printing (Printing),Development Planning,673.20 
3400604,15/03/2018,18/02/2018,3000434,Trinity Mirror Southern Ltd,Printing (Printing),Development Planning,673.20 
3403261,15/03/2018,25/02/2018,3000434,Trinity Mirror Southern Ltd,Printing (Printing),Development Planning,673.20 
12035667,01/02/2018,24/01/2018,3000441,Shaw Care Uk Ltd,Adults Residential Placements,Adult Social Care Integrated Care,"3,200.00 "
12035667,01/02/2018,24/01/2018,3000441,Shaw Care Uk Ltd,Adults Continuing Health Care Funded Placement,Adult Social Care Integrated Care,"3,200.00 "
12062358,28/02/2018,19/02/2018,3000441,Shaw Care Uk Ltd,Adults Continuing Health Care Funded Placement,Adult Social Care Integrated Care,"6,400.00 "
12062358,28/02/2018,19/02/2018,3000441,Shaw Care Uk Ltd,Adults Residential Placements,Adult Social Care Integrated Care,"6,400.00 "
3389870,30/01/2018,29/12/2017,3000451,Creditsafe Uk Ltd,Software (IT Software Purch),Procurement Services,875.00 
3400605,15/03/2018,21/02/2018,3000455,Stopford Information Systems Ltd,IT Software Maintenance,TB Information Services and Strategy,"5,900.00 "
3390864,30/01/2018,30/09/2017,3000465,Pinnacle Housing,Repairs,HRA City West Homes,580.00 
3375854,02/01/2018,19/10/2017,3000465,Pinnacle Housing,Contractors,HRA City West Homes,527.09 
3376319,09/01/2018,31/10/2017,3000465,Pinnacle Housing,Repairs,HRA City West Homes,580.00 
12057451,23/02/2018,21/02/2018,3000465,Pinnacle Housing,Building Construction Materials Reactive (R&M - React),Housing Operations,780.00 
3371266,03/01/2018,04/12/2017,3000465,Pinnacle Housing,Trade Waste and Refuse Collection,HRA City West Homes,580.00 
3383129,26/01/2018,29/12/2017,3000465,Pinnacle Housing,Contractors,HRA City West Homes,"10,417.00 "
3392835,23/02/2018,26/01/2018,3000465,Pinnacle Housing,Contractors,HRA City West Homes,"10,417.00 "
3393943,23/02/2018,26/01/2018,3000465,Pinnacle Housing,Repairs,HRA City West Homes,580.00 
3393931,23/02/2018,26/01/2018,3000465,Pinnacle Housing,Open Spaces (R&M - React),HRA City West Homes,520.00 
12057473,23/02/2018,21/02/2018,3000465,Pinnacle Housing,Building Construction Materials Reactive (R&M - React),Housing Operations,750.00 
3401904,15/03/2018,20/02/2018,3000465,Pinnacle Housing,Hired and Contracted Services,"Policy, Performance and Communications",932.40 
3400855,15/03/2018,21/02/2018,3000465,Pinnacle Housing,Contractors,HRA City West Homes,"10,417.00 "
3404886,15/03/2018,28/02/2018,3000465,Pinnacle Housing,Repairs,HRA City West Homes,580.00 
3404887,15/03/2018,28/02/2018,3000465,Pinnacle Housing,Open Spaces (R&M - React),HRA City West Homes,800.00 
3404889,15/03/2018,28/02/2018,3000465,Pinnacle Housing,Open Spaces (R&M - React),HRA City West Homes,780.00 
3377393,17/01/2018,18/12/2017,3000465,Pinnacle Housing,Contractors,HRA City West Homes,"1,563.29 "
3402798,15/03/2018,26/02/2018,3000468,Lynmac Training & Consultancy Ltd,Consultancy (Hired & Contr - Consultancy),Education,750.00 
12035262,01/02/2018,24/01/2018,3000470,Outlook Care,Adults Extra Care,Adult Social Care Integrated Care,"2,146.88 "
12035262,01/02/2018,24/01/2018,3000470,Outlook Care,Adults Supported Living,Adult Social Care Integrated Care,"1,637.68 "
12035304,01/02/2018,24/01/2018,3000470,Outlook Care,Adults Residential Placements,Adult Social Care Integrated Care,"1,372.00 "
12035304,01/02/2018,24/01/2018,3000470,Outlook Care,Adults Continuing Health Care Funded Placement,Adult Social Care Integrated Care,"1,372.00 "
12035402,01/02/2018,24/01/2018,3000470,Outlook Care,Adults Extra Care,Adult Social Care Integrated Care,"2,146.88 "
12035402,01/02/2018,24/01/2018,3000470,Outlook Care,Adults Supported Living,Adult Social Care Integrated Care,"1,637.68 "
12035403,01/02/2018,24/01/2018,3000470,Outlook Care,Adults Extra Care,Adult Social Care Integrated Care,"3,842.40 "
12035479,01/02/2018,24/01/2018,3000470,Outlook Care,Adults Residential Placements,Adult Social Care Integrated Care,"2,512.00 "
12035479,01/02/2018,24/01/2018,3000470,Outlook Care,Adults Continuing Health Care Funded Placement,Adult Social Care Integrated Care,"2,512.00 "
12035606,01/02/2018,24/01/2018,3000470,Outlook Care,Adults Supported Living,Adult Social Care Integrated Care,"2,044.80 "
12035606,01/02/2018,24/01/2018,3000470,Outlook Care,Adults Extra Care,Adult Social Care Integrated Care,"2,146.88 "
12035607,01/02/2018,24/01/2018,3000470,Outlook Care,Adults Extra Care,Adult Social Care Integrated Care,840.00 
12062554,28/02/2018,19/02/2018,3000470,Outlook Care,Adults Supported Living,Adult Social Care Integrated Care,"3,275.36 "
12062554,28/02/2018,19/02/2018,3000470,Outlook Care,Adults Extra Care,Adult Social Care Integrated Care,"4,293.76 "
12062605,28/02/2018,19/02/2018,3000470,Outlook Care,Adults Continuing Health Care Funded Placement,Adult Social Care Integrated Care,"2,744.00 "
12062605,28/02/2018,19/02/2018,3000470,Outlook Care,Adults Residential Placements,Adult Social Care Integrated Care,"2,744.00 "
12062225,28/02/2018,19/02/2018,3000470,Outlook Care,Adults Extra Care,Adult Social Care Integrated Care,"4,293.76 "
12062225,28/02/2018,19/02/2018,3000470,Outlook Care,Adults Supported Living,Adult Social Care Integrated Care,"3,275.36 "
12062269,28/02/2018,19/02/2018,3000470,Outlook Care,Adults Residential Placements,Adult Social Care Integrated Care,"5,024.00 "
12062269,28/02/2018,19/02/2018,3000470,Outlook Care,Adults Continuing Health Care Funded Placement,Adult Social Care Integrated Care,"5,024.00 "
12062328,28/02/2018,19/02/2018,3000470,Outlook Care,Adults Extra Care,Adult Social Care Integrated Care,"4,293.76 "
12062328,28/02/2018,19/02/2018,3000470,Outlook Care,Adults Supported Living,Adult Social Care Integrated Care,"4,089.60 "
12062329,28/02/2018,19/02/2018,3000470,Outlook Care,Adults Extra Care,Adult Social Care Integrated Care,"1,680.00 "
12035036,01/02/2018,24/01/2018,3000472,The Squirrels Larchwood,Adults Residential Placements,Adult Social Care Integrated Care,"1,812.44 "
3398283,08/03/2018,06/02/2018,3000488,Pearson (Exams/Registrations/Training),Exam Fees,WAES Director (Principal),"6,842.30 "
3398284,08/03/2018,06/02/2018,3000488,Pearson (Exams/Registrations/Training),Exam Fees,WAES Director (Principal),791.70 
3400856,15/03/2018,13/02/2018,3000488,Pearson (Exams/Registrations/Training),Exam Fees,WAES Director (Principal),"3,842.55 "
3396144,02/03/2018,02/02/2018,3000489,Pearson Education Ltd(Books),Books (library and text books) -E19,Schools,"1,237.57 "
12020997,19/01/2018,17/01/2018,3000494,Fostering People Too,Fees,Family Services 1,"3,410.00 "
12048796,16/02/2018,13/02/2018,3000494,Fostering People Too,Fees,Family Services 1,"3,410.00 "
12075607,12/03/2018,08/03/2018,3000494,Fostering People Too,Fees,Family Services 1,"6,490.00 "
12035268,01/02/2018,24/01/2018,3000503,Essex Autistic Society,Adults Continuing Health Care Funded Placement,Adult Social Care Integrated Care,"11,644.00 "
12035364,01/02/2018,24/01/2018,3000503,Essex Autistic Society,Adults Residential Placements,Adult Social Care Integrated Care,"5,390.24 "
12062560,28/02/2018,19/02/2018,3000503,Essex Autistic Society,Adults Continuing Health Care Funded Placement,Adult Social Care Integrated Care,"23,288.00 "
12062663,28/02/2018,19/02/2018,3000503,Essex Autistic Society,Adults Residential Placements,Adult Social Care Integrated Care,"10,780.48 "
12035499,01/02/2018,24/01/2018,3000508,Acorn Village,Adults Residential Placements,Adult Social Care Integrated Care,"5,221.08 "
12062726,28/02/2018,19/02/2018,3000508,Acorn Village,Adults Residential Placements,Adult Social Care Integrated Care,"10,442.16 "
12035522,01/02/2018,24/01/2018,3000519,Grove Care Partnership Ltd,Adults Residential Placements,Adult Social Care Integrated Care,"8,051.84 "
12062281,28/02/2018,19/02/2018,3000519,Grove Care Partnership Ltd,Adults Residential Placements,Adult Social Care Integrated Care,"16,103.68 "
12062281,28/02/2018,19/02/2018,3000519,Grove Care Partnership Ltd,Nursing Care Contributions,Adult Social Care Integrated Care,-730.16 
3390534,30/01/2018,20/11/2017,3000523,Equinox,Public Health (Hired & Contr - Healthcare),Public Health,"2,300.00 "
3390535,30/01/2018,20/11/2017,3000523,Equinox,Public Health (Hired & Contr - Healthcare),Public Health,"3,000.00 "
3390536,30/01/2018,20/11/2017,3000523,Equinox,Public Health (Hired & Contr - Healthcare),Public Health,"3,820.00 "
3390537,30/01/2018,20/11/2017,3000523,Equinox,Public Health (Hired & Contr - Healthcare),Public Health,"2,300.00 "
3388844,25/01/2018,18/01/2018,3000523,Equinox,Public Health (Hired & Contr - Healthcare),Public Health,"2,300.00 "
3388845,25/01/2018,18/01/2018,3000523,Equinox,Public Health (Hired & Contr - Healthcare),Public Health,"2,300.00 "
3388847,25/01/2018,22/01/2018,3000523,Equinox,Public Health (Hired & Contr - Healthcare),Public Health,"2,990.00 "
3388836,25/01/2018,22/01/2018,3000523,Equinox,Public Health (Hired & Contr - Healthcare),Public Health,"2,318.00 "
3388837,25/01/2018,22/01/2018,3000523,Equinox,Public Health (Hired & Contr - Healthcare),Public Health,"3,910.00 "
3388838,25/01/2018,22/01/2018,3000523,Equinox,Public Health (Hired & Contr - Healthcare),Public Health,"2,300.00 "
3388839,25/01/2018,22/01/2018,3000523,Equinox,Public Health (Hired & Contr - Healthcare),Public Health,"2,300.00 "
3388841,25/01/2018,22/01/2018,3000523,Equinox,Public Health (Hired & Contr - Healthcare),Public Health,"2,300.00 "
3395327,16/02/2018,07/02/2018,3000523,Equinox,Public Health (Hired & Contr - Healthcare),Public Health,"3,220.00 "
3395328,16/02/2018,07/02/2018,3000523,Equinox,Public Health (Hired & Contr - Healthcare),Public Health,"2,300.00 "
3395329,09/02/2018,07/02/2018,3000523,Equinox,Public Health (Hired & Contr - Healthcare),Public Health,"2,300.00 "
12020994,19/01/2018,17/01/2018,3000527,Young London Today,Placements,Family Services 2,"5,712.86 "
12048794,16/02/2018,13/02/2018,3000527,Young London Today,Placements,Family Services 2,"5,712.86 "
12075615,12/03/2018,08/03/2018,3000527,Young London Today,Placements,Family Services 2,"10,872.85 "
12021005,19/01/2018,17/01/2018,3000536,Children Of Colour Ltd,Fees,Family Services 1,"3,558.80 "
12048803,16/02/2018,13/02/2018,3000536,Children Of Colour Ltd,Fees,Family Services 1,"3,558.80 "
12075609,12/03/2018,08/03/2018,3000536,Children Of Colour Ltd,Fees,Family Services 1,"6,773.20 "
12035277,01/02/2018,24/01/2018,3000552,Deepdene Care Ltd,Adults Residential Placements,Adult Social Care Integrated Care,"3,584.40 "
12035330,01/02/2018,24/01/2018,3000552,Deepdene Care Ltd,Adults Residential Placements,Adult Social Care Integrated Care,"2,500.00 "
12035450,01/02/2018,24/01/2018,3000552,Deepdene Care Ltd,Adults Continuing Health Care Funded Placement,Adult Social Care Integrated Care,"1,590.00 "
12035450,01/02/2018,24/01/2018,3000552,Deepdene Care Ltd,Adults Residential Placements,Adult Social Care Integrated Care,"1,590.00 "
12035118,01/02/2018,24/01/2018,3000552,Deepdene Care Ltd,Adults Residential Placements,Adult Social Care Integrated Care,"3,300.00 "
12062569,28/02/2018,19/02/2018,3000552,Deepdene Care Ltd,Adults Residential Placements,Adult Social Care Integrated Care,"7,168.80 "
12062632,28/02/2018,19/02/2018,3000552,Deepdene Care Ltd,Adults Residential Placements,Adult Social Care Integrated Care,"5,000.00 "
12062239,28/02/2018,19/02/2018,3000552,Deepdene Care Ltd,Adults Residential Placements,Adult Social Care Integrated Care,"3,180.00 "
12062239,28/02/2018,19/02/2018,3000552,Deepdene Care Ltd,Adults Continuing Health Care Funded Placement,Adult Social Care Integrated Care,"3,180.00 "
12062460,28/02/2018,19/02/2018,3000552,Deepdene Care Ltd,Adults Residential Placements,Adult Social Care Integrated Care,"6,600.00 "
12035100,01/02/2018,24/01/2018,3000557,Laurel Residential Homes Ltd,Adults Residential Placements,Adult Social Care Integrated Care,"1,800.00 "
12035536,01/02/2018,24/01/2018,3000557,Laurel Residential Homes Ltd,Adults Residential Placements,Adult Social Care Integrated Care,"1,400.00 "
12035536,01/02/2018,24/01/2018,3000557,Laurel Residential Homes Ltd,Adults Continuing Health Care Funded Placement,Adult Social Care Integrated Care,"1,400.00 "
12062867,28/02/2018,19/02/2018,3000557,Laurel Residential Homes Ltd,Adults Residential Placements,Adult Social Care Integrated Care,"3,600.00 "
12062294,28/02/2018,19/02/2018,3000557,Laurel Residential Homes Ltd,Adults Continuing Health Care Funded Placement,Adult Social Care Integrated Care,"2,800.00 "
12062294,28/02/2018,19/02/2018,3000557,Laurel Residential Homes Ltd,Adults Residential Placements,Adult Social Care Integrated Care,"2,800.00 "
12035178,01/02/2018,24/01/2018,3000561,Tudor House,Funded Nursing Care (FNC),Adult Social Care Integrated Care,-620.20 
12035178,01/02/2018,24/01/2018,3000561,Tudor House,Adults Nursing Placements,Adult Social Care Integrated Care,"3,166.96 "
12062538,28/02/2018,19/02/2018,3000561,Tudor House,Funded Nursing Care (FNC),Adult Social Care Integrated Care,"-1,240.40 "
12062538,28/02/2018,19/02/2018,3000561,Tudor House,Adults Nursing Placements,Adult Social Care Integrated Care,"6,333.92 "
12021033,19/01/2018,17/01/2018,3000562,Croham Services For Children Ltd,Fees,Family Services 1,"3,047.43 "
12048833,16/02/2018,13/02/2018,3000562,Croham Services For Children Ltd,Fees,Family Services 1,"3,047.43 "
12075642,12/03/2018,08/03/2018,3000562,Croham Services For Children Ltd,Fees,Family Services 1,884.74 
3396490,09/03/2018,08/02/2018,3000573,M3 Housing,Software (IT Software Purch),HRA City West Homes,885.00 
12035225,01/02/2018,24/01/2018,3000577,Susah Uk Ltd,Adults Continuing Health Care Funded Placement,Adult Social Care Integrated Care,"2,266.00 "
12035225,01/02/2018,24/01/2018,3000577,Susah Uk Ltd,Adults Residential Placements,Adult Social Care Integrated Care,"2,266.00 "
12035319,01/02/2018,24/01/2018,3000577,Susah Uk Ltd,Adults Continuing Health Care Funded Placement,Adult Social Care Integrated Care,"1,782.00 "
12035319,01/02/2018,24/01/2018,3000577,Susah Uk Ltd,Adults Nursing Placements,Adult Social Care Integrated Care,"1,782.00 "
12035626,01/02/2018,24/01/2018,3000577,Susah Uk Ltd,Adults Continuing Health Care Funded Placement,Adult Social Care Integrated Care,"1,600.00 "
12035626,01/02/2018,24/01/2018,3000577,Susah Uk Ltd,Adults Residential Placements,Adult Social Care Integrated Care,"1,600.00 "
12035523,01/02/2018,24/01/2018,3000577,Susah Uk Ltd,Adults Continuing Health Care Funded Placement,Adult Social Care Integrated Care,"2,050.12 "
12035523,01/02/2018,24/01/2018,3000577,Susah Uk Ltd,Adults Residential Placements,Adult Social Care Integrated Care,"2,050.16 "
12062480,28/02/2018,19/02/2018,3000577,Susah Uk Ltd,Adults Residential Placements,Adult Social Care Integrated Care,"4,532.00 "
12062480,28/02/2018,19/02/2018,3000577,Susah Uk Ltd,Adults Continuing Health Care Funded Placement,Adult Social Care Integrated Care,"4,532.00 "
12062620,28/02/2018,19/02/2018,3000577,Susah Uk Ltd,Adults Nursing Placements,Adult Social Care Integrated Care,"3,564.00 "
12062620,28/02/2018,19/02/2018,3000577,Susah Uk Ltd,Adults Continuing Health Care Funded Placement,Adult Social Care Integrated Care,"3,564.00 "
12062781,28/02/2018,19/02/2018,3000577,Susah Uk Ltd,Adults Continuing Health Care Funded Placement,Adult Social Care Integrated Care,"3,200.00 "
12062781,28/02/2018,19/02/2018,3000577,Susah Uk Ltd,Adults Residential Placements,Adult Social Care Integrated Care,"3,200.00 "
12062282,28/02/2018,19/02/2018,3000577,Susah Uk Ltd,Adults Continuing Health Care Funded Placement,Adult Social Care Integrated Care,"4,100.24 "
12062282,28/02/2018,19/02/2018,3000577,Susah Uk Ltd,Adults Residential Placements,Adult Social Care Integrated Care,"4,100.32 "
12074315,12/03/2018,08/03/2018,3000578,Personal detail - redacted,Fees,Family Services 2,"1,011.00 "
3405666,12/03/2018,04/12/2017,3000582,RWA Security Ltd,Personnel (Hired & Contr - Consultancy),Public Protection and Licensing,805.00 
3405667,12/03/2018,04/12/2017,3000582,RWA Security Ltd,Personnel (Hired & Contr - Consultancy),Public Protection and Licensing,828.00 
3382823,10/01/2018,05/01/2017,3000582,RWA Security Ltd,Personnel (Hired & Contr - Consultancy),Public Protection and Licensing,828.00 
3382824,09/01/2018,05/01/2017,3000582,RWA Security Ltd,Personnel (Hired & Contr - Consultancy),Public Protection and Licensing,552.00 
3391518,28/02/2018,29/01/2018,3000582,RWA Security Ltd,Personnel (Hired & Contr - Consultancy),Public Protection and Licensing,"1,058.00 "
3391519,28/02/2018,29/01/2018,3000582,RWA Security Ltd,Personnel (Hired & Contr - Consultancy),Public Protection and Licensing,552.00 
12035211,01/02/2018,24/01/2018,3000588,Nas House,Adults Residential Placements,Adult Social Care Integrated Care,"2,600.00 "
12035212,01/02/2018,24/01/2018,3000588,Nas House,Adults Residential Placements,Adult Social Care Integrated Care,"1,725.52 "
12035212,01/02/2018,24/01/2018,3000588,Nas House,Adults Continuing Health Care Funded Placement,Adult Social Care Integrated Care,"1,725.52 "
12035289,01/02/2018,24/01/2018,3000588,Nas House,Adults Continuing Health Care Funded Placement,Adult Social Care Integrated Care,"1,300.00 "
12035289,01/02/2018,24/01/2018,3000588,Nas House,Adults Residential Placements,Adult Social Care Integrated Care,"1,300.00 "
12035380,01/02/2018,24/01/2018,3000588,Nas House,Residential Care Contributions by Residents,Adult Social Care Integrated Care,-537.76 
12035380,01/02/2018,24/01/2018,3000588,Nas House,Adults Residential Placements,Adult Social Care Integrated Care,"1,833.88 "
12035381,01/02/2018,24/01/2018,3000588,Nas House,Adults Residential Placements,Adult Social Care Integrated Care,916.96 
12035381,01/02/2018,24/01/2018,3000588,Nas House,Adults Continuing Health Care Funded Placement,Adult Social Care Integrated Care,916.96 
12035073,01/02/2018,24/01/2018,3000588,Nas House,Adults Residential Placements,Adult Social Care Integrated Care,916.96 
12035073,01/02/2018,24/01/2018,3000588,Nas House,Adults Continuing Health Care Funded Placement,Adult Social Care Integrated Care,916.96 
12035465,01/02/2018,24/01/2018,3000588,Nas House,Adults Residential Placements,Adult Social Care Integrated Care,"1,133.24 "
12035465,01/02/2018,24/01/2018,3000588,Nas House,Adults Continuing Health Care Funded Placement,Adult Social Care Integrated Care,"1,133.24 "
12035656,01/02/2018,24/01/2018,3000588,Nas House,Adults Residential Placements,Adult Social Care Integrated Care,916.96 
12035656,01/02/2018,24/01/2018,3000588,Nas House,Adults Continuing Health Care Funded Placement,Adult Social Care Integrated Care,916.96 
12035657,01/02/2018,24/01/2018,3000588,Nas House,Adults Residential Placements,Adult Social Care Integrated Care,916.96 
12035657,01/02/2018,24/01/2018,3000588,Nas House,Adults Continuing Health Care Funded Placement,Adult Social Care Integrated Care,916.96 
12035136,01/02/2018,24/01/2018,3000588,Nas House,Adults Residential Placements,Adult Social Care Integrated Care,"3,050.00 "
12035136,01/02/2018,24/01/2018,3000588,Nas House,Adults Continuing Health Care Funded Placement,Adult Social Care Integrated Care,"3,050.00 "
12062428,28/02/2018,19/02/2018,3000588,Nas House,Adults Residential Placements,Adult Social Care Integrated Care,"5,200.00 "
12062429,28/02/2018,19/02/2018,3000588,Nas House,Adults Continuing Health Care Funded Placement,Adult Social Care Integrated Care,"3,451.04 "
12062429,28/02/2018,19/02/2018,3000588,Nas House,Adults Residential Placements,Adult Social Care Integrated Care,"3,451.04 "
12062581,28/02/2018,19/02/2018,3000588,Nas House,Adults Continuing Health Care Funded Placement,Adult Social Care Integrated Care,"2,600.00 "
12062581,28/02/2018,19/02/2018,3000588,Nas House,Adults Residential Placements,Adult Social Care Integrated Care,"2,600.00 "
12062678,28/02/2018,19/02/2018,3000588,Nas House,Residential Care Contributions by Residents,Adult Social Care Integrated Care,"-1,075.52 "
12062678,28/02/2018,19/02/2018,3000588,Nas House,Adults Residential Placements,Adult Social Care Integrated Care,"3,667.76 "
12062679,28/02/2018,19/02/2018,3000588,Nas House,Adults Residential Placements,Adult Social Care Integrated Care,"1,833.92 "
12062679,28/02/2018,19/02/2018,3000588,Nas House,Adults Continuing Health Care Funded Placement,Adult Social Care Integrated Care,"1,833.92 "
12062840,28/02/2018,19/02/2018,3000588,Nas House,Adults Residential Placements,Adult Social Care Integrated Care,"1,833.92 "
12062840,28/02/2018,19/02/2018,3000588,Nas House,Adults Continuing Health Care Funded Placement,Adult Social Care Integrated Care,"1,833.92 "
12062255,28/02/2018,19/02/2018,3000588,Nas House,Adults Residential Placements,Adult Social Care Integrated Care,"2,266.48 "
12062255,28/02/2018,19/02/2018,3000588,Nas House,Adults Continuing Health Care Funded Placement,Adult Social Care Integrated Care,"2,266.48 "
12062347,28/02/2018,19/02/2018,3000588,Nas House,Adults Residential Placements,Adult Social Care Integrated Care,"1,833.92 "
12062347,28/02/2018,19/02/2018,3000588,Nas House,Adults Continuing Health Care Funded Placement,Adult Social Care Integrated Care,"1,833.92 "
12062348,28/02/2018,19/02/2018,3000588,Nas House,Adults Residential Placements,Adult Social Care Integrated Care,"1,833.92 "
12062348,28/02/2018,19/02/2018,3000588,Nas House,Adults Continuing Health Care Funded Placement,Adult Social Care Integrated Care,"1,833.92 "
12062511,28/02/2018,19/02/2018,3000588,Nas House,Adults Residential Placements,Adult Social Care Integrated Care,"2,800.00 "
12062511,28/02/2018,19/02/2018,3000588,Nas House,Adults Continuing Health Care Funded Placement,Adult Social Care Integrated Care,"2,800.00 "
12021045,19/01/2018,17/01/2018,3000590,Hestia Enterprises Ltd,Placements,Family Services 1,"3,764.29 "
12021147,19/01/2018,17/01/2018,3000590,Hestia Enterprises Ltd,Placements,Family Services 1,"2,671.43 "
12048848,16/02/2018,13/02/2018,3000590,Hestia Enterprises Ltd,Placements,Family Services 1,"3,764.29 "
12048900,16/02/2018,13/02/2018,3000590,Hestia Enterprises Ltd,Placements,Family Services 1,"2,878.57 "
12048949,16/02/2018,13/02/2018,3000590,Hestia Enterprises Ltd,Placements,Family Services 1,"3,764.29 "
12075658,12/03/2018,08/03/2018,3000590,Hestia Enterprises Ltd,Placements,Family Services 1,"7,164.28 "
12075719,12/03/2018,08/03/2018,3000590,Hestia Enterprises Ltd,Placements,Family Services 1,"5,478.57 "
12075781,12/03/2018,08/03/2018,3000590,Hestia Enterprises Ltd,Placements,Family Services 1,"7,164.28 "
12035437,01/02/2018,24/01/2018,3000592,Thornton Lodge,Adults Continuing Health Care Funded Placement,Adult Social Care Integrated Care,"1,151.40 "
12035437,01/02/2018,24/01/2018,3000592,Thornton Lodge,Adults Residential Placements,Adult Social Care Integrated Care,"1,151.40 "
12035685,01/02/2018,24/01/2018,3000592,Thornton Lodge,Adults Residential Placements,Adult Social Care Integrated Care,"1,111.52 "
12035685,01/02/2018,24/01/2018,3000592,Thornton Lodge,Adults Continuing Health Care Funded Placement,Adult Social Care Integrated Care,"1,111.52 "
12062703,28/02/2018,19/02/2018,3000592,Thornton Lodge,Adults Continuing Health Care Funded Placement,Adult Social Care Integrated Care,"2,302.80 "
12062703,28/02/2018,19/02/2018,3000592,Thornton Lodge,Adults Residential Placements,Adult Social Care Integrated Care,"2,302.80 "
12062376,28/02/2018,19/02/2018,3000592,Thornton Lodge,Adults Residential Placements,Adult Social Care Integrated Care,"2,223.04 "
12062376,28/02/2018,19/02/2018,3000592,Thornton Lodge,Adults Continuing Health Care Funded Placement,Adult Social Care Integrated Care,"2,223.04 "
3396717,13/02/2018,13/01/2018,3000593,Sue Simon Dog Grooming,Hired and Contracted Services,Adult Social Care Finance and Resources,"1,615.00 "
12035149,01/02/2018,24/01/2018,3000599,Springlake Care Home Ltd,Adults Residential Placements,Adult Social Care Integrated Care,"6,000.00 "
12035150,01/02/2018,24/01/2018,3000599,Springlake Care Home Ltd,Adults Residential Placements,Adult Social Care Integrated Care,"5,400.00 "
12035068,01/02/2018,24/01/2018,3000599,Springlake Care Home Ltd,Adults Residential Placements,Adult Social Care Integrated Care,"6,800.00 "
12062407,28/02/2018,19/02/2018,3000599,Springlake Care Home Ltd,Adults Residential Placements,Adult Social Care Integrated Care,"12,000.00 "
12062407,28/02/2018,19/02/2018,3000599,Springlake Care Home Ltd,Nursing Care Contributions,Adult Social Care Integrated Care,-652.00 
12062408,28/02/2018,19/02/2018,3000599,Springlake Care Home Ltd,Adults Residential Placements,Adult Social Care Integrated Care,"10,800.00 "
12062408,28/02/2018,19/02/2018,3000599,Springlake Care Home Ltd,Nursing Care Contributions,Adult Social Care Integrated Care,-652.00 
12062447,28/02/2018,19/02/2018,3000599,Springlake Care Home Ltd,Adults Residential Placements,Adult Social Care Integrated Care,"13,600.00 "
12062447,28/02/2018,19/02/2018,3000599,Springlake Care Home Ltd,Nursing Care Contributions,Adult Social Care Integrated Care,-652.00 
12074542,12/03/2018,08/03/2018,3000619,Personal detail - redacted,Placements,Family Services 3,582.87 
12074575,12/03/2018,08/03/2018,3000619,Personal detail - redacted,Placements,Family Services 3,562.47 
12021100,19/01/2018,17/01/2018,3000625,Fostercare Uk Ltd,Fees,Family Services 1,"3,666.86 "
12021100,19/01/2018,17/01/2018,3000625,Fostercare Uk Ltd,Placements,Family Services 1,"1,015.00 "
12048902,16/02/2018,13/02/2018,3000625,Fostercare Uk Ltd,Fees,Family Services 1,"3,666.86 "
12075726,12/03/2018,08/03/2018,3000625,Fostercare Uk Ltd,Fees,Family Services 1,"6,978.85 "
12035126,01/02/2018,24/01/2018,3000631,Broadstreet House Limited,Adults Residential Placements,Adult Social Care Integrated Care,"2,992.92 "
12062468,28/02/2018,19/02/2018,3000631,Broadstreet House Limited,Adults Residential Placements,Adult Social Care Integrated Care,"5,985.84 "
12062468,28/02/2018,19/02/2018,3000631,Broadstreet House Limited,Residential Care Contributions by Residents,Adult Social Care Integrated Care,-652.00 
12035436,01/02/2018,24/01/2018,3000634,Terrance House Care Ltd,Adults Residential Placements,Adult Social Care Integrated Care,"1,709.92 "
12062702,28/02/2018,19/02/2018,3000634,Terrance House Care Ltd,Adults Residential Placements,Adult Social Care Integrated Care,"3,419.84 "
3396492,02/03/2018,02/02/2018,3000635,University Of Kent,Specialist Training,Adult Social Care Integrated Care,"8,830.50 "
12074220,12/03/2018,08/03/2018,3000637,Personal detail - redacted,Fees,Family Services 3,561.00 
12035421,01/02/2018,24/01/2018,3000652,Richmond Health Care Ltd,Funded Nursing Care (FNC),Adult Social Care Integrated Care,-620.20 
12035421,01/02/2018,24/01/2018,3000652,Richmond Health Care Ltd,Adults Nursing Placements,Adult Social Care Integrated Care,"2,732.76 "
12062689,28/02/2018,19/02/2018,3000652,Richmond Health Care Ltd,Funded Nursing Care (FNC),Adult Social Care Integrated Care,"-1,240.40 "
12062689,28/02/2018,19/02/2018,3000652,Richmond Health Care Ltd,Adults Nursing Placements,Adult Social Care Integrated Care,"5,465.52 "
12021490,22/01/2018,19/01/2018,3000656,Personal detail - redacted,Direct payments - client,Family Services 2,"3,158.40 "
12021506,22/01/2018,19/01/2018,3000656,Personal detail - redacted,Direct payments - client,Family Services 2,586.56 
12049004,16/02/2018,15/02/2018,3000656,Personal detail - redacted,Direct payments - client,Family Services 2,"2,256.00 "
12073972,09/03/2018,08/03/2018,3000656,Personal detail - redacted,Direct payments - client,Family Services 2,"1,047.43 "
12074061,09/03/2018,08/03/2018,3000656,Personal detail - redacted,Direct payments - client,Family Services 2,"1,208.57 "
3398412,09/03/2018,09/02/2018,3000663,Rics,Subscriptions,"Policy, Performance and Communications","3,456.00 "
12021002,19/01/2018,17/01/2018,3000669,Capstone Foster Care (South East)ltd,Fees,Family Services 1,"3,137.95 "
12021003,19/01/2018,17/01/2018,3000669,Capstone Foster Care (South East)ltd,Fees,Family Services 1,"3,073.69 "
12021028,19/01/2018,17/01/2018,3000669,Capstone Foster Care (South East)ltd,Fees,Family Services 1,"3,379.00 "
12021046,19/01/2018,17/01/2018,3000669,Capstone Foster Care (South East)ltd,Fees,Family Services 1,"3,311.42 "
12021047,19/01/2018,17/01/2018,3000669,Capstone Foster Care (South East)ltd,Fees,Family Services 1,"3,009.79 "
12048801,16/02/2018,13/02/2018,3000669,Capstone Foster Care (South East)ltd,Fees,Family Services 1,"3,137.95 "
12048802,16/02/2018,13/02/2018,3000669,Capstone Foster Care (South East)ltd,Fees,Family Services 1,"3,073.69 "
12048826,16/02/2018,13/02/2018,3000669,Capstone Foster Care (South East)ltd,Fees,Family Services 1,"3,379.00 "
12048849,16/02/2018,13/02/2018,3000669,Capstone Foster Care (South East)ltd,Fees,Family Services 1,"3,311.42 "
12048850,16/02/2018,13/02/2018,3000669,Capstone Foster Care (South East)ltd,Fees,Family Services 1,"3,009.79 "
12075604,12/03/2018,08/03/2018,3000669,Capstone Foster Care (South East)ltd,Fees,Family Services 1,"5,972.24 "
12075605,12/03/2018,08/03/2018,3000669,Capstone Foster Care (South East)ltd,Fees,Family Services 1,"5,849.94 "
12075636,12/03/2018,08/03/2018,3000669,Capstone Foster Care (South East)ltd,Fees,Family Services 1,"6,431.00 "
12075663,12/03/2018,08/03/2018,3000669,Capstone Foster Care (South East)ltd,Fees,Family Services 1,"6,302.38 "
12075664,12/03/2018,08/03/2018,3000669,Capstone Foster Care (South East)ltd,Fees,Family Services 1,"5,728.31 "
3388585,25/01/2018,28/09/2017,3000672,F.M Conway Ltd,Planned Maintenance,Highways Infrastructure & Public Realm,"1,403.65 "
3388584,06/02/2018,10/10/2017,3000672,F.M Conway Ltd,Design and development,City Management and Communities,"11,958.00 "
3385293,19/01/2018,30/12/2017,3000672,F.M Conway Ltd,Construction - enhancements,City Management and Communities,"4,809.40 "
3385294,23/01/2018,30/12/2017,3000672,F.M Conway Ltd,Construction - enhancements,City Management and Communities,"71,039.00 "
3385295,19/01/2018,30/12/2017,3000672,F.M Conway Ltd,Construction - enhancements,City Management and Communities,"294,688.20 "
3385296,19/01/2018,30/12/2017,3000672,F.M Conway Ltd,Construction - enhancements,City Management and Communities,"142,313.21 "
3385624,19/01/2018,30/12/2017,3000672,F.M Conway Ltd,Construction - enhancements,City Management and Communities,"5,129.50 "
3385623,19/01/2018,30/12/2017,3000672,F.M Conway Ltd,Construction - enhancements,City Management and Communities,"21,136.15 "
3356434,27/02/2018,20/10/2017,3000672,F.M Conway Ltd,Construction - enhancements,City Management and Communities,"-53,259.00 "
3405670,13/03/2018,10/11/2017,3000672,F.M Conway Ltd,Contractors � converted balance - no analysis,Highways Infrastructure & Public Realm,"12,147.21 "
3395913,20/02/2018,30/01/2018,3000672,F.M Conway Ltd,Construction - enhancements,City Management and Communities,"2,506.00 "
3395914,20/02/2018,30/01/2018,3000672,F.M Conway Ltd,Construction - enhancements,City Management and Communities,"94,937.21 "
3395920,01/03/2018,30/01/2018,3000672,F.M Conway Ltd,Construction - enhancements,City Management and Communities,"-15,787.97 "
3395915,20/02/2018,30/01/2018,3000672,F.M Conway Ltd,Construction - enhancements,City Management and Communities,"2,704.00 "
3395916,20/02/2018,30/01/2018,3000672,F.M Conway Ltd,Construction - enhancements,City Management and Communities,"49,356.04 "
3395443,27/02/2018,31/01/2018,3000672,F.M Conway Ltd,Reactive Maintenance,Highways Infrastructure & Public Realm,"73,425.78 "
3395444,27/02/2018,31/01/2018,3000672,F.M Conway Ltd,Reactive Maintenance,Highways Infrastructure & Public Realm,"139,661.44 "
3395441,13/02/2018,31/01/2018,3000672,F.M Conway Ltd,Reactive Maintenance,Highways Infrastructure & Public Realm,"-11,132.46 "
3395442,13/02/2018,31/01/2018,3000672,F.M Conway Ltd,Reactive Maintenance,Highways Infrastructure & Public Realm,"-54,402.01 "
3408607,14/03/2018,30/11/2017,3000672,F.M Conway Ltd,Construction - enhancements,City Management and Communities,"4,795.00 "
3404370,15/03/2018,28/02/2018,3000672,F.M Conway Ltd,Construction - enhancements,City Management and Communities,"1,588.00 "
3404371,15/03/2018,28/02/2018,3000672,F.M Conway Ltd,Construction - enhancements,City Management and Communities,"349,651.00 "
3404372,15/03/2018,28/02/2018,3000672,F.M Conway Ltd,Construction - enhancements,City Management and Communities,"50,103.00 "
3404373,15/03/2018,28/02/2018,3000672,F.M Conway Ltd,Construction - enhancements,City Management and Communities,"12,832.00 "
3404374,13/03/2018,28/02/2018,3000672,F.M Conway Ltd,Construction - enhancements,City Management and Communities,"-20,451.00 "
3404375,15/03/2018,28/02/2018,3000672,F.M Conway Ltd,Construction - enhancements,City Management and Communities,"85,314.00 "
3404524,13/03/2018,28/02/2018,3000672,F.M Conway Ltd,Construction - enhancements,City Management and Communities,"-3,713.00 "
3404376,15/03/2018,28/02/2018,3000672,F.M Conway Ltd,Construction - enhancements,City Management and Communities,"3,339.00 "
3404377,15/03/2018,28/02/2018,3000672,F.M Conway Ltd,Construction - enhancements,City Management and Communities,"591,866.00 "
3404379,15/03/2018,28/02/2018,3000672,F.M Conway Ltd,Construction - enhancements,City Management and Communities,"239,902.13 "
3404380,15/03/2018,28/02/2018,3000672,F.M Conway Ltd,Construction - enhancements,City Management and Communities,"356,970.00 "
3404381,15/03/2018,28/02/2018,3000672,F.M Conway Ltd,Construction - enhancements,City Management and Communities,"177,020.00 "
3372078,05/03/2018,30/11/2017,3000672,F.M Conway Ltd,Construction - enhancements,City Management and Communities,"22,566.00 "
3408950,15/03/2018,30/11/2017,3000672,F.M Conway Ltd,Construction - enhancements,City Management and Communities,"1,408.44 "
3388947,25/01/2018,30/11/2017,3000672,F.M Conway Ltd,Contractors � converted balance - no analysis,Highways Infrastructure & Public Realm,"1,557.00 "
3388948,01/03/2018,30/11/2017,3000672,F.M Conway Ltd,Construction - enhancements,City Management and Communities,"12,813.00 "
3384825,12/01/2018,30/11/2017,3000672,F.M Conway Ltd,Professional Fees (non-Legal),HRA City West Homes,"306,817.64 "
3372063,27/02/2018,30/11/2017,3000672,F.M Conway Ltd,Construction - enhancements,City Management and Communities,"12,326.75 "
3408951,15/03/2018,30/11/2017,3000672,F.M Conway Ltd,Construction - enhancements,City Management and Communities,902.59 
3379778,11/01/2018,21/12/2017,3000672,F.M Conway Ltd,Contractors � converted balance - no analysis,Highways Infrastructure & Public Realm,"12,147.21 "
3379779,11/01/2018,21/12/2017,3000672,F.M Conway Ltd,Contractors � converted balance - no analysis,Highways Infrastructure & Public Realm,"2,072.87 "
3379780,11/01/2018,21/12/2017,3000672,F.M Conway Ltd,Contractors � converted balance - no analysis,Highways Infrastructure & Public Realm,"2,100.24 "
3379783,11/01/2018,21/12/2017,3000672,F.M Conway Ltd,Contractors � converted balance - no analysis,Highways Infrastructure & Public Realm,"18,504.80 "
3379781,11/01/2018,21/12/2017,3000672,F.M Conway Ltd,Contractors � converted balance - no analysis,Highways Infrastructure & Public Realm,"1,210.25 "
3396481,14/02/2018,21/12/2017,3000672,F.M Conway Ltd,Contractors � converted balance - no analysis,Highways Infrastructure & Public Realm,"4,099.96 "
3379987,11/01/2018,21/12/2017,3000672,F.M Conway Ltd,Planned Maintenance,Highways Infrastructure & Public Realm,"4,920.14 "
3379782,11/01/2018,21/12/2017,3000672,F.M Conway Ltd,Planned Maintenance,Highways Infrastructure & Public Realm,"10,424.69 "
3379988,11/01/2018,21/12/2017,3000672,F.M Conway Ltd,Planned Maintenance,Highways Infrastructure & Public Realm,"2,233.71 "
3379976,11/01/2018,21/12/2017,3000672,F.M Conway Ltd,Planned Maintenance,Highways Infrastructure & Public Realm,"40,356.09 "
3379977,11/01/2018,21/12/2017,3000672,F.M Conway Ltd,Planned Maintenance,Highways Infrastructure & Public Realm,"18,793.11 "
3379979,11/01/2018,21/12/2017,3000672,F.M Conway Ltd,Planned Maintenance,Highways Infrastructure & Public Realm,"7,475.71 "
3379980,11/01/2018,21/12/2017,3000672,F.M Conway Ltd,Planned Maintenance,Highways Infrastructure & Public Realm,"2,294.57 "
3385625,15/01/2018,01/12/2017,3000672,F.M Conway Ltd,Design and development,City Management and Communities,"2,762.50 "
3385628,23/01/2018,28/12/2017,3000672,F.M Conway Ltd,Design and development,City Management and Communities,"9,559.00 "
3385629,18/01/2018,28/12/2017,3000672,F.M Conway Ltd,Design and development,City Management and Communities,"7,566.55 "
3385630,18/01/2018,28/12/2017,3000672,F.M Conway Ltd,Design and development,HRA City West Homes,"4,009.20 "
3385631,18/01/2018,28/12/2017,3000672,F.M Conway Ltd,Design and development,City Management and Communities,"4,704.00 "
3385632,23/01/2018,28/12/2017,3000672,F.M Conway Ltd,Construction - enhancements,City Management and Communities,"18,575.10 "
3385633,18/01/2018,28/12/2017,3000672,F.M Conway Ltd,Contractors � converted balance - no analysis,Highways Infrastructure & Public Realm,"11,647.00 "
3385634,18/01/2018,28/12/2017,3000672,F.M Conway Ltd,Printing (Printing),Highways Infrastructure & Public Realm,"9,879.00 "
3385636,30/01/2018,28/12/2017,3000672,F.M Conway Ltd,Highways & Transportation Consultants,Highways Infrastructure & Public Realm,"22,498.00 "
3382184,29/01/2018,28/12/2017,3000672,F.M Conway Ltd,Construction - enhancements,City Management and Communities,"13,880.00 "
3382178,18/01/2018,28/12/2017,3000672,F.M Conway Ltd,Design and development,City Management and Communities,"24,743.00 "
3382179,18/01/2018,28/12/2017,3000672,F.M Conway Ltd,Construction - enhancements,City Management and Communities,744.00 
3382228,18/01/2018,28/12/2017,3000672,F.M Conway Ltd,Construction - enhancements,City Management and Communities,"19,723.00 "
3382217,18/01/2018,28/12/2017,3000672,F.M Conway Ltd,Construction - enhancements,City Management and Communities,"10,204.00 "
3382218,18/01/2018,28/12/2017,3000672,F.M Conway Ltd,Design and development,City Management and Communities,"527,600.00 "
3382219,18/01/2018,28/12/2017,3000672,F.M Conway Ltd,Construction - enhancements,City Management and Communities,"136,749.00 "
3382220,18/01/2018,28/12/2017,3000672,F.M Conway Ltd,Design and development,City Management and Communities,780.00 
3382221,18/01/2018,28/12/2017,3000672,F.M Conway Ltd,Design and development,City Management and Communities,"6,558.00 "
3382222,18/01/2018,28/12/2017,3000672,F.M Conway Ltd,Design and development,City Management and Communities,"8,708.00 "
3382212,18/01/2018,28/12/2017,3000672,F.M Conway Ltd,Construction - enhancements,City Management and Communities,"5,764.00 "
3382213,18/01/2018,28/12/2017,3000672,F.M Conway Ltd,Construction - enhancements,City Management and Communities,"25,187.00 "
3383739,25/01/2018,28/12/2017,3000672,F.M Conway Ltd,Design and development,City Management and Communities,983.00 
3382214,18/01/2018,28/12/2017,3000672,F.M Conway Ltd,Design and development,City Management and Communities,"7,150.00 "
3382216,18/01/2018,28/12/2017,3000672,F.M Conway Ltd,Construction - enhancements,City Management and Communities,"4,974.00 "
3382206,18/01/2018,28/12/2017,3000672,F.M Conway Ltd,Design and development,City Management and Communities,"3,467.00 "
3382207,18/01/2018,28/12/2017,3000672,F.M Conway Ltd,Design and development,City Management and Communities,"2,249.00 "
3382208,18/01/2018,28/12/2017,3000672,F.M Conway Ltd,Design and development,City Management and Communities,"1,342.00 "
3382209,18/01/2018,28/12/2017,3000672,F.M Conway Ltd,Design and development,City Management and Communities,"4,308.00 "
3382211,18/01/2018,28/12/2017,3000672,F.M Conway Ltd,Construction - enhancements,City Management and Communities,"5,470.00 "
3382180,29/01/2018,28/12/2017,3000672,F.M Conway Ltd,Design and development,City Management and Communities,"3,859.00 "
3382181,29/01/2018,28/12/2017,3000672,F.M Conway Ltd,Design and development,City Management and Communities,873.00 
3382170,18/01/2018,28/12/2017,3000672,F.M Conway Ltd,Construction - enhancements,Place Shaping,"13,876.00 "
3382172,27/02/2018,28/12/2017,3000672,F.M Conway Ltd,Construction - enhancements,Place Shaping,"22,528.00 "
3382185,18/01/2018,28/12/2017,3000672,F.M Conway Ltd,Design and development,City Management and Communities,"13,468.00 "
3379784,18/01/2018,28/12/2017,3000672,F.M Conway Ltd,Planned Maintenance,Highways Infrastructure & Public Realm,"425,000.00 "
3382187,19/02/2018,28/12/2017,3000672,F.M Conway Ltd,Design and development,City Management and Communities,"18,113.00 "
3382173,18/01/2018,28/12/2017,3000672,F.M Conway Ltd,Design and development,City Management and Communities,"5,691.00 "
3382174,15/01/2018,15/12/2017,3000672,F.M Conway Ltd,Construction - enhancements,City Management and Communities,"117,564.00 "
3382175,09/01/2018,15/12/2017,3000672,F.M Conway Ltd,Design and development,City Management and Communities,"66,208.00 "
3382164,18/01/2018,28/12/2017,3000672,F.M Conway Ltd,Construction - enhancements,City Management and Communities,"1,219.00 "
3382165,15/01/2018,10/12/2017,3000672,F.M Conway Ltd,Construction - enhancements,City Management and Communities,"75,495.00 "
3382166,18/01/2018,28/12/2017,3000672,F.M Conway Ltd,Design and development,City Management and Communities,"5,017.00 "
3382167,18/01/2018,28/12/2017,3000672,F.M Conway Ltd,Construction - enhancements,City Management and Communities,"8,265.00 "
3382168,29/01/2018,28/12/2017,3000672,F.M Conway Ltd,Construction - enhancements,City Management and Communities,"1,926.75 "
3382169,12/01/2018,15/12/2017,3000672,F.M Conway Ltd,Construction - enhancements,City Management and Communities,"163,121.00 "
3382158,15/01/2018,15/12/2017,3000672,F.M Conway Ltd,Construction - enhancements,City Management and Communities,"308,931.00 "
3383740,17/01/2018,15/12/2017,3000672,F.M Conway Ltd,Planned Maintenance,Place Shaping,"171,432.00 "
3382159,01/03/2018,15/12/2017,3000672,F.M Conway Ltd,Design and development,City Management and Communities,"50,542.00 "
3382160,01/03/2018,15/12/2017,3000672,F.M Conway Ltd,Construction - enhancements,City Management and Communities,"85,986.00 "
3382186,18/01/2018,28/12/2017,3000672,F.M Conway Ltd,Design and development,City Management and Communities,"2,932.00 "
3382161,18/01/2018,28/12/2017,3000672,F.M Conway Ltd,Construction - enhancements,City Management and Communities,"24,326.00 "
3382162,27/02/2018,28/12/2017,3000672,F.M Conway Ltd,Construction - enhancements,Place Shaping,"37,714.00 "
3382200,18/01/2018,28/12/2017,3000672,F.M Conway Ltd,Construction - enhancements,Place Shaping,"20,539.00 "
3382201,18/01/2018,28/12/2017,3000672,F.M Conway Ltd,Design and development,City Management and Communities,"15,207.00 "
3392837,13/02/2018,28/12/2017,3000672,F.M Conway Ltd,Construction - enhancements,HRA City West Homes,"236,010.06 "
3382202,13/03/2018,28/12/2017,3000672,F.M Conway Ltd,Contractors � converted balance - no analysis,Highways Infrastructure & Public Realm,"5,376.00 "
3382203,18/01/2018,28/12/2017,3000672,F.M Conway Ltd,Contractors � converted balance - no analysis,Highways Infrastructure & Public Realm,"15,316.71 "
